Workbook

Sheet 1. Information Sheet
U1: a | AA1: =IF(OR(F16="", F16="(if applicable)"), F14, F14 & " - " & F16) -> Tillsonburg Hydro Inc. - Tillsonburg
M12: Version | N12: 1.1
E14: Utility Name | F14: Tillsonburg Hydro Inc.
E16: Service Territory | F16: Tillsonburg
E18: Assigned EB Number | F18: EB-2014-0115
E20: Name of Contact and Title | F20: Wayne Brett, Finance Reg Affairs Manager
E22: Phone Number | F22: 519-842-6428 X3229
E24: Email Address | F24: wbrett@tillsonburg.ca
E26: We are applying for rates effective | F26: 2015-05-01
E28: Rate-Setting Method | F28: Price Cap IR
A30: Please indicate in which Rate Year the Group 1 accounts were last cleared1 | F30: 2014
A32: Please indicate the last Cost of Service Re-Basing Year | F32: 2013
B35: Notes
C37: Pale green cells represent input cells.
C39: Pale blue cells represent drop-down lists. The applicant should select the appropriate item from the drop-down list.
C41: White cells contain fixed values, automatically generated values or formulae.
A44: Note: 1. Rate year of application

Sheet 2. Related Links
A13: ● | B13: Ontario Energy Board's 2015 Electricity Distribution Rates Webpage
A15: ● | B15: An updated version of Chapter 3 of the Filing Requirements for Electricity Distribution Rate Applications for 2015 rates.

Sheet 3. Rate Class Selection
A12: Select the appropriate rate classes as they appear on your most recent Board-Approved Tariff of Rates and Charges, including the MicroFit Class.
A14: How many classes are on your most recent Board-Approved Tariff of Rates and Charges? | J14: 9
A16: Select Your Rate Classes from the Blue Cells below. Please ensure that a rate class is assigned to each shaded cell.
B18: Rate Class Classification | Q18: # of duplicates
A19: 1 | B19: RESIDENTIAL | P19: =COUNTIF($B$19:$J$40, B19) -> 1 | Q19: =COUNTIF(P19:P40, 2)/2 -> 0
A20: 2 | B20: GENERAL SERVICE LESS THAN 50 KW | P20: =COUNTIF($B$19:$J$40, B20) -> 1
A21: 3 | B21: GENERAL SERVICE 50 TO 499 KW | P21: 1
A22: 4 | B22: GENERAL SERVICE 50 TO 1,499 KW | P22: 1
A23: 5 | B23: GENERAL SERVICE EQUAL TO OR GREATER THAN 1,500 KW | P23: 1
A24: 6 | B24: UNMETERED SCATTERED LOAD | P24: 1
A25: 7 | B25: SENTINEL LIGHTING | P25: 1
A26: 8 | B26: STREET LIGHTING | P26: 1
A27: 9 | B27: microFIT | P27: 1
P28: 0
P29: 0
P30: 0
P31: 0
P32: 0
P33: 0

Sheet 4. Current Tariff Schedule
Z1: 3 | AA1: January | AB1: ≥
AA2: February
AA3: March
AA4: April
AA5: May
AA6: June
AA7: July
AA8: August
AA9: September
AA10: October
AA11: November
B12: For each class, Applicants are required to copy and paste the class descriptions (located directly under the class name) and the description of the applicability of those rates (description is found under the class name and directly under the word "APPLICATION"). By using the drop-down lists located under the column labeled "Rate Description", please select the descriptions of the rates and charges that BEST MATCHES the descriptions on your most recent Board-Approved Tariff of Rates and Charges. If the description is not found in the drop-down list, please enter the description in the green cells under the correct class exactly as it appears on the tariff. Please do not enter more than one "Service Charge" for each class for which a base monthly fixed charge applies. | AA12: December
B21: =IF(ISBLANK('1. Information Sheet'!F14), "Please Choose Distributor Name on Sheet 1", '1. Information Sheet'!F14) -> Tillsonburg Hydro Inc.
B22: TARIFF OF RATES AND CHARGES
A24: RESIDENTIAL | B24: RESIDENTIAL Service Classification
A25: RESIDENTIAL
A26: RESIDENTIAL | B26: This classification applies to an account in one of three categories of residential services: single-family or single-unit homes, multi-family buildings, and subdivision developments. Further servicing details are available in Tillsonburg Hydro's Conditions of Service.
A27: RESIDENTIAL
A28: RESIDENTIAL
A29: RESIDENTIAL
A30: RESIDENTIAL
A31: RESIDENTIAL
A32: RESIDENTIAL | B32: APPLICATION
A33: RESIDENTIAL
A34: RESIDENTIAL | B34: The application of these rates and charges shall be in accordance with the Licence of the Distributor and any Code or Order of the Board, and amendments thereto as approved by the Board, which may be applicable to the administration of this schedule.
A35: RESIDENTIAL
A36: RESIDENTIAL
A37: RESIDENTIAL | B37: No rates or charges for the distribution of electricity and charges to meet the costs of any work or service done or furnished for the purpose of the distribution of electricity shall be made except as permitted by this schedule, unless required by the Distributor's Licence or a Code or Order of the Board, and amendments thereto as approved by the Board, or as specified herein.
A38: RESIDENTIAL
A39: RESIDENTIAL
A40: RESIDENTIAL
A41: RESIDENTIAL | B41: Unless specifically noted, this schedule does not contain any charges for the electricity commodity, be it under the Regulated Price Plan, a contract with a retailer or the wholesale market price, as applicable. In addition, the charges in the MONTHLY RATES AND CHARGES - Regulatory Component of this schedule do not apply to a customer that is an embedded wholesale market participant.
A42: RESIDENTIAL
A43: RESIDENTIAL
A44: RESIDENTIAL | B44: It should be noted that this schedule does not list any charges, assessments or credits that are required by law to be invoiced by a distributor and that are not subject to Board approval, such as the Debt Retirement Charge, the Global Adjustment, the Ontario Clean Energy Benefit and the HST.
A45: RESIDENTIAL
A46: RESIDENTIAL
A47: RESIDENTIAL
A48: RESIDENTIAL | B48: MONTHLY RATES AND CHARGES - Delivery Component (If applicable, Effective Date MUST be included in rate description)
A49: RESIDENTIAL | B49: Service Charge | H49: $ | I49: 10.13 | K49: 1_C_MSC
A50: RESIDENTIAL | B50: Rate Rider for Smart Metering Entity Charge - effective until October 31, 2018 | H50: $ | I50: 0.79 | K50: 1_C_SMEC | L50: 2018-10-31
A51: RESIDENTIAL | B51: Distribution Volumetric Rate | H51: $/kWh | I51: 0.0239 | K51: 1_C_VC_1
A52: RESIDENTIAL | B52: Rate Rider for Deferral/Variance Account Disposition (2014) - effective until April 30, 2015 | H52: $/kWh | I52: -0.0013 | K52: 1_C_VC_DEFVAR_kWh_1 | L52: 2015-04-30
A53: RESIDENTIAL | B53: Rate Rider for Global Adjustment Sub-Account Disposition (2014) - effective until April 30, 2015 Applicable only for Non-RPP Customers | H53: $/kWh | I53: -0.0008 | K53: 1_C_VC_GA_Rate_Rider_kWh_1 | L53: 2015-04-30
A54: RESIDENTIAL | B54: Retail Transmission Rate - Network Service Rate | H54: $/kWh | I54: 0.0073 | K54: 1_C_RTSR_Network
A55: RESIDENTIAL | B55: Retail Transmission Rate - Line and Transformation Connection Service Rate | H55: $/kWh | I55: 0.0054 | K55: 1_C_RTSR_Connection
A56: RESIDENTIAL
A57: RESIDENTIAL
A58: RESIDENTIAL
A59: RESIDENTIAL
A60: RESIDENTIAL
A61: RESIDENTIAL
A62: RESIDENTIAL
A63: RESIDENTIAL
A64: RESIDENTIAL
A65: RESIDENTIAL
A66: RESIDENTIAL
A67: RESIDENTIAL
A68: RESIDENTIAL
A69: RESIDENTIAL
A70: RESIDENTIAL
A71: RESIDENTIAL
A72: RESIDENTIAL
A73: RESIDENTIAL
A74: RESIDENTIAL
A75: RESIDENTIAL
A76: RESIDENTIAL
A77: RESIDENTIAL
A78: RESIDENTIAL
A79: RESIDENTIAL | B79: MONTHLY RATES AND CHARGES - Regulatory Component
A80: RESIDENTIAL
A81: RESIDENTIAL | B81: Wholesale Market Service Rate | H81: $/kWh | I81: 0.0044 | K81: 1_C_WMSR
A82: RESIDENTIAL | B82: Rural or Remote Electricity Rate Protection Charge (RRRP) | H82: $/kWh | I82: 0.0013 | K82: 1_C_RRPC
A83: RESIDENTIAL | B83: Standard Supply Service - Administrative Charge (if applicable) | H83: $ | I83: 0.25 | K83: 1_C_SSS
A84: RESIDENTIAL
A87: GENERAL SERVICE LESS THAN 50 KW | B87: GENERAL SERVICE LESS THAN 50 KW Service Classification
A88: GENERAL SERVICE LESS THAN 50 KW
A89: GENERAL SERVICE LESS THAN 50 KW | B89: This classification applies to non residential account whose average monthly maximum demand is less than, or is forecast to be less than, 50 kW. Further servicing details are available in Tillsonburg Hydro's Conditions of Service.
A90: GENERAL SERVICE LESS THAN 50 KW
A91: GENERAL SERVICE LESS THAN 50 KW
A92: GENERAL SERVICE LESS THAN 50 KW
A93: GENERAL SERVICE LESS THAN 50 KW
A94: GENERAL SERVICE LESS THAN 50 KW
A95: GENERAL SERVICE LESS THAN 50 KW | B95: APPLICATION
A96: GENERAL SERVICE LESS THAN 50 KW
A97: GENERAL SERVICE LESS THAN 50 KW | B97: The application of these rates and charges shall be in accordance with the Licence of the Distributor and any Code or Order of the Board, and amendments thereto as approved by the Board, which may be applicable to the administration of this schedule.
A98: GENERAL SERVICE LESS THAN 50 KW
A99: GENERAL SERVICE LESS THAN 50 KW
A100: GENERAL SERVICE LESS THAN 50 KW | B100: No rates or charges for the distribution of electricity and charges to meet the costs of any work or service done or furnished for the purpose of the distribution of electricity shall be made except as permitted by this schedule, unless required by the Distributor's Licence or a Code or Order of the Board, and amendments thereto as approved by the Board, or as specified herein.
A101: GENERAL SERVICE LESS THAN 50 KW
A102: GENERAL SERVICE LESS THAN 50 KW
A103: GENERAL SERVICE LESS THAN 50 KW
A104: GENERAL SERVICE LESS THAN 50 KW | B104: Unless specifically noted, this schedule does not contain any charges for the electricity commodity, be it under the Regulated Price Plan, a contract with a retailer or the wholesale market price, as applicable. In addition, the charges in the MONTHLY RATES AND CHARGES - Regulatory Component of this schedule do not apply to a customer that is an embedded wholesale market participant.
A105: GENERAL SERVICE LESS THAN 50 KW
A106: GENERAL SERVICE LESS THAN 50 KW
A107: GENERAL SERVICE LESS THAN 50 KW | B107: It should be noted that this schedule does not list any charges, assessments or credits that are required by law to be invoiced by a distributor and that are not subject to Board approval, such as the Debt Retirement Charge, the Global Adjustment, the Ontario Clean Energy Benefit and the HST.
A108: GENERAL SERVICE LESS THAN 50 KW
A109: GENERAL SERVICE LESS THAN 50 KW
A110: GENERAL SERVICE LESS THAN 50 KW
A111: GENERAL SERVICE LESS THAN 50 KW | B111: MONTHLY RATES AND CHARGES - Delivery Component (If applicable, Effective Date MUST be included in rate description)
A112: GENERAL SERVICE LESS THAN 50 KW | B112: Service Charge | H112: $ | I112: 25.31 | K112: 2_C_MSC
A113: GENERAL SERVICE LESS THAN 50 KW | B113: Rate Rider for Smart Metering Entity Charge - effective until October 31, 2018 | H113: $ | I113: 0.79 | K113: 2_C_SMEC | L113: 2018-10-31
A114: GENERAL SERVICE LESS THAN 50 KW | B114: Distribution Volumetric Rate | H114: $/kWh | I114: 0.0177 | K114: 2_C_VC_1
A115: GENERAL SERVICE LESS THAN 50 KW | B115: Rate Rider for Deferral/Variance Account Disposition (2014) - effective until April 30, 2015 | H115: $/kWh | I115: -0.0014 | K115: 2_C_VC_DEFVAR_kWh_1 | L115: 2015-04-30
A116: GENERAL SERVICE LESS THAN 50 KW | B116: Rate Rider for Global Adjustment Sub-Account Disposition (2014) - effective until April 30, 2015 Applicable only for Non-RPP Customers | H116: $/kWh | I116: -0.0008 | K116: 2_C_VC_GA_Rate_Rider_kWh_1 | L116: 2015-04-30
A117: GENERAL SERVICE LESS THAN 50 KW | B117: Retail Transmission Rate - Network Service Rate | H117: $/kWh | I117: 0.0065 | K117: 2_C_RTSR_Network
A118: GENERAL SERVICE LESS THAN 50 KW | B118: Retail Transmission Rate - Line and Transformation Connection Service Rate | H118: $/kWh | I118: 0.0048 | K118: 2_C_RTSR_Connection
A119: GENERAL SERVICE LESS THAN 50 KW
A120: GENERAL SERVICE LESS THAN 50 KW
A121: GENERAL SERVICE LESS THAN 50 KW
A122: GENERAL SERVICE LESS THAN 50 KW
A123: GENERAL SERVICE LESS THAN 50 KW
A124: GENERAL SERVICE LESS THAN 50 KW
A125: GENERAL SERVICE LESS THAN 50 KW
A126: GENERAL SERVICE LESS THAN 50 KW
A127: GENERAL SERVICE LESS THAN 50 KW
A128: GENERAL SERVICE LESS THAN 50 KW
A129: GENERAL SERVICE LESS THAN 50 KW
A130: GENERAL SERVICE LESS THAN 50 KW
A131: GENERAL SERVICE LESS THAN 50 KW
A132: GENERAL SERVICE LESS THAN 50 KW
A133: GENERAL SERVICE LESS THAN 50 KW
A134: GENERAL SERVICE LESS THAN 50 KW
A135: GENERAL SERVICE LESS THAN 50 KW
A136: GENERAL SERVICE LESS THAN 50 KW
A137: GENERAL SERVICE LESS THAN 50 KW
A138: GENERAL SERVICE LESS THAN 50 KW
A139: GENERAL SERVICE LESS THAN 50 KW
A140: GENERAL SERVICE LESS THAN 50 KW
A141: GENERAL SERVICE LESS THAN 50 KW
A142: GENERAL SERVICE LESS THAN 50 KW | B142: MONTHLY RATES AND CHARGES - Regulatory Component
A143: GENERAL SERVICE LESS THAN 50 KW
A144: GENERAL SERVICE LESS THAN 50 KW | B144: Wholesale Market Service Rate | H144: =H81 -> $/kWh | I144: 0.0044 | K144: 2_C_WMSR
A145: GENERAL SERVICE LESS THAN 50 KW | B145: Rural or Remote Electricity Rate Protection Charge (RRRP) | H145: $/kWh | I145: 0.0013 | K145: 2_C_RRPC
A146: GENERAL SERVICE LESS THAN 50 KW | B146: Standard Supply Service - Administrative Charge (if applicable) | H146: $ | I146: 0.25 | K146: 2_C_SSS
A147: GENERAL SERVICE LESS THAN 50 KW
A150: GENERAL SERVICE 50 TO 499 KW | B150: GENERAL SERVICE 50 TO 499 KW Service Classification
A151: GENERAL SERVICE 50 TO 499 KW
A152: GENERAL SERVICE 50 TO 499 KW | B152: This classification applies to a non residential account whose average monthly maximum demand used for billing purposes is equal to or greater than, or is forecast to be equal to or greater than, 50 kW but less than 500 kW. Further servicing details are available in Tillsonburg Hydro's Conditions of Service.
A153: GENERAL SERVICE 50 TO 499 KW
A154: GENERAL SERVICE 50 TO 499 KW
A155: GENERAL SERVICE 50 TO 499 KW
A156: GENERAL SERVICE 50 TO 499 KW
A157: GENERAL SERVICE 50 TO 499 KW
A158: GENERAL SERVICE 50 TO 499 KW | B158: APPLICATION
A159: GENERAL SERVICE 50 TO 499 KW
A160: GENERAL SERVICE 50 TO 499 KW | B160: The application of these rates and charges shall be in accordance with the Licence of the Distributor and any Code or Order of the Board, and amendments thereto as approved by the Board, which may be applicable to the administration of this schedule.
A161: GENERAL SERVICE 50 TO 499 KW
A162: GENERAL SERVICE 50 TO 499 KW
A163: GENERAL SERVICE 50 TO 499 KW | B163: No rates or charges for the distribution of electricity and charges to meet the costs of any work or service done or furnished for the purpose of the distribution of electricity shall be made except as permitted by this schedule, unless required by the Distributor's Licence or a Code or Order of the Board, and amendments thereto as approved by the Board, or as specified herein.
A164: GENERAL SERVICE 50 TO 499 KW
A165: GENERAL SERVICE 50 TO 499 KW
A166: GENERAL SERVICE 50 TO 499 KW
A167: GENERAL SERVICE 50 TO 499 KW | B167: Unless specifically noted, this schedule does not contain any charges for the electricity commodity, be it under the Regulated Price Plan, a contract with a retailer or the wholesale market price, as applicable. In addition, the charges in the MONTHLY RATES AND CHARGES - Regulatory Component of this schedule do not apply to a customer that is an embedded wholesale market participant.
A168: GENERAL SERVICE 50 TO 499 KW
A169: GENERAL SERVICE 50 TO 499 KW
A170: GENERAL SERVICE 50 TO 499 KW | B170: It should be noted that this schedule does not list any charges, assessments or credits that are required by law to be invoiced by a distributor and that are not subject to Board approval, such as the Debt Retirement Charge, the Global Adjustment, the Ontario Clean Energy Benefit and the HST.
A171: GENERAL SERVICE 50 TO 499 KW
A172: GENERAL SERVICE 50 TO 499 KW
A173: GENERAL SERVICE 50 TO 499 KW
A174: GENERAL SERVICE 50 TO 499 KW | B174: MONTHLY RATES AND CHARGES - Delivery Component (If applicable, Effective Date MUST be included in rate description)
A175: GENERAL SERVICE 50 TO 499 KW | B175: Service Charge | H175: $ | I175: 131.63 | K175: 3_C_MSC
A176: GENERAL SERVICE 50 TO 499 KW | B176: Distribution Volumetric Rate | H176: $/kW | I176: 1.9906 | K176: 3_C_VC_1
A177: GENERAL SERVICE 50 TO 499 KW | B177: Rate Rider for Deferral/Variance Account Disposition – effective until April 30, 2015 | H177: $/kW | I177: -0.4605 | K177: 3_C_VC_DEFVAR_kW_1 | L177: 2015-04-30
A178: GENERAL SERVICE 50 TO 499 KW | B178: Rate Rider for Global Adjustment Sub-Account Disposition (2014) - effective until April 30, 2015 Applicable only for Non-RPP Customers | H178: $/kW | I178: -0.2488 | K178: 3_C_VC_GA_Rate_Rider_kW_1 | L178: 2015-04-30
A179: GENERAL SERVICE 50 TO 499 KW | B179: Retail Transmission Rate - Network Service Rate | H179: $/kW | I179: 2.5311 | K179: 3_C_RTSR_Network
A180: GENERAL SERVICE 50 TO 499 KW | B180: Retail Transmission Rate - Line and Transformation Connection Service Rate | H180: $/kW | I180: 1.8727 | K180: 3_C_RTSR_Connection
A181: GENERAL SERVICE 50 TO 499 KW
A182: GENERAL SERVICE 50 TO 499 KW
A183: GENERAL SERVICE 50 TO 499 KW
A184: GENERAL SERVICE 50 TO 499 KW
A185: GENERAL SERVICE 50 TO 499 KW
A186: GENERAL SERVICE 50 TO 499 KW
A187: GENERAL SERVICE 50 TO 499 KW
A188: GENERAL SERVICE 50 TO 499 KW
A189: GENERAL SERVICE 50 TO 499 KW
A190: GENERAL SERVICE 50 TO 499 KW
A191: GENERAL SERVICE 50 TO 499 KW
A192: GENERAL SERVICE 50 TO 499 KW
A193: GENERAL SERVICE 50 TO 499 KW
A194: GENERAL SERVICE 50 TO 499 KW
A195: GENERAL SERVICE 50 TO 499 KW
A196: GENERAL SERVICE 50 TO 499 KW
A197: GENERAL SERVICE 50 TO 499 KW
A198: GENERAL SERVICE 50 TO 499 KW
A199: GENERAL SERVICE 50 TO 499 KW
A200: GENERAL SERVICE 50 TO 499 KW
A201: GENERAL SERVICE 50 TO 499 KW
A202: GENERAL SERVICE 50 TO 499 KW
A203: GENERAL SERVICE 50 TO 499 KW
A204: GENERAL SERVICE 50 TO 499 KW
A205: GENERAL SERVICE 50 TO 499 KW | B205: MONTHLY RATES AND CHARGES - Regulatory Component
A206: GENERAL SERVICE 50 TO 499 KW
A207: GENERAL SERVICE 50 TO 499 KW | B207: Wholesale Market Service Rate | H207: =H81 -> $/kWh | I207: 0.0044 | K207: 3_C_WMSR
A208: GENERAL SERVICE 50 TO 499 KW | B208: Rural or Remote Electricity Rate Protection Charge (RRRP) | H208: $/kWh | I208: 0.0013 | K208: 3_C_RRPC
A209: GENERAL SERVICE 50 TO 499 KW | B209: Standard Supply Service - Administrative Charge (if applicable) | H209: $ | I209: 0.25 | K209: 3_C_SSS
A210: GENERAL SERVICE 50 TO 499 KW
A213: GENERAL SERVICE 50 TO 1,499 KW | B213: GENERAL SERVICE 50 TO 1,499 KW Service Classification
A214: GENERAL SERVICE 50 TO 1,499 KW
A215: GENERAL SERVICE 50 TO 1,499 KW | B215: This classification applies to a non residential account whose average monthly maximum demand used for billing purposes is equal to or greater than, or is forecast to be equal to order greater than, 500 kW but less than 1,500 kW. Further servicing details are available in Tillsonburg Hydro's Conditions of Service.
... 357 more rows

Sheet 4. Hidden (hidden)
M1: Current Rate Classes | N1: Changed to Rate Classes | O1: Values in A that are NOT in B | P1: Values in B that are Not in A | Q1: Count of A | R1: Count of B
M2: RESIDENTIAL | N2: RESIDENTIAL | Q2: 9 | R2: 9
M3: GENERAL SERVICE LESS THAN 50 KW | N3: GENERAL SERVICE LESS THAN 50 KW
M4: GENERAL SERVICE 50 TO 499 KW | N4: GENERAL SERVICE 50 TO 499 KW
M5: GENERAL SERVICE 50 TO 1,499 KW | N5: GENERAL SERVICE 50 TO 1,499 KW
M6: GENERAL SERVICE EQUAL TO OR GREATER THAN 1,500 KW | N6: GENERAL SERVICE EQUAL TO OR GREATER THAN 1,500 KW
M7: UNMETERED SCATTERED LOAD | N7: UNMETERED SCATTERED LOAD
M8: SENTINEL LIGHTING | N8: SENTINEL LIGHTING
M9: STREET LIGHTING | N9: STREET LIGHTING
M10: microFIT | N10: microFIT
A24: RESIDENTIAL | B24: RESIDENTIAL Service Classification
A25: RESIDENTIAL
A26: RESIDENTIAL
A27: RESIDENTIAL
A28: RESIDENTIAL
A29: RESIDENTIAL
A30: RESIDENTIAL
A31: RESIDENTIAL
A32: RESIDENTIAL | B32: APPLICATION
A33: RESIDENTIAL
A34: RESIDENTIAL
A35: RESIDENTIAL
A36: RESIDENTIAL
A37: RESIDENTIAL
A38: RESIDENTIAL
A39: RESIDENTIAL
A40: RESIDENTIAL
A41: RESIDENTIAL
A42: RESIDENTIAL
A43: RESIDENTIAL
A44: RESIDENTIAL
A45: RESIDENTIAL
A46: RESIDENTIAL
A47: RESIDENTIAL
A48: RESIDENTIAL | B48: MONTHLY RATES AND CHARGES - Delivery Component (If applicable, Effective Date MUST be included in rate description)
A49: RESIDENTIAL
A50: RESIDENTIAL
A51: RESIDENTIAL
A52: RESIDENTIAL
A53: RESIDENTIAL
A54: RESIDENTIAL
A55: RESIDENTIAL
A56: RESIDENTIAL
A57: RESIDENTIAL
A58: RESIDENTIAL
A59: RESIDENTIAL
A60: RESIDENTIAL
A61: RESIDENTIAL
A62: RESIDENTIAL
A63: RESIDENTIAL
A64: RESIDENTIAL
A65: RESIDENTIAL
A66: RESIDENTIAL
A67: RESIDENTIAL
A68: RESIDENTIAL
A69: RESIDENTIAL
A70: RESIDENTIAL
A71: RESIDENTIAL
A72: RESIDENTIAL
A73: RESIDENTIAL
A74: RESIDENTIAL
A75: RESIDENTIAL
A76: RESIDENTIAL
A77: RESIDENTIAL
A78: RESIDENTIAL
A79: RESIDENTIAL | B79: MONTHLY RATES AND CHARGES - Regulatory Component
A80: RESIDENTIAL
A81: RESIDENTIAL | B81: Wholesale Market Service Rate | H81: $/kWh | I81: 0.0044
A82: RESIDENTIAL | B82: Rural or Remote Electricity Rate Protection Charge (RRRP) | H82: $/kWh | I82: 0.0013
A83: RESIDENTIAL | B83: Standard Supply Service - Administrative Charge (if applicable) | H83: $ | I83: 0.25
A84: RESIDENTIAL
A87: STREET LIGHTING | B87: STREET LIGHTING Service Classification
A88: STREET LIGHTING
A89: STREET LIGHTING
A90: STREET LIGHTING
A91: STREET LIGHTING
A92: STREET LIGHTING
A93: STREET LIGHTING
A94: STREET LIGHTING
A95: STREET LIGHTING | B95: APPLICATION
A96: STREET LIGHTING
A97: STREET LIGHTING
A98: STREET LIGHTING
A99: STREET LIGHTING
A100: STREET LIGHTING
A101: STREET LIGHTING
A102: STREET LIGHTING
A103: STREET LIGHTING
A104: STREET LIGHTING
A105: STREET LIGHTING
A106: STREET LIGHTING
A107: STREET LIGHTING
A108: STREET LIGHTING
A109: STREET LIGHTING
A110: STREET LIGHTING
A111: STREET LIGHTING | B111: MONTHLY RATES AND CHARGES - Delivery Component (If applicable, Effective Date MUST be included in rate description)
A112: STREET LIGHTING
A113: STREET LIGHTING
A114: STREET LIGHTING
A115: STREET LIGHTING
A116: STREET LIGHTING
A117: STREET LIGHTING
A118: STREET LIGHTING
A119: STREET LIGHTING
A120: STREET LIGHTING
A121: STREET LIGHTING
A122: STREET LIGHTING
A123: STREET LIGHTING
A124: STREET LIGHTING
A125: STREET LIGHTING
A126: STREET LIGHTING
A127: STREET LIGHTING
A128: STREET LIGHTING
A129: STREET LIGHTING
A130: STREET LIGHTING
A131: STREET LIGHTING
A132: STREET LIGHTING
A133: STREET LIGHTING
A134: STREET LIGHTING
A135: STREET LIGHTING
A136: STREET LIGHTING
A137: STREET LIGHTING
A138: STREET LIGHTING
A139: STREET LIGHTING
A140: STREET LIGHTING
A141: STREET LIGHTING
A142: STREET LIGHTING | B142: MONTHLY RATES AND CHARGES - Regulatory Component
A143: STREET LIGHTING
A144: STREET LIGHTING | B144: Wholesale Market Service Rate | H144: $/kWh | I144: 0.0044
A145: STREET LIGHTING | B145: Rural or Remote Electricity Rate Protection Charge (RRRP) | H145: $/kWh | I145: 0.0013
A146: STREET LIGHTING | B146: Standard Supply Service - Administrative Charge (if applicable) | H146: $ | I146: 0.25
A147: STREET LIGHTING
A150: STANDBY POWER | B150: STANDBY POWER Service Classification
A151: STANDBY POWER
A152: STANDBY POWER
A153: STANDBY POWER
A154: STANDBY POWER
A155: STANDBY POWER
A156: STANDBY POWER
A157: STANDBY POWER
A158: STANDBY POWER | B158: APPLICATION
A159: STANDBY POWER
A160: STANDBY POWER
A161: STANDBY POWER
A162: STANDBY POWER
A163: STANDBY POWER
A164: STANDBY POWER
A165: STANDBY POWER
A166: STANDBY POWER
A167: STANDBY POWER
A168: STANDBY POWER
A169: STANDBY POWER
A170: STANDBY POWER
A171: STANDBY POWER
A172: STANDBY POWER
A173: STANDBY POWER
A174: STANDBY POWER | B174: MONTHLY RATES AND CHARGES - Delivery Component (If applicable, Effective Date MUST be included in rate description)
A175: STANDBY POWER
A176: STANDBY POWER
A177: STANDBY POWER
A178: STANDBY POWER
A179: STANDBY POWER
A180: STANDBY POWER
A181: STANDBY POWER
A182: STANDBY POWER
A183: STANDBY POWER
A184: STANDBY POWER
A185: STANDBY POWER
A186: STANDBY POWER
A187: STANDBY POWER
A188: STANDBY POWER
A189: STANDBY POWER
A190: STANDBY POWER
A191: STANDBY POWER
A192: STANDBY POWER
A193: STANDBY POWER
A194: STANDBY POWER
A195: STANDBY POWER
A196: STANDBY POWER
A197: STANDBY POWER
A198: STANDBY POWER
A199: STANDBY POWER
A200: STANDBY POWER
A201: STANDBY POWER
A202: STANDBY POWER
A203: STANDBY POWER
A204: STANDBY POWER
A205: STANDBY POWER | B205: MONTHLY RATES AND CHARGES - Regulatory Component
A206: STANDBY POWER
A207: STANDBY POWER | B207: Wholesale Market Service Rate | H207: =H81 -> $/kWh | I207: 0.0044
A208: STANDBY POWER | B208: Rural or Remote Electricity Rate Protection Charge (RRRP) | H208: $/kWh | I208: 0.0013
A209: STANDBY POWER | B209: Standard Supply Service - Administrative Charge (if applicable) | H209: $ | I209: 0.25
A210: STANDBY POWER

Sheet 5. 2014 Continuity Schedule
C15: Please complete the following continuity schedule for the following Deferral / Variance Accounts. Enter information into green cells only. If you have received approval to dispose of balances from prior years, the starting point for entries in the 2015 DVA schedule below will be the balance sheet date as per your G/L for which you received approval. For example, if in the 2014 EDR process (CoS or IRM) you received approval for the December 31, 2012 balances, the starting point for your entries below should be the 2011 year. This will allow for the correct starting point for the 2012 opening balance columns for both principal and interest. Please refer to the footnotes for further instructions.
E19: 2010 | O19: 2011 | Y19: 2012 | AL19: 2013 | AY19: 2014 | BC19: Projected Interest on Dec-31-13 Balances | BF19: 2.1.7 RRR
C20: Account Descriptions | D20: Account Number | E20: Opening Principal Amounts as of Jan-1-10 | F20: Transactions Debit / (Credit) during 2010 excluding interest and adjustments 2 | G20: Board-Approved Disposition during 2010 | H20: Adjustments during 2010 - other 1 | I20: Closing Principal Balance as of Dec-31-10 | J20: Opening Interest Amounts as of Jan-1-10 | K20: Interest Jan-1 to Dec-31-10 | L20: Board-Approved Disposition during 2010 | M20: Adjustments during 2010 - other 2 | N20: Closing Interest Amounts as of Dec-31-10 | O20: Opening Principal Amounts as of Jan-1-11 | P20: Transactions Debit / (Credit) during 2011 excluding interest and adjustments 2 | Q20: Board-Approved Disposition during 2011 | R20: Adjustments during 2011 - other 1 | S20: Closing Principal Balance as of Dec-31-11 | T20: Opening Interest Amounts as of Jan-1-11 | U20: Interest Jan-1 to Dec-31-11 | V20: Board-Approved Disposition during 2011 | W20: Adjustments during 2011 - other 2 | X20: Closing Interest Amounts as of Dec-31-11 | Y20: Opening Principal Amounts as of Jan-1-12 | Z20: Transactions Debit / (Credit) during 2012 excluding interest and adjustments 2 | AA20: Board-Approved Disposition during 2012 | AB20: Other 1 Adjustments during Q1 2012 | AC20: Other 1 Adjustments during Q2 2012 | AD20: Other 1 Adjustments during Q3 2012 | AE20: Other 1 Adjustments during Q4 2012 | AF20: Closing Principal Balance as of Dec-31-12 | AG20: Opening Interest Amounts as of Jan-1-12 | AH20: Interest Jan-1 to Dec-31-12 | AI20: Board-Approved Disposition during 2012 | AJ20: Adjustments during 2012 - other 1 | AK20: Closing Interest Amounts as of Dec-31-12 | AL20: Opening Principal Amounts as of Jan-1-13 | AM20: Transactions Debit / (Credit) during 2013 excluding interest and adjustments 2 | AN20: Board-Approved Disposition during 2013 | AO20: Other 1 Adjustments during Q1 2013 | AP20: Other 1 Adjustments during Q2 2013 | AQ20: Other 1 Adjustments during Q3 2013 | AR20: Other 1 Adjustments during Q4 2013 | AS20: Closing Principal Balance as of Dec-31-13 | AT20: Opening Interest Amounts as of Jan-1-13 | AU20: Interest Jan-1 to Dec-31-13 | AV20: Board-Approved Disposition during 2013 | AW20: Adjustments during 2013 - other 1 | AX20: Closing Interest Amounts as of Dec-31-13 | AY20: Principal Disposition during 2014 - instructed by Board | AZ20: Interest Disposition during 2014 - instructed by Board | BA20: Closing Principal Balances as of Dec 31-13 Adjusted for Dispositions during 2014 | BB20: Closing Interest Balances as of Dec 31-13 Adjusted for Dispositions during 2014 | BC20: Projected Interest from Jan 1, 2014 to December 31, 2014 on Dec 31 -13 balance adjusted for disposition during 2014 3 | BD20: Projected Interest from January 1, 2015 to April 30, 2015 on Dec 31 -13 balance adjusted for disposition during 2014 3 | BE20: Total Claim | BF20: As of Dec 31-13 | BG20: Variance RRR vs. 2013 Balance (Principal + Interest)
BE22: Claim before Forecasted Transactions
C23: Group 1 Accounts
A24: 1 | C24: LV Variance Account | D24: 1550 | I24: =E24+F24-G24+H24 -> 0 | N24: =J24+K24-L24+M24 -> 0 | O24: =I24 -> 0 | S24: =O24+P24-Q24+R24 -> 0 | T24: =N24 -> 0 | X24: =T24+U24-V24+W24 -> 0 | Y24: =S24 -> 0 | AF24: =Y24+Z24-AA24+SUM(AB24:AE24) -> 0 | AG24: =X24 -> 0 | AK24: =AG24+AH24-AI24+AJ24 -> 0 | AL24: =AF24 -> 0 | AS24: =AL24+AM24-AN24+SUM(AO24:AR24) -> 0 | AT24: =AK24 -> 0 | AX24: =AT24+AU24-AV24+AW24 -> 0 | BA24: =AS24-AY24 -> 0 | BB24: =AX24-AZ24 -> 0 | BE24: =SUM(BA24:BD24) -> 0 | BG24: =BF24-SUM(AS24,AX24) -> 0
C25: Smart Metering Entity Charge Variance | D25: 1551 | AK25: 0 | AL25: =AK25 -> 0 | AM25: 4409.52 | AS25: =AL25+AM25-AN25+SUM(AO25:AR25) -> 4409.52 | AT25: =AK25 -> 0 | AU25: 95.13 | AX25: 95.13 | BA25: =AS25-AY25 -> 4409.52 | BB25: =AX25-AZ25 -> 95.13 | BE25: =SUM(BA25:BD25) -> 4504.65 | BF25: 4504.63 | BG25: =BF25-SUM(AS25,AX25) -> -0.02
A26: 2 | C26: RSVA - Wholesale Market Service Charge | D26: 1580 | E26: =-132028+7907.23 -> -124120.77 | F26: =-419561.94+132028+73149+33205.39-7907.23-1032-26696.58 -> -216815.36 | G26: =-115612-1032 -> -116644 | I26: =E26+F26-G26+SUM(H26:H26) -> -224292.13 | J26: =-581.77-36.39 -> -618.16 | K26: =-30606.38+581.77+3078+25620.61+83.39-46 -> -1288.61 | L26: =3078-46 -> 3032 | N26: =J26+K26-L26+M26 -> -4938.77 | O26: =I26 -> -224292.13 | P26: =-522096.97+230800.94+232442.83-132028+33974.7-6508.81-37908.04+7907.23 -> -193416.12 | Q26: =-132028+7907.23 -> -124120.77 | S26: =O26+P26-Q26+SUM(R26:R26) -> -293587.48 | T26: -4938.77 | U26: =-8516.28+4985.77+39.82*2-151.65+120+77-47 -> -3452.52 | V26: =-1997+120 -> -1877 | X26: =T26+U26-V26+W26 -> -6514.29 | Y26: =S26 -> -293587.48 | Z26: =-603723.41+289654.14+168529-98773-28692.8+3933.34+1323+23139.46 -> -244610.27 | AA26: =1323-98773 -> -97450 | AF26: -440747.75 | AG26: =X26 -> -6514.29 | AH26: =-11513.21+6439.64-153.16+74.65 -> -5152.08 | AI26: =-70-4948 -> -5018 | AK26: -6648.37 | AL26: =AF26 -> -440747.75 | AM26: =-661877.9+435194.41+277935.41-190881.14-29520.17+5553.34+29065.9-2535.34 -> -137065.49 | AN26: =-190881.14-2535.34 -> -193416.48 | AS26: -384396.76 | AT26: =AK26 -> -6648.37 | AU26: =-22558.87+6565.21+23366-4948+9896-236.07+83.16+140-70+356.23 -> 12593.66 | AV26: =-70+140-4948+9896 -> 5018 | AX26: 927.29 | AY26: =-244313.27-3018 -> -247331.27 | AZ26: =-6161.88-60.12 -> -6222 | BA26: -137065.49 | BB26: 7149.29 | BC26: =+BA26*0.0147 -> -2014.862703 | BD26: =+BA26*0.0147*0.333333333333333 -> -671.620901 | BE26: =SUM(BA26:BD26) -> -132602.6836 | BF26: -383470.47 | BG26: -0.9999999998
A27: 3 | C27: RSVA - Retail Transmission Network Charge | D27: 1584 | E27: -207476.24 | F27: =-333671.94+207476.24+271713.32-148292 -> -2774.38 | G27: -148292 | I27: -61958.62 | J27: -4804.64 | K27: =-5561.38+4804.64+3729-3729 -> -756.74 | L27: -3729 | N27: -1832.38 | O27: -61958.62 | P27: =-209340.66+61958.62+376859.13-207476.24 -> 22000.85 | Q27: -207476.24 | S27: 167518.47 | T27: -1832.38 | U27: =-2273.22+1832.38+8414.63-6908 -> 1065.79 | V27: -6908 | X27: 6141.41 | Y27: 167518.47 | Z27: =337962.08-167518.47-265634.44+145518 -> 50327.17 | AA27: 145518 | AF27: 72327.64 | AG27: 6141.41 | AH27: =7959.99-6141.41 -> 1818.58 | AI27: 7918 | AK27: 41.99 | AL27: 72327.64 | AM27: =256829-72327.64-202057.62+22000 -> 4443.74 | AN27: 22000 | AS27: 54771.38 | AT27: 41.99 | AU27: =2354.29-41.99-1348 -> 964.3 | AV27: -1348 | AX27: 2354.29 | AY27: 50328 | AZ27: 2375 | BA27: 4443.38 | BB27: -20.71 | BC27: =+BA27*0.0147 -> 65.317686 | BD27: =+BA27*0.0147*0.333333333333333 -> 21.772562 | BE27: 4509.760248 | BF27: 57125.66 | BG27: -0.01
A28: 4 | C28: RSVA - Retail Transmission Connection Charge | D28: 1586 | E28: 7625.26 | F28: =181209.36-7625.26-53208-84903.42 -> 35472.68 | G28: -53208 | I28: 96305.94 | J28: -1404.17 | K28: =2108.72-1504 -> 604.72 | L28: -1504 | N28: 704.55 | O28: 96305.94 | P28: =224445.6-96305.94-170118.88+7625.56 -> -34353.66 | Q28: 7625.56 | S28: 54326.72 | T28: 704.55 | U28: =-79.64+3151.83-704.55-1327 -> 1040.64 | V28: -1327 | X28: 3072.19 | Y28: 54326.72 | Z28: =167493.3-54326.72-214068.29+88681 -> -12220.71 | AA28: 88681 | AF28: -46574.99 | AG28: 3072.19 | AH28: =3332.08-3072.19-4086.44+3764 -> -62.55 | AI28: 3764 | AK28: -754.36 | AL28: -46574.99 | AM28: =170349.29-34354-181229.96+46574.99 -> 1340.32 | AN28: -34354 | AS28: -10880.67 | AT28: -754.36 | AU28: =1390-1363-1202.3+754.36 -> -420.94 | AV28: -1363 | AX28: 187.7 | AY28: -12221 | AZ28: 369 | BA28: 1340.33 | BB28: -181.3 | BC28: 19.702851 | BD28: 6.567617 | BE28: 1185.300468 | BF28: -10693.28 | BG28: -0.31
A29: 5 | C29: RSVA - Power (excluding Global Adjustment) | D29: 1588 | E29: 60883.61 | F29: =1639975.15-60883.61-54390-1742341.65 -> -217640.11 | G29: -54390 | I29: -102366.5 | J29: 53743.73 | K29: =54712.56-53743.73-4409.17+3878 -> 437.66 | L29: 3878 | N29: 50303.39 | O29: -102366.5 | P29: =-3861438.83+102366.5+3138981.93+60883.61 -> -559206.79 | Q29: 60883.61 | S29: -722456.9 | T29: 50303.39 | U29: =-72932.26+54361+63518.81-50303.39 -> -5355.84 | V29: 54361 | X29: -9413.45 | Y29: -722456.9 | Z29: =2294681.75-163250-2942456.23+722456.9 -> -88567.58 | AA29: -163250 | AF29: -647774.48 | AG29: -9413.45 | AH29: =19415.37-7246-31099.05+9413.45 -> -9516.23 | AI29: -7246 | AK29: -11683.68 | AL29: -647774.48 | AM29: =1966910.71-559207-2336595.65+647774.48 -> -281117.46 | AN29: -559207 | AS29: -369684.94 | AT29: -11683.68 | AU29: =251.82-29528.23+11683.68+14492 -> -3100.73 | AV29: =-27582+14492-12076.67 -> -25166.67 | AX29: 10382.26 | AY29: -88567 | AZ29: -330 | BA29: -281117.94 | BB29: 10712.26 | BC29: -4132.433718 | BD29: -1377.477906 | BE29: -275915.5916 | BF29: -359302.68 | BG29: 0
A30: 6 | C30: RSVA - Global Adjustment | D30: 1589 | E30: 674152.17 | F30: =1834309.57-674152.17-1428921.62+90242 -> -178522.22 | G30: 90242 | I30: 405387.95 | J30: -49307.88 | K30: =-52146.09+49307.88+1523.26+2271 -> 956.05 | L30: 2271 | N30: -50622.83 | O30: 405387.95 | P30: =-3540423.73+674152.17+3813111.58-405387.95 -> 541452.07 | Q30: 674152.17 | S30: 272687.85 | T30: -50622.83 | U30: =-66896.63+50622.83+61958.1-42472 -> 3212.3 | V30: -42472 | X30: -4938.53 | Y30: 272687.85 | Z30: =1903412.3-272687.85-268764-1450428.33 -> -88467.88 | AA30: -268764 | AF30: 452983.97 | AG30: -4938.53 | AH30: =29532.21-13401-9171.8 -> 6959.41 | AI30: -13401 | AK30: 15421.88 | AL30: 452983.97 | AM30: =2204565.11-452983.97-2220838.77+541452 -> 72194.37 | AN30: 541452 | AS30: -16273.66 | AT30: 15421.88 | AU30: =51791.54-7764-22335-15421.88 -> 6270.66 | AV30: =-7764-22335+26802 -> -3297 | AX30: 24989.54 | AY30: -88468 | AZ30: -5351 | BA30: 72194.34 | BB30: 30340.54 | BC30: 1061.256798 | BD30: 353.752266 | BE30: 103949.8891 | BF30: 8715.87 | BG30: -0.009999999851
A31: 7 | C31: Recovery of Regulatory Asset Balances | D31: 1590 | I31: 0 | N31: 0 | O31: 0 | S31: 0 | T31: 0 | X31: 0 | Y31: 0 | AF31: 0 | AG31: 0 | AK31: 0 | AL31: 0 | AS31: 0 | AT31: 0 | AX31: 0 | BA31: 0 | BB31: 0 | BE31: 0 | BG31: 0
A32: 8 | C32: Disposition and Recovery/Refund of Regulatory Balances (2008)4 | D32: 1595 | I32: 0 | N32: 0 | O32: =I32 -> 0 | S32: 0 | T32: 0 | X32: 0 | Y32: 0 | AF32: 0 | AG32: 0 | AK32: 0 | AL32: 0 | AS32: 0 | AT32: 0 | AX32: 0 | BA32: 0 | BB32: 0 | BE32: 0 | BG32: 0
A33: 9 | C33: Disposition and Recovery/Refund of Regulatory Balances (2009)4 | D33: 1595 | E33: -177517.37 | F33: 230208.93 | I33: 52691.56 | J33: =-6305-359.88 -> -6664.88 | K33: =-956.06+33.09+359.88 -> -563.09 | N33: -7227.97 | O33: =I33 -> 52691.56 | P33: =166762.36-52691.56-31524.69 -> 82546.11 | S33: 135237.67 | T33: -7227.97 | U33: =-990.58+922.97+2003.76 -> 1936.15 | X33: -5291.82 | Y33: 135237.67 | Z33: =1556.82+1-12552.9 -> -10995.08 | AF33: 124242.59 | AG33: -5291.82 | AH33: =2868.38-1013.18 -> 1855.2 | AK33: -3436.62 | AL33: 124242.59 | AM33: 1.43 | AN33: =135237.67-10993.65 -> 124244.02 | AS33: -4.365574569e-11 | AT33: -3436.62 | AU33: =3655.18-2868.38-3655.18+2642 -> -226.38 | AV33: =-6305+2642 -> -3663 | AX33: 4.547473509e-13 | BA33: -4.365574569e-11 | BB33: 4.547473509e-13 | BE33: -4.320099833e-11 | BG33: 4.320099833e-11
A34: 9 | C34: Disposition and Recovery/Refund of Regulatory Balances (2010)4 | D34: 1595 | E34: 0 | F34: =197553.58-372534+90242-72489.86 -> -157228.28 | I34: -157228.28 | J34: 0 | K34: =-1784.23+367.38 -> -1416.85 | M34: =6219-2271 -> 3948 | N34: 2531.15 | O34: =I34 -> -157228.28 | P34: =-194340.91+174980.42+140798.19+24767.55-17752.14-43702.43 -> 84750.68 | S34: -72477.6 | T34: 2531.15 | U34: =-3608.27+1784.23+841.67-253.29+399.43-367.38 -> -1203.61 | X34: 1327.54 | Y34: -72477.6 | Z34: =-53545.72+53542.72+16-14 -> -1 | AF34: -72478.6 | AG34: 1327.54 | AH34: =-3553.8+2766.6-278.34 -> -1065.54 | AK34: 262 | AL34: -72478.6 | AM34: =53574.61-53542.72-53574.61+53529.72+18966.77-18934.88-18966.77+18948.88 -> 1 | AN34: =-53542.72-18934.88 -> -72477.6 | AS34: -2.910383046e-11 | AT34: 262 | AU34: =3881.7-2766.6-3881.7+3553.8+371.26-278.34-371.26+132.2 -> 641.06 | AV34: =6219-2271-2766.6-278.34 -> 903.06 | AX34: 0 | BA34: -2.910383046e-11 | BB34: 0 | BE34: -2.910383046e-11 | BG34: 2.910383046e-11
A35: 9 | C35: Disposition and Recovery/Refund of Regulatory Balances (2011)4 | D35: 1595 | I35: 0 | N35: 0 | O35: =I35 -> 0 | P35: =-263090.87+139333.36-372932.88+676152.17 -> 179461.78 | S35: 179461.78 | T35: 0 | U35: =-2121.2+5388.01 -> 3266.81 | W35: =44249-42472 -> 1777 | X35: 5043.81 | Y35: 179461.78 | Z35: =102609.73-154339.9+123757.51+377232.59-303219.29-268105.43 -> -122064.79 | AF35: 57396.99 | AG35: 5043.81 | AH35: =-2979.12+2121.2+7306.36-5388.01 -> 1060.43 | AK35: 6104.24 | AL35: 57396.99 | AM35: =806.95-52020.49+51730.17+110417.95-109127.16-1714.46 -> 92.96 | AS35: 57489.95 | AT35: 6104.24 | AU35: =-3734.63+2979.12+8908.56-7306.36 -> 846.69 | AX35: 6950.93 | AY35: =-51213.58+108703.49 -> 57489.91 | AZ35: =44249-42472-4048.31+9574.37 -> 7303.06 | BA35: 0.04000000009 | BB35: -352.13 | BC35: =+BA35*0.0147 -> 0.0005880000013 | BD35: =+BA35*0.0147*0.333333333333333 -> 0.0001960000004 | BE35: =SUM(BA35:BD35) -> -352.089216 | BF35: 64440.98 | BG35: 0.09999999991
A36: 9 | C36: Disposition and Recovery/Refund of Regulatory Balances (2012)4 | D36: 1595 | I36: 0 | N36: 0 | O36: =I36 -> 0 | S36: 0 | T36: =N36 -> 0 | X36: 0 | Y36: =S36 -> 0 | Z36: =143487.11-168028.37-268764+176932.44 -> -116372.82 | AF36: =Y36+Z36-AA36+SUM(AB36:AE36) -> -116372.82 | AG36: =X36 -> 0 | AH36: =-1171.68-2048.76 -> -3220.44 | AJ36: =-37649.63-13401 -> -51050.63 | AK36: =AG36+AH36-AI36+AJ36 -> -54271.07 | AL36: =AF36 -> -116372.82 | AM36: =105108.42-58009.66+24541.26+157044.58-168015+91831.56 -> 152501.16 | AS36: =AL36+AM36-AN36+SUM(AO36:AR36) -> 36128.34 | AT36: =AK36 -> -54271.07 | AU36: =652.21-1206.95+1171.68+49.08-2416.32+2048.76 -> 298.46 | AX36: =AT36+AU36-AV36+AW36 -> -53972.61 | BA36: 36128.34 | BB36: -53972.61 | BC36: 531.086598 | BD36: 177.028866 | BE36: =SUM(BA36:BD36) -> -17136.15454 | BF36: -17838.362 | BG36: 5.908
C38: RSVA - Global Adjustment | D38: 1589 | E38: =E30 -> 674152.17 | F38: =F30 -> -178522.22 | G38: 90242 | H38: 0 | I38: 405387.95 | J38: -49307.88 | K38: 956.05 | L38: 2271 | M38: 0 | N38: -50622.83 | O38: =O30 -> 405387.95 | P38: =P30 -> 541452.07 | Q38: 674152.17 | R38: 0 | S38: 272687.85 | T38: -50622.83 | U38: 3212.3 | V38: -42472 | W38: 0 | X38: -4938.53 | Y38: =Y30 -> 272687.85 | Z38: =Z30 -> -88467.88 | AA38: -268764 | AB38: 0 | AC38: 0 | AD38: 0 | AE38: 0 | AF38: =AF30 -> 452983.97 | AG38: -4938.53 | AH38: 6959.41 | AI38: -13401 | AJ38: =AJ30 -> 0 | AK38: 15421.88 | AL38: =AL30 -> 452983.97 | AM38: =AM30 -> 72194.37 | AN38: 541452 | AO38: 0 | AP38: 0 | AQ38: 0 | AR38: 0 | AS38: -16273.66 | AT38: 15421.88 | AU38: 6270.66 | AV38: -3297 | AW38: 0 | AX38: 24989.54 | AY38: -88468 | AZ38: =AZ30 -> -5351 | BA38: 72194.34 | BB38: 30340.54 | BC38: 1061.256798 | BD38: 353.752266 | BE38: 103949.8891 | BF38: 8715.87 | BG38: -0.009999999851
C39: Total Group 1 Balance excluding Account 1589 - Global Adjustment | E39: =SUM(E24:E29,E31:E36) -> -440605.51 | F39: =SUM(F24:F29,F31:F36) -> -328776.52 | G39: -372534 | H39: 0 | I39: -396848.03 | J39: 40251.88 | K39: -2982.91 | L39: 1677 | M39: 3948 | N39: 39539.97 | O39: =SUM(O24:O29,O31:O36) -> -396848.03 | P39: =SUM(P24:P29,P31:P36) -> -418217.15 | Q39: -263087.84 | R39: 0 | S39: -551977.34 | T39: 39539.97 | U39: -2702.58 | V39: 44249 | W39: 1777 | X39: -5634.61 | Y39: =SUM(Y24:Y29,Y31:Y36) -> -551977.34 | Z39: =SUM(Z24:Z29,Z31:Z36) -> -544505.08 | AA39: -26501 | AB39: 0 | AC39: 0 | AD39: 0 | AE39: 0 | AF39: =SUM(AF24:AF29,AF31:AF36) -> -1069981.42 | AG39: -5634.61 | AH39: -14282.63 | AI39: -582 | AJ39: =SUM(AJ24:AJ29,AJ31:AJ36) -> -51050.63 | AK39: -70385.87 | AL39: =SUM(AL24:AL29,AL31:AL36) -> -1069981.42 | AM39: =SUM(AM24:AM29,AM31:AM36) -> -255392.82 | AN39: -713211.06 | AO39: 0 | AP39: 0 | AQ39: 0 | AR39: 0 | AS39: -612163.18 | AT39: -70385.87 | AU39: 11691.25 | AV39: -25619.61 | AW39: 0 | AX39: -33075.01 | AY39: -240301.36 | AZ39: =SUM(AZ24:AZ29,AZ31:AZ36) -> 3495.06 | BA39: -371861.82 | BB39: -36570.07 | BC39: -5531.188698 | BD39: -1843.729566 | BE39: -415806.8083 | BF39: -645233.522 | BG39: 4.668
C40: Total Group 1 Balance | E40: =SUM(E24:E36) -> 233546.66 | F40: =SUM(F24:F36) -> -507298.74 | G40: -282292 | H40: 0 | I40: 8539.92 | J40: -9056 | K40: -2026.86 | L40: 3948 | M40: 3948 | N40: -11082.86 | O40: =SUM(O24:O36) -> 8539.92 | P40: =SUM(P24:P36) -> 123234.92 | Q40: 411064.33 | R40: 0 | S40: -279289.49 | T40: -11082.86 | U40: 509.72 | V40: 1777 | W40: 1777 | X40: -10573.14 | Y40: =SUM(Y24:Y36) -> -279289.49 | Z40: =SUM(Z24:Z36) -> -632972.96 | AA40: -295265 | AB40: 0 | AC40: 0 | AD40: 0 | AE40: 0 | AF40: =SUM(AF24:AF36) -> -616997.45 | AG40: -10573.14 | AH40: -7323.22 | AI40: -13983 | AJ40: =SUM(AJ24:AJ36) -> -51050.63 | AK40: -54963.99 | AL40: =SUM(AL24:AL36) -> -616997.45 | AM40: =SUM(AM24:AM36) -> -183198.45 | AN40: -171759.06 | AO40: 0 | AP40: 0 | AQ40: 0 | AR40: 0 | AS40: -628436.84 | AT40: -54963.99 | AU40: 17961.91 | AV40: -28916.61 | AW40: 0 | AX40: -8085.47 | AY40: -328769.36 | AZ40: =SUM(AZ24:AZ36) -> -1855.94 | BA40: -299667.48 | BB40: -6229.53 | BC40: -4469.9319 | BD40: -1489.9773 | BE40: -311856.9192 | BF40: -636517.652 | BG40: 4.658
C42: LRAM Variance Account | D42: 1568 | I42: =E42+F42-G42+SUM(H42:H42) -> 0 | N42: =J42+K42-L42+M42 -> 0 | S42: =O42+P42-Q42+SUM(R42:R42) -> 0 | X42: =T42+U42-V42+W42 -> 0 | Y42: =S42 -> 0 | AF42: =Y42+Z42-AA42+SUM(AB42:AE42) -> 0 | AG42: =X42 -> 0 | AK42: =AG42+AH42-AI42+AJ42 -> 0 | AL42: =AF42 -> 0 | AS42: =AL42+AM42-AN42+SUM(AO42:AR42) -> 0 | AT42: =AK42 -> 0 | AX42: =AT42+AU42-AV42+AW42 -> 0 | AY42: 0 | AZ42: 0 | BA42: =AS42-AY42 -> 0 | BB42: =AX42-AZ42 -> 0 | BE42: =SUM(BA42:BD42) -> 0 | BG42: =BF42-SUM(AS42,AX42) -> 0
C44: Total including Account 1568 | E44: =E42+E40 -> 233546.66 | F44: =F42+F40 -> -507298.74 | G44: -282292 | H44: 0 | I44: 8539.92 | J44: -9056 | K44: -2026.86 | L44: 3948 | M44: 3948 | N44: -11082.86 | O44: 8539.92 | P44: 123234.92 | Q44: 411064.33 | R44: 0 | S44: -279289.49 | T44: -11082.86 | U44: 509.72 | V44: 1777 | W44: 1777 | X44: -10573.14 | Y44: -279289.49 | Z44: -632972.96 | AA44: -295265 | AB44: 0 | AC44: 0 | AD44: 0 | AE44: 0 | AF44: -616997.45 | AG44: -10573.14 | AH44: -7323.22 | AI44: -13983 | AJ44: -51050.63 | AK44: -54963.99 | AL44: -616997.45 | AM44: -183198.45 | AN44: -171759.06 | AO44: 0 | AP44: 0 | AQ44: 0 | AR44: 0 | AS44: -628436.84 | AT44: -54963.99 | AU44: 17961.91 | AV44: -28916.61 | AW44: 0 | AX44: -8085.47 | AY44: -328769.36 | AZ44: -1855.94 | BA44: -299667.48 | BB44: -6229.53 | BC44: -4469.9319 | BD44: -1489.9773 | BE44: -311856.9192 | BF44: -636517.652 | BG44: 4.658
C47: For all Board-Approved dispositions, please ensure that the disposition amount has the same sign (e.g: debit balances are to have a positive figure and credit balance are to have a negative figure) as per the related Board decision.
B50: 1 | C50: Please provide explanations for the nature of the adjustments. If the adjustment relates to previously Board Approved disposed balances, please provide amounts for adjustments and include supporting documentations.
B51: 2 | C51: For RSVA accounts only, report the net variance to the account during the year. For all other accounts, record the transactions during the year.
B52: 3 | C52: If the LDC’s rate year begins on January 1, 2015, the projected interest is recorded from January 1, 2014 to December 31, 2014 on the December 31, 2013 balances adjusted for the disposed balances approved by the Board in the 2014 rate decision. If the LDC’s rate year begins on May 1, 2015, the projected interest is recorded from January 1, 2014 to April 30, 2015 on the December 31, 2013 balances adjusted for the disposed interest balances approved by the Board in the 2014 rate decision.
B53: 4 | C53: Include Account 1595 as part of Group 1 accounts (lines 31, 32, 33 and 34) for review and disposition if the recovery (or refund) period has been completed. If the recovery (or refund) period has not been completed, do not include the respective balance in Account 1595 for disposition at this time.

Sheet 6. Billing Det. for Def-Var
AS1: As per Section 3.2.3 of the 2015 Filing Requirements for Electricity Distribution Rate Applications, an applicant may elect to dispose of the Group 1 account balances below the threshold. If doing so, please select YES from the adjacent drop-down cell and also indicate so in the Manager's Summary. If not, please select NO.
A13: In the green shaded cells, enter the most recent Board Approved volumetric forecast. If there is a material difference between the latest Board-approved volumetric forecast and the most recent 12-month actual volumetric data, use the most recent 12-month actual data. Do not enter data for the MicroFit class.
E15: Billed kWh for Non-RPP Customers | F15: Estimated kW for Non-RPP Customers | H15: 1590 Recovery Share Proportion* | I15: 1595 Recovery Share Proportion (2008) 1 | J15: 1595 Recovery Share Proportion (2009) 1 | K15: 1595 Recovery Share Proportion (2010) 1 | L15: 1595 Recovery Share Proportion (2011) 1 | M15: 1595 Recovery Share Proportion (2012) 1 | N15: 1568 LRAM Variance Account Class Allocation ($ amounts) | O15: Number of Customers for Residential and GS<50 classes3
A16: Rate Class | B16: Unit | C16: Metered kWh | D16: Metered kW
A17: RESIDENTIAL | B17: $/kWh | C17: 49712193 | E17: 13757 | F17: =IF(ISERROR(D17/C17*E17), 0, D17/C17*E17) -> 0 | J17: 0.0677 | K17: 0.2729 | L17: 0.272 | O17: 6117
A18: GENERAL SERVICE LESS THAN 50 KW | B18: $/kWh | C18: 22057503 | E18: 11944094 | F18: =IF(ISERROR(D18/C18*E18), 0, D18/C18*E18) -> 0 | J18: 0.1196 | K18: 0.1344 | L18: 0.124 | O18: 649
A19: GENERAL SERVICE 50 TO 499 KW | B19: $/kW | C19: 43631664 | D19: 128881 | E19: 29588036 | F19: =IF(ISERROR(D19/C19*E19), 0, D19/C19*E19) -> 87398.35519 | J19: 0.2631 | K19: 0.1961 | L19: 0.208
A20: GENERAL SERVICE 50 TO 1,499 KW | B20: $/kW | C20: 36854959 | D20: 92293 | E20: 21751124 | F20: =IF(ISERROR(D20/C20*E20), 0, D20/C20*E20) -> 54469.64375 | J20: -0.0007 | K20: 0.1348 | L20: 0.19
A21: GENERAL SERVICE EQUAL TO OR GREATER THAN 1,500 KW | B21: $/kW | C21: 36834399 | D21: 69490 | E21: 433498 | F21: =IF(ISERROR(D21/C21*E21), 0, D21/C21*E21) -> 817.8164118 | J21: 0.0051 | K21: 0.2516 | L21: 0.195
A22: UNMETERED SCATTERED LOAD | B22: $/kWh | C22: 388747 | E22: 321315 | F22: =IF(ISERROR(D22/C22*E22), 0, D22/C22*E22) -> 0 | J22: 0.0024 | K22: 0.0026 | L22: 0.002
A23: SENTINEL LIGHTING | B23: $/kW | C23: 115970 | D23: 320.3 | E23: 115970 | F23: =IF(ISERROR(D23/C23*E23), 0, D23/C23*E23) -> 320.3 | J23: 0.1789 | K23: 0.0004 | L23: 0.001
A24: STREET LIGHTING | B24: $/kW | C24: 1423015 | D24: 3831.24 | E24: 1423015 | F24: =IF(ISERROR(D24/C24*E24), 0, D24/C24*E24) -> 3831.24 | J24: 0.3639 | K24: 0.0072 | L24: 0.008
A25: microFIT
B27: Total | C27: =SUM(C17:C25) -> 191018450 | D27: =SUM(D17:D25) -> 294815.54 | E27: 65590809 | F27: 146837.3554 | H27: 0 | I27: 0 | J27: 1 | K27: 1 | L27: 1 | M27: 0 | N27: 0 | O27: 6766
M28: Balance as per Sheet 5 | N28: =ROUND('5. 2014 Continuity Schedule'!BE42, 0) -> 0
M29: Variance | N29: =N27-N28 -> 0
A31: Threshold Test
A32: Total Claim (including Account 1568) | B32: ='5. 2014 Continuity Schedule'!BE44 -> -311856.9192
A33: Total Claim for Threshold Test (All Group 1 Accounts) | B33: ='5. 2014 Continuity Schedule'!BE40 -> -311856.9192
A34: Threshold Test (Total claim per kWh) 2 | B34: =IF(ISERROR(B33/C27), 0, B33/C27) -> -0.001632601035 | D34: =IF(AND(B34>-0.001,B34<0.001),"Claim does not meet the threshold test.","") -> 
A36: =IF(AND(B34>-0.001, B34<0.001), AS1, "") -> 
A40: 1 Residual Account balance to be allocated to rate classes in proportion to the recovery share as established when rate riders were implemented.
A41: 2 The Threshold Test does not include the amount in 1568.
A42: 3 The proportion of customers for the Residential and GS<50 Classes will be used to allocate Account 1551.

Sheet 6. hidden (hidden)
E1: Billed kWh for Non-RPP Customers | F1: Estimated kW for Non-RPP Customers | G1: Distribution Revenue 1 | H1: 1590 Recovery Share Proportion* | I1: 1595 Recovery Share Proportion (2008) 2 | J1: 1595 Recovery Share Proportion (2009) 2 | K1: 1595 Recovery Share Proportion (2010) 2 | L1: 1595 Recovery Share Proportion (2011) 2 | M1: 1568 LRAM Variance Account Class Allocation
A2: Rate Class | B2: Unit | C2: Metered kWh | D2: Metered kW
A3: RESIDENTIAL | B3: $/kWh | C3: 49712193 | D3: 0 | E3: 13757 | G3: 0 | H3: 0 | I3: 0 | J3: 0.0677 | K3: 0.2729 | L3: 0.272 | M3: 0 | N3: 0 | O3: 6117
A4: GENERAL SERVICE LESS THAN 50 KW | B4: $/kWh | C4: 22057503 | D4: 0 | E4: 11944094 | G4: 0 | H4: 0 | I4: 0 | J4: 0.1196 | K4: 0.1344 | L4: 0.124 | M4: 0 | N4: 0 | O4: 649
A5: GENERAL SERVICE 50 TO 499 KW | B5: $/kW | C5: 43631664 | D5: 128881 | E5: 29588036 | G5: 0 | H5: 0 | I5: 0 | J5: 0.2631 | K5: 0.1961 | L5: 0.208 | M5: 0 | N5: 0 | O5: 0
A6: GENERAL SERVICE 50 TO 1,499 KW | B6: $/kW | C6: 36854959 | D6: 92293 | E6: 21751124 | G6: 0 | H6: 0 | I6: 0 | J6: -0.0007 | K6: 0.1348 | L6: 0.19 | M6: 0 | N6: 0 | O6: 0
A7: GENERAL SERVICE EQUAL TO OR GREATER THAN 1,500 KW | B7: $/kW | C7: 36834399 | D7: 69490 | E7: 433498 | G7: 0 | H7: 0 | I7: 0 | J7: 0.0051 | K7: 0.2516 | L7: 0.195 | M7: 0 | N7: 0 | O7: 0
A8: UNMETERED SCATTERED LOAD | B8: $/kWh | C8: 388747 | D8: 0 | E8: 321315 | G8: 0 | H8: 0 | I8: 0 | J8: 0.0024 | K8: 0.0026 | L8: 0.002 | M8: 0 | N8: 0 | O8: 0
A9: SENTINEL LIGHTING | B9: $/kW | C9: 115970 | D9: 320.3 | E9: 115970 | G9: 0 | H9: 0 | I9: 0 | J9: 0.1789 | K9: 0.0004 | L9: 0.001 | M9: 0 | N9: 0 | O9: 0
A10: STREET LIGHTING | B10: $/kW | C10: 1423015 | D10: 3831.24 | E10: 1423015 | G10: 0 | H10: 0 | I10: 0 | J10: 0.3639 | K10: 0.0072 | L10: 0.008 | M10: 0 | N10: 0 | O10: 0
A11: microFIT | B11: 0 | C11: 0 | D11: 0 | E11: 0 | G11: 0 | H11: 0 | I11: 0 | J11: 0 | K11: 0 | L11: 0 | M11: 0 | N11: 0 | O11: 0

Sheet 7. Allocating Def-Var Balances
A13: No input required. This workshseet allocates the deferral/variance account balances (Group 1, 1589, and 1568) to the appropriate classes as per the EDDVAR Report dated July 31, 2009
A15: Allocation of Group 1 Accounts (including Account 1568)
C16: % of Total kWh | D16: % of Total non-RPP kWh | E16: % of Customer Numbers ** | N16: 1595 (2008) | O16: 1595 (2009) | P16: 1595 (2010) | Q16: 1595 (2011) | R16: 1595 (2012) | S16: 1568
A17: Rate Class | F17: 1550 | G17: 1551 | H17: 1580 | I17: 1584 | J17: 1586 | K17: 1588 | L17: 1589 | M17: 1590
A19: RESIDENTIAL | C19: =VLOOKUP(A19, '6. Billing Det. for Def-Var'!A17:D25, 3,0)/'6. Billing Det. for Def-Var'!C27 -> 0.2602481226 | D19: =VLOOKUP(A19, '6. Billing Det. for Def-Var'!A17:E25, 5,0)/'6. Billing Det. for Def-Var'!E27 -> 0.0002097397518 | E19: =VLOOKUP(A19, '6. Billing Det. for Def-Var'!A17:O25, 15,0)/'6. Billing Det. for Def-Var'!O27 -> 0.9040792196 | F19: =C19* '5. 2014 Continuity Schedule'!BE24 -> 0 | G19: =E19* '5. 2014 Continuity Schedule'!BE25 -> 4072.560457 | H19: =C19* '5. 2014 Continuity Schedule'!BE26 -> -34509.59946 | I19: =C19* '5. 2014 Continuity Schedule'!BE27 -> 1173.656638 | J19: =C19* '5. 2014 Continuity Schedule'!BE28 -> 308.4722215 | K19: =C19* '5. 2014 Continuity Schedule'!BE29 -> -71806.51472 | L19: =D19* '5. 2014 Continuity Schedule'!BE30 -> 21.80242393 | M19: ='6. Billing Det. for Def-Var'!H17* '5. 2014 Continuity Schedule'!BE31 -> 0 | N19: ='6. Billing Det. for Def-Var'!I17* '5. 2014 Continuity Schedule'!BE32 -> 0 | O19: ='6. Billing Det. for Def-Var'!J17* '5. 2014 Continuity Schedule'!BE33 -> -2.924707587e-12 | P19: ='6. Billing Det. for Def-Var'!K17* '5. 2014 Continuity Schedule'!BE34 -> -7.942435332e-12 | Q19: ='6. Billing Det. for Def-Var'!L17* '5. 2014 Continuity Schedule'!BE35 -> -95.76826675 | R19: ='6. Billing Det. for Def-Var'!M17* '5. 2014 Continuity Schedule'!BE36 -> 0 | S19: ='6. Billing Det. for Def-Var'!N17 -> 0
A20: GENERAL SERVICE LESS THAN 50 KW | C20: =VLOOKUP(A20, '6. Billing Det. for Def-Var'!A17:D25, 3,0)/'6. Billing Det. for Def-Var'!C27 -> 0.1154731546 | D20: =VLOOKUP(A20, '6. Billing Det. for Def-Var'!A17:E25, 5,0)/'6. Billing Det. for Def-Var'!E27 -> 0.1821001171 | E20: =VLOOKUP(A20, '6. Billing Det. for Def-Var'!A17:O25, 15,0)/'6. Billing Det. for Def-Var'!O27 -> 0.09592078037 | F20: =C20* '5. 2014 Continuity Schedule'!BE24 -> 0 | G20: =E20* '5. 2014 Continuity Schedule'!BE25 -> 432.0895433 | H20: =C20* '5. 2014 Continuity Schedule'!BE26 -> -15312.05018 | I20: =C20* '5. 2014 Continuity Schedule'!BE27 -> 520.7562421 | J20: =C20* '5. 2014 Continuity Schedule'!BE28 -> 136.8703841 | K20: =C20* '5. 2014 Continuity Schedule'!BE29 -> -31860.84376 | L20: =D20* '5. 2014 Continuity Schedule'!BE30 -> 18929.28697 | M20: ='6. Billing Det. for Def-Var'!H18* '5. 2014 Continuity Schedule'!BE31 -> 0 | N20: ='6. Billing Det. for Def-Var'!I18* '5. 2014 Continuity Schedule'!BE32 -> 0 | O20: ='6. Billing Det. for Def-Var'!J18* '5. 2014 Continuity Schedule'!BE33 -> -5.166839401e-12 | P20: ='6. Billing Det. for Def-Var'!K18* '5. 2014 Continuity Schedule'!BE34 -> -3.911554813e-12 | Q20: ='6. Billing Det. for Def-Var'!L18* '5. 2014 Continuity Schedule'!BE35 -> -43.65906278 | R20: ='6. Billing Det. for Def-Var'!M18* '5. 2014 Continuity Schedule'!BE36 -> 0 | S20: ='6. Billing Det. for Def-Var'!N18 -> 0
A21: GENERAL SERVICE 50 TO 499 KW | C21: =VLOOKUP(A21, '6. Billing Det. for Def-Var'!A17:D25, 3,0)/'6. Billing Det. for Def-Var'!C27 -> 0.2284159671 | D21: =VLOOKUP(A21, '6. Billing Det. for Def-Var'!A17:E25, 5,0)/'6. Billing Det. for Def-Var'!E27 -> 0.4511003363 | F21: =C21* '5. 2014 Continuity Schedule'!BE24 -> 0 | G21: =E21* '5. 2014 Continuity Schedule'!BE25 -> 0 | H21: =C21* '5. 2014 Continuity Schedule'!BE26 -> -30288.57022 | I21: =C21* '5. 2014 Continuity Schedule'!BE27 -> 1030.101249 | J21: =C21* '5. 2014 Continuity Schedule'!BE28 -> 270.7415528 | K21: =C21* '5. 2014 Continuity Schedule'!BE29 -> -63023.52671 | L21: =D21* '5. 2014 Continuity Schedule'!BE30 -> 46891.82992 | M21: ='6. Billing Det. for Def-Var'!H19* '5. 2014 Continuity Schedule'!BE31 -> 0 | N21: ='6. Billing Det. for Def-Var'!I19* '5. 2014 Continuity Schedule'!BE32 -> 0 | O21: ='6. Billing Det. for Def-Var'!J19* '5. 2014 Continuity Schedule'!BE33 -> -1.136618266e-11 | P21: ='6. Billing Det. for Def-Var'!K19* '5. 2014 Continuity Schedule'!BE34 -> -5.707261153e-12 | Q21: ='6. Billing Det. for Def-Var'!L19* '5. 2014 Continuity Schedule'!BE35 -> -73.23455693 | R21: ='6. Billing Det. for Def-Var'!M19* '5. 2014 Continuity Schedule'!BE36 -> 0 | S21: ='6. Billing Det. for Def-Var'!N19 -> 0
A22: GENERAL SERVICE 50 TO 1,499 KW | C22: =VLOOKUP(A22, '6. Billing Det. for Def-Var'!A17:D25, 3,0)/'6. Billing Det. for Def-Var'!C27 -> 0.1929392632 | D22: =VLOOKUP(A22, '6. Billing Det. for Def-Var'!A17:E25, 5,0)/'6. Billing Det. for Def-Var'!E27 -> 0.3316184742 | F22: =C22* '5. 2014 Continuity Schedule'!BE24 -> 0 | G22: =E22* '5. 2014 Continuity Schedule'!BE25 -> 0 | H22: =C22* '5. 2014 Continuity Schedule'!BE26 -> -25584.26407 | I22: =C22* '5. 2014 Continuity Schedule'!BE27 -> 870.1098194 | J22: =C22* '5. 2014 Continuity Schedule'!BE28 -> 228.690999 | K22: =C22* '5. 2014 Continuity Schedule'!BE29 -> -53234.95095 | L22: =D22* '5. 2014 Continuity Schedule'!BE30 -> 34471.7036 | M22: ='6. Billing Det. for Def-Var'!H20* '5. 2014 Continuity Schedule'!BE31 -> 0 | N22: ='6. Billing Det. for Def-Var'!I20* '5. 2014 Continuity Schedule'!BE32 -> 0 | O22: ='6. Billing Det. for Def-Var'!J20* '5. 2014 Continuity Schedule'!BE33 -> 3.024069883e-14 | P22: ='6. Billing Det. for Def-Var'!K20* '5. 2014 Continuity Schedule'!BE34 -> -3.923196346e-12 | Q22: ='6. Billing Det. for Def-Var'!L20* '5. 2014 Continuity Schedule'!BE35 -> -66.89695104 | R22: ='6. Billing Det. for Def-Var'!M20* '5. 2014 Continuity Schedule'!BE36 -> 0 | S22: ='6. Billing Det. for Def-Var'!N20 -> 0
A23: GENERAL SERVICE EQUAL TO OR GREATER THAN 1,500 KW | C23: =VLOOKUP(A23, '6. Billing Det. for Def-Var'!A17:D25, 3,0)/'6. Billing Det. for Def-Var'!C27 -> 0.1928316296 | D23: =VLOOKUP(A23, '6. Billing Det. for Def-Var'!A17:E25, 5,0)/'6. Billing Det. for Def-Var'!E27 -> 0.006609127203 | F23: =C23* '5. 2014 Continuity Schedule'!BE24 -> 0 | G23: =E23* '5. 2014 Continuity Schedule'!BE25 -> 0 | H23: =C23* '5. 2014 Continuity Schedule'!BE26 -> -25569.99157 | I23: =C23* '5. 2014 Continuity Schedule'!BE27 -> 869.6244178 | J23: =C23* '5. 2014 Continuity Schedule'!BE28 -> 228.5634208 | K23: =C23* '5. 2014 Continuity Schedule'!BE29 -> -53205.25317 | L23: =D23* '5. 2014 Continuity Schedule'!BE30 -> 687.0180395 | M23: ='6. Billing Det. for Def-Var'!H21* '5. 2014 Continuity Schedule'!BE31 -> 0 | N23: ='6. Billing Det. for Def-Var'!I21* '5. 2014 Continuity Schedule'!BE32 -> 0 | O23: ='6. Billing Det. for Def-Var'!J21* '5. 2014 Continuity Schedule'!BE33 -> -2.203250915e-13 | P23: ='6. Billing Det. for Def-Var'!K21* '5. 2014 Continuity Schedule'!BE34 -> -7.322523743e-12 | Q23: ='6. Billing Det. for Def-Var'!L21* '5. 2014 Continuity Schedule'!BE35 -> -68.65739712 | R23: ='6. Billing Det. for Def-Var'!M21* '5. 2014 Continuity Schedule'!BE36 -> 0 | S23: ='6. Billing Det. for Def-Var'!N21 -> 0
A24: UNMETERED SCATTERED LOAD | C24: =VLOOKUP(A24, '6. Billing Det. for Def-Var'!A17:D25, 3,0)/'6. Billing Det. for Def-Var'!C27 -> 0.00203512802 | D24: =VLOOKUP(A24, '6. Billing Det. for Def-Var'!A17:E25, 5,0)/'6. Billing Det. for Def-Var'!E27 -> 0.004898780864 | F24: =C24* '5. 2014 Continuity Schedule'!BE24 -> 0 | G24: =E24* '5. 2014 Continuity Schedule'!BE25 -> 0 | H24: =C24* '5. 2014 Continuity Schedule'!BE26 -> -269.863437 | I24: =C24* '5. 2014 Continuity Schedule'!BE27 -> 9.177939446 | J24: =C24* '5. 2014 Continuity Schedule'!BE28 -> 2.412238195 | K24: =C24* '5. 2014 Continuity Schedule'!BE29 -> -561.5235518 | L24: =D24* '5. 2014 Continuity Schedule'!BE30 -> 509.2277274 | M24: ='6. Billing Det. for Def-Var'!H22* '5. 2014 Continuity Schedule'!BE31 -> 0 | N24: ='6. Billing Det. for Def-Var'!I22* '5. 2014 Continuity Schedule'!BE32 -> 0 | O24: ='6. Billing Det. for Def-Var'!J22* '5. 2014 Continuity Schedule'!BE33 -> -1.03682396e-13 | P24: ='6. Billing Det. for Def-Var'!K22* '5. 2014 Continuity Schedule'!BE34 -> -7.566995919e-14 | Q24: ='6. Billing Det. for Def-Var'!L22* '5. 2014 Continuity Schedule'!BE35 -> -0.704178432 | R24: ='6. Billing Det. for Def-Var'!M22* '5. 2014 Continuity Schedule'!BE36 -> 0 | S24: ='6. Billing Det. for Def-Var'!N22 -> 0
A25: SENTINEL LIGHTING | C25: =VLOOKUP(A25, '6. Billing Det. for Def-Var'!A17:D25, 3,0)/'6. Billing Det. for Def-Var'!C27 -> 0.0006071141296 | D25: =VLOOKUP(A25, '6. Billing Det. for Def-Var'!A17:E25, 5,0)/'6. Billing Det. for Def-Var'!E27 -> 0.001768083086 | F25: =C25* '5. 2014 Continuity Schedule'!BE24 -> 0 | G25: =E25* '5. 2014 Continuity Schedule'!BE25 -> 0 | H25: =C25* '5. 2014 Continuity Schedule'!BE26 -> -80.50496283 | I25: =C25* '5. 2014 Continuity Schedule'!BE27 -> 2.737939167 | J25: =C25* '5. 2014 Continuity Schedule'!BE28 -> 0.7196126619 | K25: =C25* '5. 2014 Continuity Schedule'!BE29 -> -167.5122542 | L25: =D25* '5. 2014 Continuity Schedule'!BE30 -> 183.7920407 | M25: ='6. Billing Det. for Def-Var'!H23* '5. 2014 Continuity Schedule'!BE31 -> 0 | N25: ='6. Billing Det. for Def-Var'!I23* '5. 2014 Continuity Schedule'!BE32 -> 0 | O25: ='6. Billing Det. for Def-Var'!J23* '5. 2014 Continuity Schedule'!BE33 -> -7.728658602e-12 | P25: ='6. Billing Det. for Def-Var'!K23* '5. 2014 Continuity Schedule'!BE34 -> -1.164153218e-14 | Q25: ='6. Billing Det. for Def-Var'!L23* '5. 2014 Continuity Schedule'!BE35 -> -0.352089216 | R25: ='6. Billing Det. for Def-Var'!M23* '5. 2014 Continuity Schedule'!BE36 -> 0 | S25: ='6. Billing Det. for Def-Var'!N23 -> 0
A26: STREET LIGHTING | C26: =VLOOKUP(A26, '6. Billing Det. for Def-Var'!A17:D25, 3,0)/'6. Billing Det. for Def-Var'!C27 -> 0.007449620704 | D26: =VLOOKUP(A26, '6. Billing Det. for Def-Var'!A17:E25, 5,0)/'6. Billing Det. for Def-Var'!E27 -> 0.02169534149 | F26: =C26* '5. 2014 Continuity Schedule'!BE24 -> 0 | G26: =E26* '5. 2014 Continuity Schedule'!BE25 -> 0 | H26: =C26* '5. 2014 Continuity Schedule'!BE26 -> -987.8396972 | I26: =C26* '5. 2014 Continuity Schedule'!BE27 -> 33.59600331 | J26: =C26* '5. 2014 Continuity Schedule'!BE28 -> 8.830038907 | K26: =C26* '5. 2014 Continuity Schedule'!BE29 -> -2055.466504 | L26: =D26* '5. 2014 Continuity Schedule'!BE30 -> 2255.228341 | M26: ='6. Billing Det. for Def-Var'!H24* '5. 2014 Continuity Schedule'!BE31 -> 0 | N26: ='6. Billing Det. for Def-Var'!I24* '5. 2014 Continuity Schedule'!BE32 -> 0 | O26: ='6. Billing Det. for Def-Var'!J24* '5. 2014 Continuity Schedule'!BE33 -> -1.572084329e-11 | P26: ='6. Billing Det. for Def-Var'!K24* '5. 2014 Continuity Schedule'!BE34 -> -2.095475793e-13 | Q26: ='6. Billing Det. for Def-Var'!L24* '5. 2014 Continuity Schedule'!BE35 -> -2.816713728 | R26: ='6. Billing Det. for Def-Var'!M24* '5. 2014 Continuity Schedule'!BE36 -> 0 | S26: ='6. Billing Det. for Def-Var'!N24 -> 0
A27: microFIT | C27: 0 | D27: 0 | E27: 0 | F27: =C27* '5. 2014 Continuity Schedule'!BE24 -> 0 | G27: =E27* '5. 2014 Continuity Schedule'!BE25 -> 0 | H27: =C27* '5. 2014 Continuity Schedule'!BE26 -> 0 | I27: =C27* '5. 2014 Continuity Schedule'!BE27 -> 0 | J27: =C27* '5. 2014 Continuity Schedule'!BE28 -> 0 | K27: =C27* '5. 2014 Continuity Schedule'!BE29 -> 0 | L27: =D27* '5. 2014 Continuity Schedule'!BE30 -> 0 | M27: ='6. Billing Det. for Def-Var'!H25* '5. 2014 Continuity Schedule'!BE31 -> 0 | N27: ='6. Billing Det. for Def-Var'!I25* '5. 2014 Continuity Schedule'!BE32 -> 0 | O27: ='6. Billing Det. for Def-Var'!J25* '5. 2014 Continuity Schedule'!BE33 -> 0 | P27: ='6. Billing Det. for Def-Var'!K25* '5. 2014 Continuity Schedule'!BE34 -> 0 | Q27: ='6. Billing Det. for Def-Var'!L25* '5. 2014 Continuity Schedule'!BE35 -> 0 | R27: ='6. Billing Det. for Def-Var'!M25* '5. 2014 Continuity Schedule'!BE36 -> 0 | S27: ='6. Billing Det. for Def-Var'!N25 -> 0
A29: Total | C29: =SUM(C19:C27) -> 1 | D29: =SUM(D19:D27) -> 1 | E29: =SUM(E19:E27) -> 1 | F29: =SUM(F19:F27) -> 0 | G29: =SUM(G19:G27) -> 4504.65 | H29: =SUM(H19:H27) -> -132602.6836 | I29: =SUM(I19:I27) -> 4509.760248 | J29: =SUM(J19:J27) -> 1185.300468 | K29: =SUM(K19:K27) -> -275915.5916 | L29: =SUM(L19:L27) -> 103949.8891 | M29: =SUM(M19:M27) -> 0 | N29: =SUM(N19:N27) -> 0 | O29: =SUM(O19:O27) -> -4.320099833e-11 | P29: =SUM(P19:P27) -> -2.910383046e-11 | Q29: =SUM(Q19:Q27) -> -352.089216 | R29: =SUM(R19:R27) -> 0 | S29: =SUM(S19:S27) -> 0
A32: * RSVA - Power (Excluding Global Adjustment)
A33: ** Used to allocate Account 1551 as this account records the variances arising from the Smart Metering Entity Charges to Residential and GS<50 customers.

Sheet 8. Calculation of Def-Var RR
A12: Input required at cell C15 only. This workshseet calculates rate riders related to the Deferral/Variance Account Disposition (if applicable), associated rate riders for the global adjustment account (1589) and Account 1568. Rate Riders will not be generated for the microFIT class.
A15: Please indicate the Rate Rider Recovery Period (in years) | C15: 1
E17: Balance of Accounts Allocated by kWh/kW (RPP) or Distribution Revenue | F17: Deferral/Variance Account Rate Rider | G17: Allocation of Balance in Account 1589 | H17: Billed kWh or Estimated kW for Non-RPP Customers | I17: Global Adjustment Rate Rider | J17: Allocation of Account 1568 | K17: Account 1568 Rate Rider
A18: Rate Class | B18: Unit | C18: Billed kWh | D18: Billed kW or kVA
A20: RESIDENTIAL | B20: $/kWh | C20: 49712193 | E20: =SUM('7. Allocating Def-Var Balances'!F19:K19)+SUM('7. Allocating Def-Var Balances'!M19:R19) -> -100857.1931 | F20: -0.002 | G20: 21.80242393 | H20: 13757 | I20: 0.0016
A21: GENERAL SERVICE LESS THAN 50 KW | B21: $/kWh | C21: 22057503 | E21: =SUM('7. Allocating Def-Var Balances'!F20:K20)+SUM('7. Allocating Def-Var Balances'!M20:R20) -> -46126.83683 | F21: -0.0021 | G21: 18929.28697 | H21: 11944094 | I21: 0.0016
A22: GENERAL SERVICE 50 TO 499 KW | B22: $/kW | C22: 43631664 | D22: 128881 | E22: =SUM('7. Allocating Def-Var Balances'!F21:K21)+SUM('7. Allocating Def-Var Balances'!M21:R21) -> -92084.48869 | F22: -0.7145 | G22: 46891.82992 | H22: 87398.35519 | I22: 0.5365
A23: GENERAL SERVICE 50 TO 1,499 KW | B23: $/kW | C23: 36854959 | D23: 92293 | E23: =SUM('7. Allocating Def-Var Balances'!F22:K22)+SUM('7. Allocating Def-Var Balances'!M22:R22) -> -77787.31116 | F23: -0.8428 | G23: 34471.7036 | H23: 54469.64375 | I23: 0.6329
A24: GENERAL SERVICE EQUAL TO OR GREATER THAN 1,500 KW | B24: $/kW | C24: 36834399 | D24: 69490 | E24: =SUM('7. Allocating Def-Var Balances'!F23:K23)+SUM('7. Allocating Def-Var Balances'!M23:R23) -> -77745.7143 | F24: -1.1188 | G24: 687.0180395 | H24: 817.8164118 | I24: 0.8401
A25: UNMETERED SCATTERED LOAD | B25: $/kWh | C25: 388747 | E25: =SUM('7. Allocating Def-Var Balances'!F24:K24)+SUM('7. Allocating Def-Var Balances'!M24:R24) -> -820.5009895 | F25: -0.0021 | G25: 509.2277274 | H25: 321315 | I25: 0.0016
A26: SENTINEL LIGHTING | B26: $/kW | C26: 115970 | D26: 320.3 | E26: =SUM('7. Allocating Def-Var Balances'!F25:K25)+SUM('7. Allocating Def-Var Balances'!M25:R25) -> -244.9117545 | F26: -0.7646 | G26: 183.7920407 | H26: 320.3 | I26: 0.5738
A27: STREET LIGHTING | B27: $/kW | C27: 1423015 | D27: 3831.24 | E27: =SUM('7. Allocating Def-Var Balances'!F26:K26)+SUM('7. Allocating Def-Var Balances'!M26:R26) -> -3003.696873 | F27: -0.784 | G27: 2255.228341 | H27: 3831.24 | I27: 0.5886
A28: microFIT
A29: Total | C29: =SUM(C20:C28) -> 191018450 | D29: =SUM(D20:D28) -> 294815.54 | E29: =SUM(E20:E28) -> -398670.6537 | G29: =SUM(G20:G28) -> 103949.8891 | H29: =SUM(H20:H28) -> 12426003.36 | J29: =SUM(J20:J28) -> 0

Sheet 9. STS - Billing Det & Rates
A11: Shared Tax Savings
A13: ="Enter your " & '1. Information Sheet'!F32 & " Board-Approved Billing Determinents into columns B, C and D." -> Enter your 2013 Board-Approved Billing Determinents into columns B, C and D.
A14: ="Enter your " & '1. Information Sheet'!F32 & " Board-Approved Base monthly service and volumetric charges into columns G, H and I." -> Enter your 2013 Board-Approved Base monthly service and volumetric charges into columns G, H and I.
A16: Rate Class | B16: Units | C16: Re-based Billed Customers or Connections | D16: Re-based Billed kWh | E16: Re-based Billed kW (if applicable) | G16: ='1. Information Sheet'!F32 &" Base Monthly Service Charge" -> 2013 Base Monthly Service Charge | H16: ='1. Information Sheet'!F32 &" Base Distribution Volumetric Rate kWh" -> 2013 Base Distribution Volumetric Rate kWh | I16: ='1. Information Sheet'!F32 &" Base Distribution Volumetric Rate kW" -> 2013 Base Distribution Volumetric Rate kW
A17: RESIDENTIAL | B17: $/kWh | C17: 6042 | D17: 50534380 | E17: 0 | G17: 10 | H17: 0.0236 | I17: 0
A18: GENERAL SERVICE LESS THAN 50 KW | B18: $/kWh | C18: 666 | D18: 22935224 | E18: 0 | G18: 25 | H18: 0.0175 | I18: 0
A19: GENERAL SERVICE 50 TO 499 KW | B19: $/kW | C19: 76 | D19: 38543878 | E19: 115397 | G19: 130 | H19: 0 | I19: 1.966
A20: GENERAL SERVICE 50 TO 1,499 KW | B20: $/kW | C20: 9 | D20: 36742906 | E20: 87967 | G20: 1352 | H20: 0 | I20: 1.0192
A21: GENERAL SERVICE EQUAL TO OR GREATER THAN 1,500 KW | B21: $/kW | C21: 2 | D21: 34958693 | E21: 87967 | G21: 1915 | H21: 0 | I21: 1.8094
A22: UNMETERED SCATTERED LOAD | B22: $/kWh | C22: 62 | D22: 426840 | E22: 0 | G22: 7 | H22: 0.0122 | I22: 0
A23: SENTINEL LIGHTING | B23: $/kW | C23: 127 | D23: 118423 | E23: 301 | G23: 2 | H23: 0 | I23: 17.5697
A24: STREET LIGHTING | B24: $/kW | C24: 1 | D24: 1422827 | E24: 3831 | G24: 1700 | H24: 0 | I24: 8.111
A25: microFIT

Sheet 10. STS - Rebased Rev
A12: Calculation of Rebased Revenue Requirement. No input required.
A15: Rate Class | C15: Re-based Billed Customers or Connections | D15: Re-based Billed kWh | E15: Re-based Billed kW | G15: Rate ReBal Base Service Charge | H15: Rate ReBal Base Distribution Volumetric Rate kWh | I15: Rate ReBal Base Distribution Volumetric Rate kW | K15: Service Charge Revenue | L15: Distribution Volumetric Rate Revenue kWh | M15: Distribution Volumetric Rate Revenue kW | N15: Revenue Requirement from Rates | P15: Service Charge % Revenue | Q15: Distribution Volumetric Rate % Revenue kWh | R15: Distribution Volumetric Rate % Revenue kW | S15: Total % Revenue
C16: A | D16: B | E16: C | G16: D | H16: E | I16: F | K16: G = A * D *12 | L16: H = B * E | M16: I = C * F | N16: J = G + H + I | P16: K = G / J | Q16: L = H / J | R16: M = I / J | S16: N = J / R
A17: RESIDENTIAL | C17: 6042 | D17: 50534380 | E17: 0 | G17: 10 | H17: 0.0236 | I17: 0 | K17: =G17*C17*12 -> 725040 | L17: =H17*D17 -> 1192611.368 | M17: 0 | N17: =SUM(K17,L17,M17) -> 1917651.368 | P17: =IF(ISERROR(K17/N17),0,K17/N17) -> 0.378087494 | Q17: =IF(ISERROR(L17/N17),0,L17/N17) -> 0.621912506 | R17: =IF(ISERROR(M17/N17),0,M17/N17) -> 0 | S17: =N17/N26 -> 0.5681470555
A18: GENERAL SERVICE LESS THAN 50 KW | C18: 666 | D18: 22935224 | E18: 0 | G18: 25 | H18: 0.0175 | I18: 0 | K18: =G18*C18*12 -> 199800 | L18: =H18*D18 -> 401366.42 | M18: 0 | N18: =SUM(K18,L18,M18) -> 601166.42 | P18: =IF(ISERROR(K18/N18),0,K18/N18) -> 0.332353893 | Q18: =IF(ISERROR(L18/N18),0,L18/N18) -> 0.667646107 | R18: =IF(ISERROR(M18/N18),0,M18/N18) -> 0 | S18: =N18/N26 -> 0.1781089812
A19: GENERAL SERVICE 50 TO 499 KW | C19: 76 | D19: 38543878 | E19: 115397 | G19: 130 | H19: 0 | I19: 1.966 | K19: =G19*C19*12 -> 118560 | L19: 0 | M19: =I19*E19 -> 226870.502 | N19: =SUM(K19,L19,M19) -> 345430.502 | P19: =IF(ISERROR(K19/N19),0,K19/N19) -> 0.3432238882 | Q19: =IF(ISERROR(L19/N19),0,L19/N19) -> 0 | R19: =IF(ISERROR(M19/N19),0,M19/N19) -> 0.6567761118 | S19: =N19/N26 -> 0.1023415027
A20: GENERAL SERVICE 50 TO 1,499 KW | C20: 9 | D20: 36742906 | E20: 87967 | G20: 1352 | H20: 0 | I20: 1.0192 | K20: =G20*C20*12 -> 146016 | L20: 0 | M20: =I20*E20 -> 89655.9664 | N20: =SUM(K20,L20,M20) -> 235671.9664 | P20: =IF(ISERROR(K20/N20),0,K20/N20) -> 0.6195730542 | Q20: =IF(ISERROR(L20/N20),0,L20/N20) -> 0 | R20: =IF(ISERROR(M20/N20),0,M20/N20) -> 0.3804269458 | S20: =N20/N26 -> 0.06982308463
A21: GENERAL SERVICE EQUAL TO OR GREATER THAN 1,500 KW | C21: 2 | D21: 34958693 | E21: 87967 | G21: 1915 | H21: 0 | I21: 1.8094 | K21: =G21*C21*12 -> 45960 | L21: 0 | M21: =I21*E21 -> 159167.4898 | N21: =SUM(K21,L21,M21) -> 205127.4898 | P21: =IF(ISERROR(K21/N21),0,K21/N21) -> 0.2240557813 | Q21: =IF(ISERROR(L21/N21),0,L21/N21) -> 0 | R21: =IF(ISERROR(M21/N21),0,M21/N21) -> 0.7759442187 | S21: =N21/N26 -> 0.06077360112
A22: UNMETERED SCATTERED LOAD | C22: 62 | D22: 426840 | E22: 0 | G22: 7 | H22: 0.0122 | I22: 0 | K22: =G22*C22*12 -> 5208 | L22: =H22*D22 -> 5207.448 | M22: 0 | N22: =SUM(K22,L22,M22) -> 10415.448 | P22: =IF(ISERROR(K22/N22),0,K22/N22) -> 0.5000264991 | Q22: =IF(ISERROR(L22/N22),0,L22/N22) -> 0.4999735009 | R22: =IF(ISERROR(M22/N22),0,M22/N22) -> 0 | S22: =N22/N26 -> 0.003085809137
A23: SENTINEL LIGHTING | C23: 127 | D23: 118423 | E23: 301 | G23: 2 | H23: 0 | I23: 17.5697 | K23: =G23*C23*12 -> 3048 | L23: 0 | M23: =I23*E23 -> 5288.4797 | N23: =SUM(K23,L23,M23) -> 8336.4797 | P23: =IF(ISERROR(K23/N23),0,K23/N23) -> 0.3656219543 | Q23: =IF(ISERROR(L23/N23),0,L23/N23) -> 0 | R23: =IF(ISERROR(M23/N23),0,M23/N23) -> 0.6343780457 | S23: =N23/N26 -> 0.002469868337
A24: STREET LIGHTING | C24: 1 | D24: 1422827 | E24: 3831 | G24: 1700 | H24: 0 | I24: 8.111 | K24: =G24*C24*12 -> 20400 | L24: 0 | M24: =I24*E24 -> 31073.241 | N24: =SUM(K24,L24,M24) -> 51473.241 | P24: =IF(ISERROR(K24/N24),0,K24/N24) -> 0.3963224309 | Q24: =IF(ISERROR(L24/N24),0,L24/N24) -> 0 | R24: =IF(ISERROR(M24/N24),0,M24/N24) -> 0.6036775691 | S24: =N24/N26 -> 0.01525009749
A25: microFIT | K25: =G25*C25*12 -> 0 | L25: 0 | M25: 0 | N25: =SUM(K25,L25,M25) -> 0 | P25: =IF(ISERROR(K25/N25),0,K25/N25) -> 0 | Q25: =IF(ISERROR(L25/N25),0,L25/N25) -> 0 | R25: =IF(ISERROR(M25/N25),0,M25/N25) -> 0 | S25: =N25/N26 -> 0
A26: Total | C26: =SUM(C17:C25) -> 6985 | D26: =SUM(D17:D25) -> 185683171 | E26: =SUM(E17:E25) -> 295463 | K26: =SUM(K17:K25) -> 1264032 | L26: =SUM(L17:L25) -> 1599185.236 | M26: =SUM(M17:M25) -> 512055.6789 | N26: =SUM(N17:N25) -> 3375272.915 | S26: =SUM(S17:S25) -> 1

Sheet 9. STS - Billing Det & Rate HID (hidden)
A11: Shared Tax Savings
A12: ="Enter your " & '1. Information Sheet'!F32 & " Board-Approved Billing Determinents into columns B, C and D." -> Enter your 2013 Board-Approved Billing Determinents into columns B, C and D.
A16: Rate Class | B16: Units | C16: Re-based Billed Customers or Connections | D16: Re-based Billed kWh | E16: Re-based Billed kW (if applicable) | G16: ='1. Information Sheet'!F32 &" Base Monthly Service Charge" -> 2013 Base Monthly Service Charge | H16: ='1. Information Sheet'!F32 &" Base Distribution Volumetric Rate kWh" -> 2013 Base Distribution Volumetric Rate kWh | I16: ='1. Information Sheet'!F32 &" Base Distribution Volumetric Rate kW" -> 2013 Base Distribution Volumetric Rate kW
A17: RESIDENTIAL | B17: $/kWh | C17: 6042 | D17: 50534380 | E17: 0 | G17: 10 | H17: 0.0236 | I17: 0
A18: GENERAL SERVICE LESS THAN 50 KW | B18: $/kWh | C18: 666 | D18: 22935224 | E18: 0 | G18: 25 | H18: 0.0175 | I18: 0
A19: GENERAL SERVICE 50 TO 499 KW | B19: $/kW | C19: 76 | D19: 38543878 | E19: 115397 | G19: 130 | H19: 0 | I19: 1.966
A20: GENERAL SERVICE 50 TO 1,499 KW | B20: $/kW | C20: 9 | D20: 36742906 | E20: 87967 | G20: 1352 | H20: 0 | I20: 1.0192
A21: GENERAL SERVICE EQUAL TO OR GREATER THAN 1,500 KW | B21: $/kW | C21: 2 | D21: 34958693 | E21: 87967 | G21: 1915 | H21: 0 | I21: 1.8094
A22: UNMETERED SCATTERED LOAD | B22: $/kWh | C22: 62 | D22: 426840 | E22: 0 | G22: 7 | H22: 0.0122 | I22: 0
A23: SENTINEL LIGHTING | B23: $/kW | C23: 127 | D23: 118423 | E23: 301 | G23: 2 | H23: 0 | I23: 17.5697
A24: STREET LIGHTING | B24: $/kW | C24: 1 | D24: 1422827 | E24: 3831 | G24: 1700 | H24: 0 | I24: 8.111
A25: microFIT | B25: 0 | C25: 0 | D25: 0 | E25: 0 | G25: 0 | H25: 0 | I25: 0

Sheet 11. STS - Tax Change
T1: Rate Base | U1: Federal Tax Rate
T2: 500000 | U2: 0.11
T3: 10000000 | U3: 0.11
T4: =T3+100000 -> 10100000 | U4: 0.11
T5: =T4+100000 -> 10200000 | U5: 0.11
T6: 10300000 | U6: 0.11
T7: 10400000 | U7: 0.11
T8: 10500000 | U8: 0.11
T9: 10600000 | U9: 0.11
T10: 10700000 | U10: 0.11
T11: 10800000 | U11: 0.11
T12: 10900000 | U12: 0.11
A13: Summary - Sharing of Tax Change Forecast Amounts | T13: 11000000 | U13: 0.11
T14: 11100000 | U14: 0.111
A15: ="For the " & '1. Information Sheet'!F32 & " year, enter any Tax Credits from the Cost of Service Tax Calculation (Positive #)" -> For the 2013 year, enter any Tax Credits from the Cost of Service Tax Calculation (Positive #) | L15: 0 | T15: 11200000 | U15: =U14+0.13% -> 0.1123 | V15: =U15-U14 -> 0.0013
T16: 11300000 | U16: =U15+0.13% -> 0.1136 | V16: =U16-U15 -> 0.0013
T17: 11400000 | U17: 0.1149 | V17: 0.0013
A18: 1. Tax Related Amounts Forecast from Capital Tax Rate Changes | L18: ='1. Information Sheet'!F32 -> 2013 | N18: 2015 | T18: 11500000 | U18: 0.1162 | V18: 0.0013
A19: Taxable Capital (if you are not claiming capital tax, please enter your Board-Approved Rate Base) | L19: 9823188 | N19: =L19 -> 9823188 | T19: 11600000 | U19: =U18+0.12% -> 0.1174 | V19: 0.0012
T20: 11700000 | U20: =U19+0.12% -> 0.1186 | V20: 0.0012
A21: Deduction from taxable capital up to $15,000,000 | N21: =L21 -> 0 | T21: 11800000 | U21: 0.1198 | V21: 0.0012
T22: 11900000 | U22: 0.121 | V22: 0.0012
A23: Net Taxable Capital | L23: =L19-L21 -> 9823188 | N23: =N19-N21 -> 9823188 | T23: 12000000 | U23: =U22+0.112% -> 0.12212 | V23: 0.00112
T24: 12100000 | U24: =U23+0.112% -> 0.12324 | V24: 0.00112
A25: Rate | N25: 0 | T25: 12200000 | U25: 0.12436 | V25: 0.00112
T26: 12300000 | U26: 0.12548 | V26: 0.00112
A27: Ontario Capital Tax (Deductible, not grossed-up) | L27: =IF(L23>0, L23*L25, 0)*181/365 -> 0 | N27: 0 | T27: 12400000 | U27: 0.1266 | V27: 0.00112
T28: 12500000 | U28: 0.12772 | V28: 0.00112
A29: 2. Tax Related Amounts Forecast from lncome Tax Rate Changes | T29: 12600000 | U29: =U28+0.102% -> 0.12874 | V29: 0.00102
A30: Regulatory Taxable Income | N30: =L30 -> 0 | T30: 12700000 | U30: =U29+0.102% -> 0.12976 | V30: 0.00102
T31: 12800000 | U31: 0.13078 | V31: 0.00102
A32: Corporate Tax Rate | N32: =IF(N30=0,0,IF(N30<=500000,4.5%+11%,IF(N30>500000,(11.5%*N30-35000)/N30+VLOOKUP(N19,T:U,2,TRUE),""))) -> 0 | T32: 12900000 | U32: 0.1318 | V32: 0.00102
T33: 13000000 | U33: 0.13282 | V33: 0.00102
A34: Tax Impact | N34: =N30*N32-L15 -> 0 | T34: 13100000 | U34: =U33+0.096% -> 0.13378 | V34: 0.00096
T35: 13200000 | U35: =U34+0.096% -> 0.13474 | V35: 0.00096
A36: Grossed-up Tax Amount | N36: =N34/(1-N32) -> 0 | T36: 13300000 | U36: 0.1357 | V36: 0.00096
T37: 13400000 | U37: 0.13666 | V37: 0.00096
A38: Tax Related Amounts Forecast from Capital Tax Rate Changes | L38: =L27 -> 0 | N38: =N27 -> 0 | T38: 13500000 | U38: 0.13762 | V38: 0.00096
T39: 13600000 | U39: =U38+0.088% -> 0.1385 | V39: 0.00088
A40: Tax Related Amounts Forecast from lncome Tax Rate Changes | L40: =L36 -> 0 | N40: =N36 -> 0 | T40: 13700000 | U40: =U39+0.088% -> 0.13938 | V40: 0.00088
T41: 13800000 | U41: 0.14026 | V41: 0.00088
A42: Total Tax Related Amounts | L42: =SUM(L40,L38) -> 0 | N42: =SUM(N40,N38) -> 0 | T42: 13900000 | U42: 0.14114 | V42: 0.00088
T43: 14000000 | U43: 0.14202 | V43: 0.00088
A44: Incremental Tax Savings | N44: =N42-L42 -> 0 | T44: 14100000 | U44: =U43+0.082% -> 0.14284 | V44: 0.00082
T45: 14200000 | U45: =U44+0.082% -> 0.14366 | V45: 0.00082
A46: Sharing of Tax Savings (50%) | N46: =0.5*N44 -> 0 | T46: 14300000 | U46: 0.14448 | V46: 0.00082
T47: 14400000 | U47: 0.1453 | V47: 0.00082
T48: 14500000 | U48: 0.14612 | V48: 0.00082
T49: 14600000 | U49: =U48+0.076% -> 0.14688 | V49: 0.00076
T50: 14700000 | U50: =U49+0.076% -> 0.14764 | V50: 0.00076
T51: 14800000 | U51: 0.1484 | V51: 0.00076
T52: 14900000 | U52: 0.14916 | V52: 0.00076
T53: 15000000 | U53: 0.15 | V53: 0.00084

Sheet 12. STS - Tax Change Rate Rider
A11: This worksheet calculates a tax change volumetric rate rider. If the rate riders are material (round to 4 decimal places), then the outputs in columns M and O will appear on Sheet 27 - Final Tariff Schedule.
A15: Rate Class | C15: Total Revenue $ by Rate Class | E15: Total Revenue % by Rate Class | G15: Allocation of Tax Savings by Rate Class | I15: Billed kWh | K15: Billed kW | M15: Distribution Volumetric Rate kWh Rate Rider | O15: Distribution Volumetric Rate kW Rate Rider
A17: RESIDENTIAL | C17: 1917651.368 | E17: =C17/C26 -> 0.5681470555 | G17: =E17*G26 -> 0 | I17: 50534380 | K17: 0 | M17: =ROUND(G17/I17,4) -> 0
A18: GENERAL SERVICE LESS THAN 50 KW | C18: 601166.42 | E18: =C18/C26 -> 0.1781089812 | G18: =E18*G26 -> 0 | I18: 22935224 | K18: 0 | M18: =ROUND(G18/I18,4) -> 0
A19: GENERAL SERVICE 50 TO 499 KW | C19: 345430.502 | E19: =C19/C26 -> 0.1023415027 | G19: =E19*G26 -> 0 | I19: 38543878 | K19: 115397 | O19: =ROUND(G19/K19,4) -> 0
A20: GENERAL SERVICE 50 TO 1,499 KW | C20: 235671.9664 | E20: =C20/C26 -> 0.06982308463 | G20: =E20*G26 -> 0 | I20: 36742906 | K20: 87967 | O20: =ROUND(G20/K20,4) -> 0
A21: GENERAL SERVICE EQUAL TO OR GREATER THAN 1,500 KW | C21: 205127.4898 | E21: =C21/C26 -> 0.06077360112 | G21: =E21*G26 -> 0 | I21: 34958693 | K21: 87967 | O21: =ROUND(G21/K21,4) -> 0
A22: UNMETERED SCATTERED LOAD | C22: 10415.448 | E22: =C22/C26 -> 0.003085809137 | G22: =E22*G26 -> 0 | I22: 426840 | K22: 0 | M22: =ROUND(G22/I22,4) -> 0
A23: SENTINEL LIGHTING | C23: 8336.4797 | E23: =C23/C26 -> 0.002469868337 | G23: =E23*G26 -> 0 | I23: 118423 | K23: 301 | O23: =ROUND(G23/K23,4) -> 0
A24: STREET LIGHTING | C24: 51473.241 | E24: =C24/C26 -> 0.01525009749 | G24: =E24*G26 -> 0 | I24: 1422827 | K24: 3831 | O24: =ROUND(G24/K24,4) -> 0
A25: microFIT | C25: 0 | E25: =C25/C26 -> 0 | G25: =E25*G26 -> 0
A26: Total | C26: =SUM(C17:C25) -> 3375272.915 | E26: =SUM(E17:E25) -> 1 | G26: 0 | I26: =SUM(I17:I25) -> 185683171 | K26: =SUM(K17:K25) -> 295463
A28: One or more rate classes appear to have negligible rate riders in columns M and/or O. As per Appendix B of the Filing Requirements, please provide details of the Applicant's proposal in the Manager's Summary.

Sheet 13. RTSR Rate Sheet
A13: No input required. This sheet consolidates all Current Retail Transmission Rates entered on Sheet 4.
A15: Rate Class | B15: Rate Description | C15: Unit | D15: RTSR-Network | E15: RTSR-Connection
A17: RESIDENTIAL | B17: Retail Transmission Rate - Network Service Rate | C17: $/kWh | D17: 0.0073
A18: RESIDENTIAL | B18: Retail Transmission Rate - Line and Transformation Connection Service Rate | C18: $/kWh | E18: 0.0054
A19: GENERAL SERVICE LESS THAN 50 KW | B19: Retail Transmission Rate - Network Service Rate | C19: $/kWh | D19: 0.0065
A20: GENERAL SERVICE LESS THAN 50 KW | B20: Retail Transmission Rate - Line and Transformation Connection Service Rate | C20: $/kWh | E20: 0.0048
A21: GENERAL SERVICE 50 TO 499 KW | B21: Retail Transmission Rate - Network Service Rate | C21: $/kW | D21: 2.5311
A22: GENERAL SERVICE 50 TO 499 KW | B22: Retail Transmission Rate - Line and Transformation Connection Service Rate | C22: $/kW | E22: 1.8727
A23: GENERAL SERVICE 50 TO 1,499 KW | B23: Retail Transmission Rate - Network Service Rate - Interval Metered | C23: $/kW | D23: 3.3168
A24: GENERAL SERVICE 50 TO 1,499 KW | B24: Retail Transmission Rate - Line and Transformation Connection Service Rate - Interval Metered | C24: $/kW | E24: 2.552
A25: GENERAL SERVICE EQUAL TO OR GREATER THAN 1,500 KW | B25: Retail Transmission Rate - Network Service Rate - Interval Metered | C25: $/kW | D25: 3.3168
A26: GENERAL SERVICE EQUAL TO OR GREATER THAN 1,500 KW | B26: Retail Transmission Rate - Line and Transformation Connection Service Rate - Interval Metered | C26: $/kW | E26: 2.552
A27: UNMETERED SCATTERED LOAD | B27: Retail Transmission Rate - Network Service Rate | C27: $/kWh | D27: 0.0065
A28: UNMETERED SCATTERED LOAD | B28: Retail Transmission Rate - Line and Transformation Connection Service Rate | C28: $/kWh | E28: 0.0048
A29: SENTINEL LIGHTING | B29: Retail Transmission Rate - Network Service Rate | C29: $/kW | D29: 2.084
A30: SENTINEL LIGHTING | B30: Retail Transmission Rate - Line and Transformation Connection Service Rate | C30: $/kW | E30: 1.5426
A31: STREET LIGHTING | B31: Retail Transmission Rate - Network Service Rate | C31: $/kW | D31: 2.0787
A32: STREET LIGHTING | B32: Retail Transmission Rate - Line and Transformation Connection Service Rate | C32: $/kW | E32: 1.5387

Sheet 14. RTSR RRR Data
A12: In the green shaded cells, enter the most recent reported RRR billing determinants. Please ensure that billing determinants are non-loss adjusted.
A14: Rate Class | B14: Rate Description | C14: Unit | D14: Non-Loss Adjusted Metered kWh | E14: Non-Loss Adjusted Metered kW | F14: Applicable Loss Factor | H14: Load Factor | I14: Loss Adjusted Billed kWh | J14: Billed kW
A15: RESIDENTIAL | B15: Retail Transmission Rate - Network Service Rate | C15: $/kWh | D15: 49712193 | E15: 0 | F15: 1.0333 | H15: =IF(C15="$/kW", D15/(E15* 30.4 * 24), "" ) ->  | I15: =IF(OR(F15=0, OR(ISBLANK(F15), TRIM(F15)="")), F15, F15 * D15) -> 51367609.03 | J15: =IF(OR(F15=0, OR(ISBLANK(F15), TRIM(F15)="")), E15, E15) -> 0
A16: RESIDENTIAL | B16: Retail Transmission Rate - Line and Transformation Connection Service Rate | C16: $/kWh | D16: 49712193 | E16: 0 | F16: 1.0333 | H16: =IF(C16="$/kW", D16/(E16* 30.4 * 24), "" ) ->  | I16: =IF(OR(F16=0, OR(ISBLANK(F16), TRIM(F16)="")), F16, F16 * D16) -> 51367609.03 | J16: =IF(OR(F16=0, OR(ISBLANK(F16), TRIM(F16)="")), E16, E16) -> 0
A17: GENERAL SERVICE LESS THAN 50 KW | B17: Retail Transmission Rate - Network Service Rate | C17: $/kWh | D17: 22057503 | E17: 0 | F17: 1.0333 | H17: =IF(C17="$/kW", D17/(E17* 30.4 * 24), "" ) ->  | I17: =IF(OR(F17=0, OR(ISBLANK(F17), TRIM(F17)="")), F17, F17 * D17) -> 22792017.85 | J17: =IF(OR(F17=0, OR(ISBLANK(F17), TRIM(F17)="")), E17, E17) -> 0
A18: GENERAL SERVICE LESS THAN 50 KW | B18: Retail Transmission Rate - Line and Transformation Connection Service Rate | C18: $/kWh | D18: 22057503 | E18: 0 | F18: 1.0333 | H18: =IF(C18="$/kW", D18/(E18* 30.4 * 24), "" ) ->  | I18: =IF(OR(F18=0, OR(ISBLANK(F18), TRIM(F18)="")), F18, F18 * D18) -> 22792017.85 | J18: =IF(OR(F18=0, OR(ISBLANK(F18), TRIM(F18)="")), E18, E18) -> 0
A19: GENERAL SERVICE 50 TO 499 KW | B19: Retail Transmission Rate - Network Service Rate | C19: $/kW | D19: 43631664 | E19: 128881 | F19: 0 | H19: 0 | I19: =IF(OR(F19=0, OR(ISBLANK(F19), TRIM(F19)="")), F19, F19 * D19) -> 0 | J19: =IF(OR(F19=0, OR(ISBLANK(F19), TRIM(F19)="")), E19, E19) -> 128881
A20: GENERAL SERVICE 50 TO 499 KW | B20: Retail Transmission Rate - Line and Transformation Connection Service Rate | C20: $/kW | D20: 43631664 | E20: 128881 | F20: 0 | H20: 0 | I20: =IF(OR(F20=0, OR(ISBLANK(F20), TRIM(F20)="")), F20, F20 * D20) -> 0 | J20: =IF(OR(F20=0, OR(ISBLANK(F20), TRIM(F20)="")), E20, E20) -> 128881
A21: GENERAL SERVICE 50 TO 1,499 KW | B21: Retail Transmission Rate - Network Service Rate - Interval Metered | C21: $/kW | D21: 36854959 | E21: 92293 | F21: 0 | H21: 0 | I21: =IF(OR(F21=0, OR(ISBLANK(F21), TRIM(F21)="")), F21, F21 * D21) -> 0 | J21: =IF(OR(F21=0, OR(ISBLANK(F21), TRIM(F21)="")), E21, E21) -> 92293
A22: GENERAL SERVICE 50 TO 1,499 KW | B22: Retail Transmission Rate - Line and Transformation Connection Service Rate - Interval Metered | C22: $/kW | D22: 36854959 | E22: 92293 | F22: 0 | H22: 0 | I22: =IF(OR(F22=0, OR(ISBLANK(F22), TRIM(F22)="")), F22, F22 * D22) -> 0 | J22: =IF(OR(F22=0, OR(ISBLANK(F22), TRIM(F22)="")), E22, E22) -> 92293
A23: GENERAL SERVICE EQUAL TO OR GREATER THAN 1,500 KW | B23: Retail Transmission Rate - Network Service Rate - Interval Metered | C23: $/kW | D23: 36834399 | E23: 69490 | F23: 0 | H23: 0 | I23: =IF(OR(F23=0, OR(ISBLANK(F23), TRIM(F23)="")), F23, F23 * D23) -> 0 | J23: =IF(OR(F23=0, OR(ISBLANK(F23), TRIM(F23)="")), E23, E23) -> 69490
A24: GENERAL SERVICE EQUAL TO OR GREATER THAN 1,500 KW | B24: Retail Transmission Rate - Line and Transformation Connection Service Rate - Interval Metered | C24: $/kW | D24: 36834399 | E24: 69490 | F24: 0 | H24: 0 | I24: =IF(OR(F24=0, OR(ISBLANK(F24), TRIM(F24)="")), F24, F24 * D24) -> 0 | J24: =IF(OR(F24=0, OR(ISBLANK(F24), TRIM(F24)="")), E24, E24) -> 69490
A25: UNMETERED SCATTERED LOAD | B25: Retail Transmission Rate - Network Service Rate | C25: $/kWh | D25: 388747 | E25: 0 | F25: 1.0333 | H25: =IF(C25="$/kW", D25/(E25* 30.4 * 24), "" ) ->  | I25: =IF(OR(F25=0, OR(ISBLANK(F25), TRIM(F25)="")), F25, F25 * D25) -> 401692.2751 | J25: =IF(OR(F25=0, OR(ISBLANK(F25), TRIM(F25)="")), E25, E25) -> 0
A26: UNMETERED SCATTERED LOAD | B26: Retail Transmission Rate - Line and Transformation Connection Service Rate | C26: $/kWh | D26: 388747 | E26: 0 | F26: 1.0333 | H26: =IF(C26="$/kW", D26/(E26* 30.4 * 24), "" ) ->  | I26: =IF(OR(F26=0, OR(ISBLANK(F26), TRIM(F26)="")), F26, F26 * D26) -> 401692.2751 | J26: =IF(OR(F26=0, OR(ISBLANK(F26), TRIM(F26)="")), E26, E26) -> 0
A27: SENTINEL LIGHTING | B27: Retail Transmission Rate - Network Service Rate | C27: $/kW | D27: 115970 | E27: 320.3 | F27: 0 | H27: 0 | I27: =IF(OR(F27=0, OR(ISBLANK(F27), TRIM(F27)="")), F27, F27 * D27) -> 0 | J27: =IF(OR(F27=0, OR(ISBLANK(F27), TRIM(F27)="")), E27, E27) -> 320.3
A28: SENTINEL LIGHTING | B28: Retail Transmission Rate - Line and Transformation Connection Service Rate | C28: $/kW | D28: 115970 | E28: 320.3 | F28: 0 | H28: 0 | I28: =IF(OR(F28=0, OR(ISBLANK(F28), TRIM(F28)="")), F28, F28 * D28) -> 0 | J28: =IF(OR(F28=0, OR(ISBLANK(F28), TRIM(F28)="")), E28, E28) -> 320.3
A29: STREET LIGHTING | B29: Retail Transmission Rate - Network Service Rate | C29: $/kW | D29: 1423015 | E29: 3831.24 | F29: 0 | H29: 0 | I29: =IF(OR(F29=0, OR(ISBLANK(F29), TRIM(F29)="")), F29, F29 * D29) -> 0 | J29: =IF(OR(F29=0, OR(ISBLANK(F29), TRIM(F29)="")), E29, E29) -> 3831.24
A30: STREET LIGHTING | B30: Retail Transmission Rate - Line and Transformation Connection Service Rate | C30: $/kW | D30: 1423015 | E30: 3831.24 | F30: 0 | H30: 0 | I30: =IF(OR(F30=0, OR(ISBLANK(F30), TRIM(F30)="")), F30, F30 * D30) -> 0 | J30: =IF(OR(F30=0, OR(ISBLANK(F30), TRIM(F30)="")), E30, E30) -> 3831.24

Sheet 14. RTSR RRR Data Copy (hidden)
A12: In the green shaded cells, enter the most recent reported RRR billing determinants. Please ensure that billing determinants are non-loss adjusted.
A14: Rate Class | B14: Rate Description | C14: Unit | D14: Non-Loss Adjusted Metered kWh | E14: Non-Loss Adjusted Metered kW | F14: Applicable Loss Factor | H14: Load Factor | I14: Loss Adjusted Billed kWh | J14: Billed kW
A15: RESIDENTIAL | B15: Retail Transmission Rate - Network Service Rate | C15: $/kWh | D15: 49712193 | E15: 0 | F15: 1.0333
A16: RESIDENTIAL | B16: Retail Transmission Rate - Line and Transformation Connection Service Rate | C16: $/kWh | D16: 49712193 | E16: 0 | F16: 1.0333
A17: GENERAL SERVICE LESS THAN 50 KW | B17: Retail Transmission Rate - Network Service Rate | C17: $/kWh | D17: 22057503 | E17: 0 | F17: 1.0333
A18: GENERAL SERVICE LESS THAN 50 KW | B18: Retail Transmission Rate - Line and Transformation Connection Service Rate | C18: $/kWh | D18: 22057503 | E18: 0 | F18: 1.0333
A19: GENERAL SERVICE 50 TO 499 KW | B19: Retail Transmission Rate - Network Service Rate | C19: $/kW | D19: 43631664 | E19: 128881 | F19: 0
A20: GENERAL SERVICE 50 TO 499 KW | B20: Retail Transmission Rate - Line and Transformation Connection Service Rate | C20: $/kW | D20: 43631664 | E20: 128881 | F20: 0
A21: GENERAL SERVICE 50 TO 1,499 KW | B21: Retail Transmission Rate - Network Service Rate - Interval Metered | C21: $/kW | D21: 36854959 | E21: 92293 | F21: 0
A22: GENERAL SERVICE 50 TO 1,499 KW | B22: Retail Transmission Rate - Line and Transformation Connection Service Rate - Interval Metered | C22: $/kW | D22: 36854959 | E22: 92293 | F22: 0
A23: GENERAL SERVICE EQUAL TO OR GREATER THAN 1,500 KW | B23: Retail Transmission Rate - Network Service Rate - Interval Metered | C23: $/kW | D23: 36834399 | E23: 69490 | F23: 0
A24: GENERAL SERVICE EQUAL TO OR GREATER THAN 1,500 KW | B24: Retail Transmission Rate - Line and Transformation Connection Service Rate - Interval Metered | C24: $/kW | D24: 36834399 | E24: 69490 | F24: 0
A25: UNMETERED SCATTERED LOAD | B25: Retail Transmission Rate - Network Service Rate | C25: $/kWh | D25: 388747 | E25: 0 | F25: 1.0333
A26: UNMETERED SCATTERED LOAD | B26: Retail Transmission Rate - Line and Transformation Connection Service Rate | C26: $/kWh | D26: 388747 | E26: 0 | F26: 1.0333
A27: SENTINEL LIGHTING | B27: Retail Transmission Rate - Network Service Rate | C27: $/kW | D27: 115970 | E27: 320.3 | F27: 0
A28: SENTINEL LIGHTING | B28: Retail Transmission Rate - Line and Transformation Connection Service Rate | C28: $/kW | D28: 115970 | E28: 320.3 | F28: 0
A29: STREET LIGHTING | B29: Retail Transmission Rate - Network Service Rate | C29: $/kW | D29: 1423015 | E29: 3831.24 | F29: 0
A30: STREET LIGHTING | B30: Retail Transmission Rate - Line and Transformation Connection Service Rate | C30: $/kW | D30: 1423015 | E30: 3831.24 | F30: 0

Sheet 15. RTSR - UTRs & Sub-Tx
B18: Uniform Transmission Rates | C18: Unit | E18: Effective January 1, 2013 | G18: Effective January 1, 2014 | I18: Effective January 1, 2015
B20: Rate Description | E20: Rate | G20: Rate | I20: Rate
B22: Network Service Rate | C22: kW | E22: 3.63 | G22: 3.82 | I22: 3.78
B24: Line Connection Service Rate | C24: kW | E24: 0.75 | G24: 0.82 | I24: 0.86
B26: Transformation Connection Service Rate | C26: kW | E26: 1.85 | G26: 1.98 | I26: 2
B29: Hydro One Sub-Transmission Rates | C29: Unit | E29: Effective January 1, 2013 | G29: Effective January 1, 2014 | I29: Effective January 1, 2015
B33: Rate Description | E33: Rate | G33: Rate | I33: Rate
B35: Network Service Rate | C35: kW | E35: 3.18 | G35: 3.23 | I35: =+G35 -> 3.23
B37: Line Connection Service Rate | C37: kW | E37: 0.7 | G37: 0.65 | I37: =+G37 -> 0.65
B39: Transformation Connection Service Rate | C39: kW | E39: 1.63 | G39: 1.62 | I39: =+G39 -> 1.62
B41: Both Line and Transformation Connection Service Rate | C41: kW | E41: =E39+E37 -> 2.33 | G41: =G39+G37 -> 2.27 | I41: =I39+I37 -> 2.27
B44: If needed , add extra host here (I) | C44: Unit | E44: Effective January 1, 2013 | G44: Effective January 1, 2014 | I44: Effective January 1, 2015
B48: Rate Description | E48: Rate | G48: Rate | I48: Rate
B50: Network Service Rate | C50: kW
B52: Line Connection Service Rate | C52: kW
B54: Transformation Connection Service Rate | C54: kW
B56: Both Line and Transformation Connection Service Rate | C56: kW | E56: =E54+E52 -> 0 | G56: =G54+G52 -> 0 | I56: =I54+I52 -> 0
B59: If needed , add extra host here (II) | C59: Unit | E59: Effective January 1, 2013 | G59: Effective January 1, 2014 | I59: Effective January 1, 2015
B63: Rate Description | E63: Rate | G63: Rate | I63: Rate
B65: Network Service Rate | C65: kW
B67: Line Connection Service Rate | C67: kW
B69: Transformation Connection Service Rate | C69: kW
B71: Both Line and Transformation Connection Service Rate | C71: kW | E71: =E69+E67 -> 0 | G71: =G69+G67 -> 0 | I71: =I69+I67 -> 0
B75: Hydro One Sub-Transmission Rate Rider 9A | C75: Unit | E75: Effective January 1, 2013 | G75: Effective January 1, 2014 | I75: Effective January 1, 2015
B77: Rate Description | E77: Rate | G77: Rate | I77: Rate
B79: RSVA Transmission network – 4714 – which affects 1584 | C79: kW | E79: 0 | G79: 0.1465
B81: RSVA Transmission connection – 4716 – which affects 1586 | C81: kW | E81: 0 | G81: 0.0667
B83: RSVA LV – 4750 – which affects 1550 | C83: kW | E83: 0 | G83: 0.0475
B85: RARA 1 – 2252 – which affects 1590 | C85: kW | E85: 0 | G85: 0.0419
B87: RARA 1 – 2252 – which affects 1590 (2008) | C87: kW | E87: 0 | G87: -0.027
B89: RARA 1 – 2252 – which affects 1590 (2009) | C89: kW | E89: 0 | G89: -0.0006
B91: Hydro One Sub-Transmission Rate Rider 9A | C91: kW | E91: =SUM(E79:E89) -> 0 | G91: =SUM(G79:G89) -> 0.275 | I91: =SUM(I79:I89) -> 0
E94: Historical 2013 | G94: Current 2014 | I94: Forecast 2015
B95: Low Voltage Switchgear Credit (if applicable, enter as a negative value) | C95: $

Sheet 16. RTSR - Historical Wholesale
B13: In the green shaded cells, enter billing detail for wholesale transmission for the same reporting period as the billing determinants on Sheet "14. RTSR RRR Data". For Hydro One Sub-transmission Rates, if you are charged a combined Line and Transformer connection rate, please ensure that both the line connection and transformer connection columns are completed.
B16: IESO | D16: Network | H16: Line Connection | L16: Transformation Connection | P16: Total Line
B17: Month | D17: Units Billed | E17: Rate | F17: Amount | H17: Units Billed | I17: Rate | J17: Amount | L17: Units Billed | M17: Rate | N17: Amount | P17: Amount
B19: January | D19: =108014.28/3.63 -> 29756 | E19: =IF(D19<>0,F19/D19,0) -> 3.63 | F19: 108014.28 | H19: =22897.5/0.75 -> 30530 | I19: =IF(H19<>0,J19/H19,0) -> 0.75 | J19: 22897.5 | L19: =56480.5/1.85 -> 30530 | M19: =IF(L19<>0,N19/L19,0) -> 1.85 | N19: 56480.5 | P19: =J19+N19 -> 79378
B20: February | D20: =101803.35/3.63 -> 28045 | E20: 3.63 | F20: 101803.35 | H20: =21964.5/0.75 -> 29286 | I20: 0.75 | J20: 21964.5 | L20: =54179.1/1.85 -> 29286 | M20: 1.85 | N20: 54179.1 | P20: 76143.6
B21: March | D21: =99770.55/3.63 -> 27485 | E21: 3.63 | F21: 99770.55 | H21: =21236.25/0.75 -> 28315 | I21: 0.75 | J21: 21236.25 | L21: =52382.75/1.85 -> 28315 | M21: 1.85 | N21: 52382.75 | P21: 73619
B22: April | D22: =91842.63/3.63 -> 25301 | E22: 3.63 | F22: 91842.63 | H22: =20761.5/0.75 -> 27682 | I22: 0.75 | J22: 20761.5 | L22: =51211.7/1.85 -> 27682 | M22: 1.85 | N22: 51211.7 | P22: 71973.2
B23: May | D23: =107291.91/3.63 -> 29557 | E23: 3.63 | F23: 107291.91 | H23: =24045.75/0.75 -> 32061 | I23: 0.75 | J23: 24045.75 | L23: =59312.85/1.85 -> 32061 | M23: 1.85 | N23: 59312.85 | P23: 83358.6
B24: June | D24: =130825.2/3.63 -> 36040 | E24: 3.63 | F24: 130825.2 | H24: =27537.75/0.75 -> 36717 | I24: 0.75 | J24: 27537.75 | L24: =67926.45/1.85 -> 36717 | M24: 1.85 | N24: 67926.45 | P24: 95464.2
B25: July | D25: =131431.41/3.63 -> 36207 | E25: 3.63 | F25: 131431.41 | H25: =29334.75/0.75 -> 39113 | I25: 0.75 | J25: 29334.75 | L25: =72359.05/1.85 -> 39113 | M25: 1.85 | N25: 72359.05 | P25: 101693.8
B26: August | D26: =132353.43/3.63 -> 36461 | E26: 3.63 | F26: 132353.43 | H26: =27345.75/0.75 -> 36461 | I26: 0.75 | J26: 27345.75 | L26: =67452.85/1.85 -> 36461 | M26: 1.85 | N26: 67452.85 | P26: 94798.6
B27: September | D27: =129747.09/3.63 -> 35743 | E27: 3.63 | F27: 129747.09 | H27: =27334.5/0.75 -> 36446 | I27: 0.75 | J27: 27334.5 | L27: =67425.1/1.85 -> 36446 | M27: 1.85 | N27: 67425.1 | P27: 94759.6
B28: October | D28: =93189.36/3.63 -> 25672 | E28: 3.63 | F28: 93189.36 | H28: =21094.5/0.75 -> 28126 | I28: 0.75 | J28: 21094.5 | L28: =52033.1/1.85 -> 28126 | M28: 1.85 | N28: 52033.1 | P28: 73127.6
B29: November | D29: =107379.03/3.63 -> 29581 | E29: 3.63 | F29: 107379.03 | H29: =22185.75/0.75 -> 29581 | I29: 0.75 | J29: 22185.75 | L29: =54724.85/1.85 -> 29581 | M29: 1.85 | N29: 54724.85 | P29: 76910.6
B30: December | D30: =109800.24/3.63 -> 30248 | E30: 3.63 | F30: 109800.24 | H30: =23340/0.75 -> 31120 | I30: 0.75 | J30: 23340 | L30: =57572/1.85 -> 31120 | M30: 1.85 | N30: 57572 | P30: 80912
B32: Total | D32: =SUM(D19:D30) -> 370096 | E32: =IF(D32<>0,F32/D32,0) -> 3.63 | F32: =SUM(F19:F30) -> 1343448.48 | H32: =SUM(H19:H30) -> 385438 | I32: =IF(H32<>0,J32/H32,0) -> 0.75 | J32: =SUM(J19:J30) -> 289078.5 | L32: =SUM(L19:L30) -> 385438 | M32: =IF(L32<>0,N32/L32,0) -> 1.85 | N32: =SUM(N19:N30) -> 713060.3 | P32: =SUM(P19:P30) -> 1002138.8
B34: Hydro One | D34: Network | H34: Line Connection | L34: Transformation Connection | P34: Total Line
B36: Month | D36: Units Billed | E36: Rate | F36: Amount | H36: Units Billed | I36: Rate | J36: Amount | L36: Units Billed | M36: Rate | N36: Amount | P36: Amount
B38: January | D38: =265.95/3.18 -> 83.63207547 | E38: =IF(D38<>0,F38/D38,0) -> 3.18 | F38: 265.95 | H38: =195.21/0.7 -> 278.8714286 | I38: =IF(H38<>0,J38/H38,0) -> 0.7 | J38: 195.21 | L38: =195.21/1.63 -> 119.7607362 | M38: =IF(L38<>0,N38/L38,0) -> 1.63 | N38: 195.21 | P38: =J38+N38 -> 390.42
B39: February | D39: =245.04/3.18 -> 77.05660377 | E39: 3.18 | F39: 245.04 | H39: =179.86/0.7 -> 256.9428571 | I39: 0.7 | J39: 179.86 | L39: =179.86/1.63 -> 110.3435583 | M39: 1.63 | N39: 179.86 | P39: 359.72
B40: March | D40: =225.12/3.18 -> 70.79245283 | E40: 3.18 | F40: 225.12 | H40: =165.24/0.7 -> 236.0571429 | I40: 0.7 | J40: 165.24 | L40: =165.24/1.63 -> 101.3742331 | M40: 1.63 | N40: 165.24 | P40: 330.48
B41: April | D41: =219.51/3.18 -> 69.02830189 | E41: 3.18 | F41: 219.51 | H41: =161.12/0.7 -> 230.1714286 | I41: 0.7 | J41: 161.12 | L41: =161.12/1.63 -> 98.84662577 | M41: 1.63 | N41: 161.12 | P41: 322.24
B42: May | D42: =209.93/3.18 -> 66.01572327 | E42: 3.18 | F42: 209.93 | H42: =154.09/0.7 -> 220.1285714 | I42: 0.7 | J42: 154.09 | L42: =154.09/1.63 -> 94.53374233 | M42: 1.63 | N42: 154.09 | P42: 308.18
B43: June | D43: =150.1/3.18 -> 47.20125786 | E43: 3.18 | F43: 150.1 | H43: =110.18/0.7 -> 157.4 | I43: 0.7 | J43: 110.18 | L43: =110.18/1.63 -> 67.59509202 | M43: 1.63 | N43: 110.18 | P43: 220.36
B44: July | D44: =264.16/3.18 -> 83.06918239 | E44: 3.18 | F44: 264.16 | H44: =193.9/0.7 -> 277 | I44: 0.7 | J44: 193.9 | L44: =193.9/1.63 -> 118.9570552 | M44: 1.63 | N44: 193.9 | P44: 387.8
B45: August | D45: =173.44/3.18 -> 54.5408805 | E45: 3.18 | F45: 173.44 | H45: =127.31/0.7 -> 181.8714286 | I45: 0.7 | J45: 127.31 | L45: =127.31/1.63 -> 78.10429448 | M45: 1.63 | N45: 127.31 | P45: 254.62
B46: September | D46: =227.64/3.18 -> 71.58490566 | E46: 3.18 | F46: 227.64 | H46: =167.09/0.7 -> 238.7 | I46: 0.7 | J46: 167.09 | L46: =167.09/1.63 -> 102.5092025 | M46: 1.63 | N46: 167.09 | P46: 334.18
B47: October | D47: =143.42/3.18 -> 45.10062893 | E47: 3.18 | F47: 143.42 | H47: =105.27/0.7 -> 150.3857143 | I47: 0.7 | J47: 105.27 | L47: =105.27/1.63 -> 64.58282209 | M47: 1.63 | N47: 105.27 | P47: 210.54
B48: November | D48: =218.62/3.18 -> 68.74842767 | E48: 3.18 | F48: 218.62 | H48: =160.47/0.7 -> 229.2428571 | I48: 0.7 | J48: 160.47 | L48: =160.47/1.63 -> 98.44785276 | M48: 1.63 | N48: 160.47 | P48: 320.94
B49: December | D49: =253.09/3.18 -> 79.58805031 | E49: 3.18 | F49: 253.09 | H49: =185.77/0.7 -> 265.3857143 | I49: 0.7 | J49: 185.77 | L49: =185.77/1.63 -> 113.9693252 | M49: 1.63 | N49: 185.77 | P49: 371.54
B51: Total | D51: =SUM(D38:D49) -> 816.3584906 | E51: =IF(D51<>0,F51/D51,0) -> 3.18 | F51: =SUM(F38:F49) -> 2596.02 | H51: =SUM(H38:H49) -> 2722.157143 | I51: =IF(H51<>0,J51/H51,0) -> 0.7 | J51: =SUM(J38:J49) -> 1905.51 | L51: =SUM(L38:L49) -> 1169.02454 | M51: =IF(L51<>0,N51/L51,0) -> 1.63 | N51: =SUM(N38:N49) -> 1905.51 | P51: =SUM(P38:P49) -> 3811.02
B53: Add Extra Host Here (I) | D53: Network | H53: Line Connection | L53: Transformation Connection | P53: Total Line
B54: (if needed)
B55: Month | D55: Units Billed | E55: Rate | F55: Amount | H55: Units Billed | I55: Rate | J55: Amount | L55: Units Billed | M55: Rate | N55: Amount | P55: Amount
B57: January | E57: =IF(D57<>0,F57/D57,0) -> 0 | I57: =IF(H57<>0,J57/H57,0) -> 0 | M57: =IF(L57<>0,N57/L57,0) -> 0 | P57: =J57+N57 -> 0
B58: February | E58: 0 | I58: 0 | M58: 0 | P58: 0
B59: March | E59: 0 | I59: 0 | M59: 0 | P59: 0
B60: April | E60: 0 | I60: 0 | M60: 0 | P60: 0
B61: May | E61: 0 | I61: 0 | M61: 0 | P61: 0
B62: June | E62: 0 | I62: 0 | M62: 0 | P62: 0
B63: July | E63: 0 | I63: 0 | M63: 0 | P63: 0
B64: August | E64: 0 | I64: 0 | M64: 0 | P64: 0
B65: September | E65: 0 | I65: 0 | M65: 0 | P65: 0
B66: October | E66: 0 | I66: 0 | M66: 0 | P66: 0
B67: November | E67: 0 | I67: 0 | M67: 0 | P67: 0
B68: December | E68: 0 | I68: 0 | M68: 0 | P68: 0
B70: Total | D70: =SUM(D57:D68) -> 0 | E70: =IF(D70<>0,F70/D70,0) -> 0 | F70: =SUM(F57:F68) -> 0 | H70: =SUM(H57:H68) -> 0 | I70: =IF(H70<>0,J70/H70,0) -> 0 | J70: =SUM(J57:J68) -> 0 | L70: =SUM(L57:L68) -> 0 | M70: =IF(L70<>0,N70/L70,0) -> 0 | N70: =SUM(N57:N68) -> 0 | P70: =SUM(P57:P68) -> 0
B72: Add Extra Host Here (II) | D72: Network | H72: Line Connection | L72: Transformation Connection | P72: Total Line
B73: (if needed)
B74: Month | D74: Units Billed | E74: Rate | F74: Amount | H74: Units Billed | I74: Rate | J74: Amount | L74: Units Billed | M74: Rate | N74: Amount | P74: Amount
B76: January | E76: =IF(D76<>0,F76/D76,0) -> 0 | I76: =IF(H76<>0,J76/H76,0) -> 0 | M76: =IF(L76<>0,N76/L76,0) -> 0 | P76: =J76+N76 -> 0
B77: February | E77: 0 | I77: 0 | M77: 0 | P77: 0
B78: March | E78: 0 | I78: 0 | M78: 0 | P78: 0
B79: April | E79: 0 | I79: 0 | M79: 0 | P79: 0
B80: May | E80: 0 | I80: 0 | M80: 0 | P80: 0
B81: June | E81: 0 | I81: 0 | M81: 0 | P81: 0
B82: July | E82: 0 | I82: 0 | M82: 0 | P82: 0
B83: August | E83: 0 | I83: 0 | M83: 0 | P83: 0
B84: September | E84: 0 | I84: 0 | M84: 0 | P84: 0
B85: October | E85: 0 | I85: 0 | M85: 0 | P85: 0
B86: November | E86: 0 | I86: 0 | M86: 0 | P86: 0
B87: December | E87: 0 | I87: 0 | M87: 0 | P87: 0
B89: Total | D89: =SUM(D76:D87) -> 0 | E89: =IF(D89<>0,F89/D89,0) -> 0 | F89: =SUM(F76:F87) -> 0 | H89: =SUM(H76:H87) -> 0 | I89: =IF(H89<>0,J89/H89,0) -> 0 | J89: =SUM(J76:J87) -> 0 | L89: =SUM(L76:L87) -> 0 | M89: =IF(L89<>0,N89/L89,0) -> 0 | N89: =SUM(N76:N87) -> 0 | P89: =SUM(P76:P87) -> 0
B91: Total | D91: Network | H91: Line Connection | L91: Transformation Connection | P91: Total Line
B93: Month | D93: Units Billed | E93: Rate | F93: Amount | H93: Units Billed | I93: Rate | J93: Amount | L93: Units Billed | M93: Rate | N93: Amount | P93: Amount
B95: January | D95: =D19+D38+D57+D76 -> 29839.63208 | E95: =IF(D95<>0,F95/D95,0) -> 3.628738777 | F95: =F19+F38+F57+F76 -> 108280.23 | H95: =H19+H38+H57+H76 -> 30808.87143 | I95: =IF(H95<>0,J95/H95,0) -> 0.749547417 | J95: =J19+J38+J57+J76 -> 23092.71 | L95: =L19+L38+L57+L76 -> 30649.76074 | M95: =IF(L95<>0,N95/L95,0) -> 1.849140373 | N95: =N19+N38+N57+N76 -> 56675.71 | P95: =J95+N95 -> 79768.42
B96: February | D96: =D20+D39+D58+D77 -> 28122.0566 | E96: 3.628766965 | F96: =F20+F39+F58+F77 -> 102048.39 | H96: =H20+H39+H58+H77 -> 29542.94286 | I96: 0.7495651367 | J96: =J20+J39+J58+J77 -> 22144.36 | L96: =L20+L39+L58+L77 -> 29396.34356 | M96: 1.849174197 | N96: =N20+N39+N58+N77 -> 54358.96 | P96: 76503.32
B97: March | D97: 27555.79245 | E97: 3.628843924 | F97: 99995.67 | H97: 28551.05714 | I97: 0.7495866052 | J97: 21401.49 | L97: 28416.37423 | M97: 1.849215159 | N97: 52547.99 | P97: 73949.48
B98: April | D98: 25370.0283 | E98: 3.628775613 | F98: 92062.14 | H98: 27912.17143 | I98: 0.7495876863 | J98: 20922.62 | L98: 27780.84663 | M98: 1.849217221 | N98: 51372.82 | P98: 72295.44
B99: May | D99: 29623.01572 | E99: 3.628997162 | F99: 107501.84 | H99: 32281.12857 | I99: 0.7496590445 | J99: 24199.84 | L99: 32155.53374 | M99: 1.849353224 | N99: 59466.94 | P99: 83666.78
B100: June | D100: 36087.20126 | E100: 3.62941141 | F100: 130975.3 | H100: 36874.4 | I100: 0.7497865728 | J100: 27647.93 | L100: 36784.59509 | M100: 1.84959573 | N100: 68036.63 | P100: 95684.56
B101: July | D101: 36290.06918 | E101: 3.628969935 | F101: 131695.57 | H101: 39390 | I101: 0.7496483879 | J101: 29528.65 | L101: 39231.95706 | M101: 1.849332928 | N101: 72552.95 | P101: 102081.6
B102: August | D102: 36515.54088 | E102: 3.629327864 | F102: 132526.87 | H102: 36642.87143 | I102: 0.7497518325 | J102: 27473.06 | L102: 36539.10429 | M102: 1.849529738 | N102: 67580.16 | P102: 95053.22
B103: September | D103: 35814.58491 | E103: 3.629100556 | F103: 129974.73 | H103: 36684.7 | I103: 0.74967466 | J103: 27501.59 | L103: 36548.5092 | M103: 1.849382956 | N103: 67592.19 | P103: 95093.78
B104: October | D104: 25717.10063 | E104: 3.629210825 | F104: 93332.78 | H104: 28276.38571 | I104: 0.749734079 | J104: 21199.77 | L104: 28190.58282 | M104: 1.849495994 | N104: 52138.37 | P104: 73338.14
B105: November | D105: 29649.74843 | E105: 3.628956592 | F105: 107597.65 | H105: 29810.24286 | I105: 0.7496154965 | J105: 22346.22 | L105: 29679.44785 | M105: 1.849270252 | N105: 54885.32 | P105: 77231.54
B106: December | D106: 30327.58805 | E106: 3.628819074 | F106: 110053.33 | H106: 31385.38571 | I106: 0.7495772145 | J106: 23525.77 | L106: 31233.96933 | M106: 1.849197244 | N106: 57757.77 | P106: 81283.54
B108: Total | D108: =SUM(D95:D106) -> 370912.3585 | E108: =IF(D108<>0,F108/D108,0) -> 3.629009574 | F108: =SUM(F95:F106) -> 1346044.5 | H108: =SUM(H95:H106) -> 388160.1571 | I108: =IF(H108<>0,J108/H108,0) -> 0.7496493513 | J108: =SUM(J95:J106) -> 290984.01 | L108: =SUM(L95:L106) -> 386607.0245 | M108: =IF(L108<>0,N108/L108,0) -> 1.849334763 | N108: =SUM(N95:N106) -> 714965.81 | P108: =SUM(P95:P106) -> 1005949.82
N110: Transformer Allowance Credit (if applicable) | P110: ='15. RTSR - UTRs & Sub-Tx'!E95 -> 0
N112: Total including deduction for Transformer Allowance Credit | P112: =P108+P110 -> 1005949.82

Sheet 17. RTSR - Current Wholesale
B13: The purpose of this sheet is to calculate the expected billing when current 2014 Uniform Transmission Rates are applied against historical 2013 transmission units.
B16: IESO | D16: Network | H16: Line Connection | L16: Transformation Connection | P16: Total Line
B18: Month | D18: Units Billed | E18: Rate | F18: Amount | H18: Units Billed | I18: Rate | J18: Amount | L18: Units Billed | M18: Rate | N18: Amount | P18: Amount
B20: January | D20: ='16. RTSR - Historical Wholesale'!D19 -> 29756 | E20: ='15. RTSR - UTRs & Sub-Tx'!G22 -> 3.82 | F20: =D20*E20 -> 113667.92 | H20: ='16. RTSR - Historical Wholesale'!H19 -> 30530 | I20: ='15. RTSR - UTRs & Sub-Tx'!G24 -> 0.82 | J20: =H20*I20 -> 25034.6 | L20: ='16. RTSR - Historical Wholesale'!L19 -> 30530 | M20: ='15. RTSR - UTRs & Sub-Tx'!G26 -> 1.98 | N20: =L20*M20 -> 60449.4 | P20: =J20+N20 -> 85484
B21: February | D21: ='16. RTSR - Historical Wholesale'!D20 -> 28045 | E21: =E20 -> 3.82 | F21: =D21*E21 -> 107131.9 | H21: ='16. RTSR - Historical Wholesale'!H20 -> 29286 | I21: =I20 -> 0.82 | J21: =H21*I21 -> 24014.52 | L21: ='16. RTSR - Historical Wholesale'!L20 -> 29286 | M21: =M20 -> 1.98 | N21: =L21*M21 -> 57986.28 | P21: 82000.8
B22: March | D22: ='16. RTSR - Historical Wholesale'!D21 -> 27485 | E22: =E21 -> 3.82 | F22: 104992.7 | H22: ='16. RTSR - Historical Wholesale'!H21 -> 28315 | I22: =I21 -> 0.82 | J22: 23218.3 | L22: ='16. RTSR - Historical Wholesale'!L21 -> 28315 | M22: =M21 -> 1.98 | N22: 56063.7 | P22: 79282
B23: April | D23: ='16. RTSR - Historical Wholesale'!D22 -> 25301 | E23: 3.82 | F23: 96649.82 | H23: ='16. RTSR - Historical Wholesale'!H22 -> 27682 | I23: 0.82 | J23: 22699.24 | L23: ='16. RTSR - Historical Wholesale'!L22 -> 27682 | M23: 1.98 | N23: 54810.36 | P23: 77509.6
B24: May | D24: ='16. RTSR - Historical Wholesale'!D23 -> 29557 | E24: 3.82 | F24: 112907.74 | H24: ='16. RTSR - Historical Wholesale'!H23 -> 32061 | I24: 0.82 | J24: 26290.02 | L24: ='16. RTSR - Historical Wholesale'!L23 -> 32061 | M24: 1.98 | N24: 63480.78 | P24: 89770.8
B25: June | D25: ='16. RTSR - Historical Wholesale'!D24 -> 36040 | E25: 3.82 | F25: 137672.8 | H25: ='16. RTSR - Historical Wholesale'!H24 -> 36717 | I25: 0.82 | J25: 30107.94 | L25: ='16. RTSR - Historical Wholesale'!L24 -> 36717 | M25: 1.98 | N25: 72699.66 | P25: 102807.6
B26: July | D26: ='16. RTSR - Historical Wholesale'!D25 -> 36207 | E26: 3.82 | F26: 138310.74 | H26: ='16. RTSR - Historical Wholesale'!H25 -> 39113 | I26: 0.82 | J26: 32072.66 | L26: ='16. RTSR - Historical Wholesale'!L25 -> 39113 | M26: 1.98 | N26: 77443.74 | P26: 109516.4
B27: August | D27: ='16. RTSR - Historical Wholesale'!D26 -> 36461 | E27: 3.82 | F27: 139281.02 | H27: ='16. RTSR - Historical Wholesale'!H26 -> 36461 | I27: 0.82 | J27: 29898.02 | L27: ='16. RTSR - Historical Wholesale'!L26 -> 36461 | M27: 1.98 | N27: 72192.78 | P27: 102090.8
B28: September | D28: ='16. RTSR - Historical Wholesale'!D27 -> 35743 | E28: 3.82 | F28: 136538.26 | H28: ='16. RTSR - Historical Wholesale'!H27 -> 36446 | I28: 0.82 | J28: 29885.72 | L28: ='16. RTSR - Historical Wholesale'!L27 -> 36446 | M28: 1.98 | N28: 72163.08 | P28: 102048.8
B29: October | D29: ='16. RTSR - Historical Wholesale'!D28 -> 25672 | E29: 3.82 | F29: 98067.04 | H29: ='16. RTSR - Historical Wholesale'!H28 -> 28126 | I29: 0.82 | J29: 23063.32 | L29: ='16. RTSR - Historical Wholesale'!L28 -> 28126 | M29: 1.98 | N29: 55689.48 | P29: 78752.8
B30: November | D30: ='16. RTSR - Historical Wholesale'!D29 -> 29581 | E30: 3.82 | F30: 112999.42 | H30: ='16. RTSR - Historical Wholesale'!H29 -> 29581 | I30: 0.82 | J30: 24256.42 | L30: ='16. RTSR - Historical Wholesale'!L29 -> 29581 | M30: 1.98 | N30: 58570.38 | P30: 82826.8
B31: December | D31: ='16. RTSR - Historical Wholesale'!D30 -> 30248 | E31: 3.82 | F31: 115547.36 | H31: ='16. RTSR - Historical Wholesale'!H30 -> 31120 | I31: 0.82 | J31: 25518.4 | L31: ='16. RTSR - Historical Wholesale'!L30 -> 31120 | M31: 1.98 | N31: 61617.6 | P31: 87136
B33: Total | D33: =SUM(D20:D31) -> 370096 | E33: =IF(D33<>0,F33/D33,0) -> 3.82 | F33: =SUM(F20:F31) -> 1413766.72 | H33: =SUM(H20:H31) -> 385438 | I33: =IF(H33<>0,J33/H33,0) -> 0.82 | J33: =SUM(J20:J31) -> 316059.16 | L33: =SUM(L20:L31) -> 385438 | M33: =IF(L33<>0,N33/L33,0) -> 1.98 | N33: =SUM(N20:N31) -> 763167.24 | P33: =SUM(P20:P31) -> 1079226.4
B35: Hydro One | D35: Network | H35: Line Connection | L35: Transformation Connection | P35: Total Line
B37: Month | D37: Units Billed | E37: Rate | F37: Amount | H37: Units Billed | I37: Rate | J37: Amount | L37: Units Billed | M37: Rate | N37: Amount | P37: Amount
B39: January | D39: ='16. RTSR - Historical Wholesale'!D38 -> 83.63207547 | E39: ='15. RTSR - UTRs & Sub-Tx'!G35+'15. RTSR - UTRs & Sub-Tx'!G79 -> 3.3765 | F39: =D39*E39 -> 282.3837028 | H39: ='16. RTSR - Historical Wholesale'!H38 -> 278.8714286 | I39: ='15. RTSR - UTRs & Sub-Tx'!G37+'15. RTSR - UTRs & Sub-Tx'!G81 -> 0.7167 | J39: =H39*I39 -> 199.8671529 | L39: ='16. RTSR - Historical Wholesale'!L38 -> 119.7607362 | M39: ='15. RTSR - UTRs & Sub-Tx'!G39 -> 1.62 | N39: =L39*M39 -> 194.0123926 | P39: =J39+N39 -> 393.8795455
B40: February | D40: ='16. RTSR - Historical Wholesale'!D39 -> 77.05660377 | E40: =E39 -> 3.3765 | F40: =D40*E40 -> 260.1816226 | H40: ='16. RTSR - Historical Wholesale'!H39 -> 256.9428571 | I40: =I39 -> 0.7167 | J40: =H40*I40 -> 184.1509457 | L40: ='16. RTSR - Historical Wholesale'!L39 -> 110.3435583 | M40: =M39 -> 1.62 | N40: =L40*M40 -> 178.7565644 | P40: 362.9075101
B41: March | D41: ='16. RTSR - Historical Wholesale'!D40 -> 70.79245283 | E41: =E40 -> 3.3765 | F41: 239.030717 | H41: ='16. RTSR - Historical Wholesale'!H40 -> 236.0571429 | I41: =I40 -> 0.7167 | J41: 169.1821543 | L41: ='16. RTSR - Historical Wholesale'!L40 -> 101.3742331 | M41: =M40 -> 1.62 | N41: 164.2262577 | P41: 333.408412
B42: April | D42: ='16. RTSR - Historical Wholesale'!D41 -> 69.02830189 | E42: 3.3765 | F42: 233.0740613 | H42: ='16. RTSR - Historical Wholesale'!H41 -> 230.1714286 | I42: 0.7167 | J42: 164.9638629 | L42: ='16. RTSR - Historical Wholesale'!L41 -> 98.84662577 | M42: =M41 -> 1.62 | N42: 160.1315337 | P42: 325.0953966
B43: May | D43: ='16. RTSR - Historical Wholesale'!D42 -> 66.01572327 | E43: 3.3765 | F43: 222.9020896 | H43: ='16. RTSR - Historical Wholesale'!H42 -> 220.1285714 | I43: 0.7167 | J43: 157.7661471 | L43: ='16. RTSR - Historical Wholesale'!L42 -> 94.53374233 | M43: 1.62 | N43: 153.1446626 | P43: 310.9108097
B44: June | D44: ='16. RTSR - Historical Wholesale'!D43 -> 47.20125786 | E44: 3.3765 | F44: 159.3750472 | H44: ='16. RTSR - Historical Wholesale'!H43 -> 157.4 | I44: 0.7167 | J44: 112.80858 | L44: ='16. RTSR - Historical Wholesale'!L43 -> 67.59509202 | M44: 1.62 | N44: 109.5040491 | P44: 222.3126291
B45: July | D45: ='16. RTSR - Historical Wholesale'!D44 -> 83.06918239 | E45: 3.3765 | F45: 280.4830943 | H45: ='16. RTSR - Historical Wholesale'!H44 -> 277 | I45: 0.7167 | J45: 198.5259 | L45: ='16. RTSR - Historical Wholesale'!L44 -> 118.9570552 | M45: 1.62 | N45: 192.7104294 | P45: 391.2363294
B46: August | D46: ='16. RTSR - Historical Wholesale'!D45 -> 54.5408805 | E46: 3.3765 | F46: 184.157283 | H46: ='16. RTSR - Historical Wholesale'!H45 -> 181.8714286 | I46: 0.7167 | J46: 130.3472529 | L46: ='16. RTSR - Historical Wholesale'!L45 -> 78.10429448 | M46: 1.62 | N46: 126.5289571 | P46: 256.8762099
B47: September | D47: ='16. RTSR - Historical Wholesale'!D46 -> 71.58490566 | E47: 3.3765 | F47: 241.706434 | H47: ='16. RTSR - Historical Wholesale'!H46 -> 238.7 | I47: 0.7167 | J47: 171.07629 | L47: ='16. RTSR - Historical Wholesale'!L46 -> 102.5092025 | M47: 1.62 | N47: 166.064908 | P47: 337.141198
B48: October | D48: ='16. RTSR - Historical Wholesale'!D47 -> 45.10062893 | E48: 3.3765 | F48: 152.2822736 | H48: ='16. RTSR - Historical Wholesale'!H47 -> 150.3857143 | I48: 0.7167 | J48: 107.7814414 | L48: ='16. RTSR - Historical Wholesale'!L47 -> 64.58282209 | M48: 1.62 | N48: 104.6241718 | P48: 212.4056132
B49: November | D49: ='16. RTSR - Historical Wholesale'!D48 -> 68.74842767 | E49: 3.3765 | F49: 232.129066 | H49: ='16. RTSR - Historical Wholesale'!H48 -> 229.2428571 | I49: 0.7167 | J49: 164.2983557 | L49: ='16. RTSR - Historical Wholesale'!L48 -> 98.44785276 | M49: 1.62 | N49: 159.4855215 | P49: 323.7838772
B50: December | D50: ='16. RTSR - Historical Wholesale'!D49 -> 79.58805031 | E50: 3.3765 | F50: 268.7290519 | H50: ='16. RTSR - Historical Wholesale'!H49 -> 265.3857143 | I50: 0.7167 | J50: 190.2019414 | L50: ='16. RTSR - Historical Wholesale'!L49 -> 113.9693252 | M50: 1.62 | N50: 184.6303067 | P50: 374.8322482
B52: Total | D52: =SUM(D39:D50) -> 816.3584906 | E52: =IF(D52<>0,F52/D52,0) -> 3.3765 | F52: =SUM(F39:F50) -> 2756.434443 | H52: =SUM(H39:H50) -> 2722.157143 | I52: =IF(H52<>0,J52/H52,0) -> 0.7167 | J52: =SUM(J39:J50) -> 1950.970024 | L52: =SUM(L39:L50) -> 1169.02454 | M52: =IF(L52<>0,N52/L52,0) -> 1.62 | N52: =SUM(N39:N50) -> 1893.819755 | P52: =SUM(P39:P50) -> 3844.789779
B54: ='16. RTSR - Historical Wholesale'!B53 -> Add Extra Host Here (I) | D54: Network | H54: Line Connection | L54: Transformation Connection | P54: Total Line
B56: Month | D56: Units Billed | E56: Rate | F56: Amount | H56: Units Billed | I56: Rate | J56: Amount | L56: Units Billed | M56: Rate | N56: Amount | P56: Amount
B58: January | D58: ='16. RTSR - Historical Wholesale'!D57 -> 0 | E58: ='15. RTSR - UTRs & Sub-Tx'!G50 -> 0 | F58: =D58*E58 -> 0 | H58: ='16. RTSR - Historical Wholesale'!H57 -> 0 | I58: ='15. RTSR - UTRs & Sub-Tx'!G52 -> 0 | J58: =H58*I58 -> 0 | L58: ='16. RTSR - Historical Wholesale'!L57 -> 0 | M58: ='15. RTSR - UTRs & Sub-Tx'!G54 -> 0 | N58: =L58*M58 -> 0 | P58: =J58+N58 -> 0
B59: February | D59: ='16. RTSR - Historical Wholesale'!D58 -> 0 | E59: =E58 -> 0 | F59: =D59*E59 -> 0 | H59: ='16. RTSR - Historical Wholesale'!H58 -> 0 | I59: =I58 -> 0 | J59: =H59*I59 -> 0 | L59: ='16. RTSR - Historical Wholesale'!L58 -> 0 | M59: =M58 -> 0 | N59: =L59*M59 -> 0 | P59: 0
B60: March | D60: ='16. RTSR - Historical Wholesale'!D59 -> 0 | E60: =E59 -> 0 | F60: 0 | H60: ='16. RTSR - Historical Wholesale'!H59 -> 0 | I60: =I59 -> 0 | J60: 0 | L60: ='16. RTSR - Historical Wholesale'!L59 -> 0 | M60: =M59 -> 0 | N60: 0 | P60: 0
B61: April | D61: ='16. RTSR - Historical Wholesale'!D60 -> 0 | E61: 0 | F61: 0 | H61: ='16. RTSR - Historical Wholesale'!H60 -> 0 | I61: 0 | J61: 0 | L61: ='16. RTSR - Historical Wholesale'!L60 -> 0 | M61: =M60 -> 0 | N61: 0 | P61: 0
B62: May | D62: ='16. RTSR - Historical Wholesale'!D61 -> 0 | E62: 0 | F62: 0 | H62: ='16. RTSR - Historical Wholesale'!H61 -> 0 | I62: 0 | J62: 0 | L62: ='16. RTSR - Historical Wholesale'!L61 -> 0 | M62: 0 | N62: 0 | P62: 0
B63: June | D63: ='16. RTSR - Historical Wholesale'!D62 -> 0 | E63: 0 | F63: 0 | H63: ='16. RTSR - Historical Wholesale'!H62 -> 0 | I63: 0 | J63: 0 | L63: ='16. RTSR - Historical Wholesale'!L62 -> 0 | M63: 0 | N63: 0 | P63: 0
B64: July | D64: ='16. RTSR - Historical Wholesale'!D63 -> 0 | E64: 0 | F64: 0 | H64: ='16. RTSR - Historical Wholesale'!H63 -> 0 | I64: 0 | J64: 0 | L64: ='16. RTSR - Historical Wholesale'!L63 -> 0 | M64: 0 | N64: 0 | P64: 0
B65: August | D65: ='16. RTSR - Historical Wholesale'!D64 -> 0 | E65: 0 | F65: 0 | H65: ='16. RTSR - Historical Wholesale'!H64 -> 0 | I65: 0 | J65: 0 | L65: ='16. RTSR - Historical Wholesale'!L64 -> 0 | M65: 0 | N65: 0 | P65: 0
B66: September | D66: ='16. RTSR - Historical Wholesale'!D65 -> 0 | E66: 0 | F66: 0 | H66: ='16. RTSR - Historical Wholesale'!H65 -> 0 | I66: 0 | J66: 0 | L66: ='16. RTSR - Historical Wholesale'!L65 -> 0 | M66: 0 | N66: 0 | P66: 0
B67: October | D67: ='16. RTSR - Historical Wholesale'!D66 -> 0 | E67: 0 | F67: 0 | H67: ='16. RTSR - Historical Wholesale'!H66 -> 0 | I67: 0 | J67: 0 | L67: ='16. RTSR - Historical Wholesale'!L66 -> 0 | M67: 0 | N67: 0 | P67: 0
B68: November | D68: ='16. RTSR - Historical Wholesale'!D67 -> 0 | E68: 0 | F68: 0 | H68: ='16. RTSR - Historical Wholesale'!H67 -> 0 | I68: 0 | J68: 0 | L68: ='16. RTSR - Historical Wholesale'!L67 -> 0 | M68: 0 | N68: 0 | P68: 0
B69: December | D69: ='16. RTSR - Historical Wholesale'!D68 -> 0 | E69: 0 | F69: 0 | H69: ='16. RTSR - Historical Wholesale'!H68 -> 0 | I69: 0 | J69: 0 | L69: ='16. RTSR - Historical Wholesale'!L68 -> 0 | M69: 0 | N69: 0 | P69: 0
B71: Total | D71: =SUM(D58:D69) -> 0 | E71: =IF(D71<>0,F71/D71,0) -> 0 | F71: =SUM(F58:F69) -> 0 | H71: =SUM(H58:H69) -> 0 | I71: =IF(H71<>0,J71/H71,0) -> 0 | J71: =SUM(J58:J69) -> 0 | L71: =SUM(L58:L69) -> 0 | M71: =IF(L71<>0,N71/L71,0) -> 0 | N71: =SUM(N58:N69) -> 0 | P71: =SUM(P58:P69) -> 0
B73: ='16. RTSR - Historical Wholesale'!B72 -> Add Extra Host Here (II) | D73: Network | H73: Line Connection | L73: Transformation Connection | P73: Total Line
B75: Month | D75: Units Billed | E75: Rate | F75: Amount | H75: Units Billed | I75: Rate | J75: Amount | L75: Units Billed | M75: Rate | N75: Amount | P75: Amount
B77: January | D77: ='16. RTSR - Historical Wholesale'!D76 -> 0 | E77: ='15. RTSR - UTRs & Sub-Tx'!G65 -> 0 | F77: =D77*E77 -> 0 | H77: ='16. RTSR - Historical Wholesale'!H76 -> 0 | I77: ='15. RTSR - UTRs & Sub-Tx'!G67 -> 0 | J77: =H77*I77 -> 0 | L77: ='16. RTSR - Historical Wholesale'!L76 -> 0 | M77: ='15. RTSR - UTRs & Sub-Tx'!G69 -> 0 | N77: =L77*M77 -> 0 | P77: =J77+N77 -> 0
B78: February | D78: ='16. RTSR - Historical Wholesale'!D77 -> 0 | E78: =E77 -> 0 | F78: =D78*E78 -> 0 | H78: ='16. RTSR - Historical Wholesale'!H77 -> 0 | I78: =I77 -> 0 | J78: =H78*I78 -> 0 | L78: ='16. RTSR - Historical Wholesale'!L77 -> 0 | M78: =M77 -> 0 | N78: =L78*M78 -> 0 | P78: 0
B79: March | D79: ='16. RTSR - Historical Wholesale'!D78 -> 0 | E79: =E78 -> 0 | F79: 0 | H79: ='16. RTSR - Historical Wholesale'!H78 -> 0 | I79: =I78 -> 0 | J79: 0 | L79: ='16. RTSR - Historical Wholesale'!L78 -> 0 | M79: =M78 -> 0 | N79: 0 | P79: 0
B80: April | D80: ='16. RTSR - Historical Wholesale'!D79 -> 0 | E80: 0 | F80: 0 | H80: ='16. RTSR - Historical Wholesale'!H79 -> 0 | I80: 0 | J80: 0 | L80: ='16. RTSR - Historical Wholesale'!L79 -> 0 | M80: =M79 -> 0 | N80: 0 | P80: 0
B81: May | D81: ='16. RTSR - Historical Wholesale'!D80 -> 0 | E81: 0 | F81: 0 | H81: ='16. RTSR - Historical Wholesale'!H80 -> 0 | I81: 0 | J81: 0 | L81: ='16. RTSR - Historical Wholesale'!L80 -> 0 | M81: 0 | N81: 0 | P81: 0
B82: June | D82: ='16. RTSR - Historical Wholesale'!D81 -> 0 | E82: 0 | F82: 0 | H82: ='16. RTSR - Historical Wholesale'!H81 -> 0 | I82: 0 | J82: 0 | L82: ='16. RTSR - Historical Wholesale'!L81 -> 0 | M82: 0 | N82: 0 | P82: 0
B83: July | D83: ='16. RTSR - Historical Wholesale'!D82 -> 0 | E83: 0 | F83: 0 | H83: ='16. RTSR - Historical Wholesale'!H82 -> 0 | I83: 0 | J83: 0 | L83: ='16. RTSR - Historical Wholesale'!L82 -> 0 | M83: 0 | N83: 0 | P83: 0
B84: August | D84: ='16. RTSR - Historical Wholesale'!D83 -> 0 | E84: 0 | F84: 0 | H84: ='16. RTSR - Historical Wholesale'!H83 -> 0 | I84: 0 | J84: 0 | L84: ='16. RTSR - Historical Wholesale'!L83 -> 0 | M84: 0 | N84: 0 | P84: 0
B85: September | D85: ='16. RTSR - Historical Wholesale'!D84 -> 0 | E85: 0 | F85: 0 | H85: ='16. RTSR - Historical Wholesale'!H84 -> 0 | I85: 0 | J85: 0 | L85: ='16. RTSR - Historical Wholesale'!L84 -> 0 | M85: 0 | N85: 0 | P85: 0
B86: October | D86: ='16. RTSR - Historical Wholesale'!D85 -> 0 | E86: 0 | F86: 0 | H86: ='16. RTSR - Historical Wholesale'!H85 -> 0 | I86: 0 | J86: 0 | L86: ='16. RTSR - Historical Wholesale'!L85 -> 0 | M86: 0 | N86: 0 | P86: 0
B87: November | D87: ='16. RTSR - Historical Wholesale'!D86 -> 0 | E87: 0 | F87: 0 | H87: ='16. RTSR - Historical Wholesale'!H86 -> 0 | I87: 0 | J87: 0 | L87: ='16. RTSR - Historical Wholesale'!L86 -> 0 | M87: 0 | N87: 0 | P87: 0
B88: December | D88: ='16. RTSR - Historical Wholesale'!D87 -> 0 | E88: 0 | F88: 0 | H88: ='16. RTSR - Historical Wholesale'!H87 -> 0 | I88: 0 | J88: 0 | L88: ='16. RTSR - Historical Wholesale'!L87 -> 0 | M88: 0 | N88: 0 | P88: 0
B90: Total | D90: =SUM(D77:D88) -> 0 | E90: =IF(D90<>0,F90/D90,0) -> 0 | F90: =SUM(F77:F88) -> 0 | H90: =SUM(H77:H88) -> 0 | I90: =IF(H90<>0,J90/H90,0) -> 0 | J90: =SUM(J77:J88) -> 0 | L90: =SUM(L77:L88) -> 0 | M90: =IF(L90<>0,N90/L90,0) -> 0 | N90: =SUM(N77:N88) -> 0 | P90: =SUM(P77:P88) -> 0
B92: Total | D92: Network | H92: Line Connection | L92: Transformation Connection | P92: Total Line
B94: Month | D94: Units Billed | E94: Rate | F94: Amount | H94: Units Billed | I94: Rate | J94: Amount | L94: Units Billed | M94: Rate | N94: Amount | P94: Amount
B96: January | D96: =D20+D39+D58+D77 -> 29839.63208 | E96: =IF(D96<>0,F96/D96,0) -> 3.818756995 | F96: =F20+F39+F58+F77 -> 113950.3037 | H96: =H20+H39+H58+H77 -> 30808.87143 | I96: =IF(H96<>0,J96/H96,0) -> 0.8190649635 | J96: =J20+J39+J58+J77 -> 25234.46715 | L96: =L20+L39+L58+L77 -> 30649.76074 | M96: =IF(L96<>0,N96/L96,0) -> 1.978593338 | N96: =N20+N39+N58+N77 -> 60643.41239 | P96: =J96+N96 -> 85877.87955
B97: February | D97: =D21+D40+D59+D78 -> 28122.0566 | E97: 3.818784776 | F97: =F21+F40+F59+F78 -> 107392.0816 | H97: =H21+H40+H59+H78 -> 29542.94286 | I97: 0.8191015723 | J97: =J21+J40+J59+J78 -> 24198.67095 | L97: =L21+L40+L59+L78 -> 29396.34356 | M97: 1.978648686 | N97: =N21+N40+N59+N78 -> 58165.03656 | P97: 82363.70751
B98: March | D98: 27555.79245 | E98: 3.818860622 | F98: 105231.7307 | H98: 28551.05714 | I98: 0.8191459264 | J98: 23387.48215 | L98: 28416.37423 | M98: 1.978715715 | N98: 56227.92626 | P98: 79615.40841
B99: April | D99: 25370.0283 | E99: 3.818793298 | F99: 96882.89406 | H99: 27912.17143 | I99: 0.8191481598 | J99: 22864.20386 | L99: 27780.84663 | M99: 1.978719089 | N99: 54970.49153 | P99: 77834.6954
B100: May | D100: 29623.01572 | E100: 3.819011648 | F100: 113130.6421 | H100: 32281.12857 | I100: 0.8192955859 | J100: 26447.78615 | L100: 32155.53374 | M100: 1.978941639 | N100: 63633.92466 | P100: 90081.71081
B101: June | D101: 36087.20126 | E101: 3.819419912 | F101: 137832.175 | H101: 36874.4 | I101: 0.8195590594 | J101: 30220.74858 | L101: 36784.59509 | M101: 1.979338467 | N101: 72809.16405 | P101: 103029.9126
B102: July | D102: 36290.06918 | E102: 3.818984814 | F102: 138591.2231 | H102: 39390 | I102: 0.8192735694 | J102: 32271.1859 | L102: 39231.95706 | M102: 1.978908427 | N102: 77636.45043 | P102: 109907.6363
B103: August | D103: 36515.54088 | E103: 3.819337573 | F103: 139465.1773 | H103: 36642.87143 | I103: 0.8194872859 | J103: 30028.36725 | L103: 36539.10429 | M103: 1.979230481 | N103: 72319.30896 | P103: 102347.6762
B104: September | D104: 35814.58491 | E104: 3.819113548 | F104: 136779.9664 | H104: 36684.7 | I104: 0.8193278476 | J104: 30056.79629 | L104: 36548.5092 | M104: 1.978990292 | N104: 72329.14491 | P104: 102385.9412
B105: October | D105: 25717.10063 | E105: 3.819222225 | F105: 98219.32227 | H105: 28276.38571 | I105: 0.8194506071 | J105: 23171.10144 | L105: 28190.58282 | M105: 1.979175263 | N105: 55794.10417 | P105: 78965.20561
B106: November | D106: 29649.74843 | E106: 3.818971663 | F106: 113231.5491 | H106: 29810.24286 | I106: 0.8192056158 | J106: 24420.71836 | L106: 29679.44785 | M106: 1.978805866 | N106: 58729.86552 | P106: 83150.58388
B107: December | D107: 30327.58805 | E107: 3.818836132 | F107: 115816.0891 | H107: 31385.38571 | I107: 0.8191265252 | J107: 25708.60194 | L107: 31233.96933 | M107: 1.9786864 | N107: 61802.23031 | P107: 87510.83225
B109: Total | D109: =SUM(D96:D107) -> 370912.3585 | E109: =IF(D109<>0,F109/D109,0) -> 3.81902388 | F109: =SUM(F96:F107) -> 1416523.154 | H109: =SUM(H96:H107) -> 388160.1571 | I109: =IF(H109<>0,J109/H109,0) -> 0.8192755598 | J109: =SUM(J96:J107) -> 318010.13 | L109: =SUM(L96:L107) -> 386607.0245 | M109: =IF(L109<>0,N109/L109,0) -> 1.97891143 | N109: =SUM(N96:N107) -> 765061.0598 | P109: =SUM(P96:P107) -> 1083071.19
N111: Transformer Allowance Credit (if applicable) | P111: ='15. RTSR - UTRs & Sub-Tx'!G95 -> 0
N113: Total including deduction for Transformer Allowance Credit | P113: =P109+P111 -> 1083071.19

Sheet 18. RTSR - Forecast Wholesale
B13: The purpose of this sheet is to calculate the expected billing when forecasted 2015 Uniform Transmission Rates are applied against historical 2013 transmission units.
B16: IESO | D16: Network | H16: Line Connection | L16: Transformation Connection | P16: Total Line
B18: Month | D18: Units Billed | E18: Rate | F18: Amount | H18: Units Billed | I18: Rate | J18: Amount | L18: Units Billed | M18: Rate | N18: Amount | P18: Amount
B20: January | D20: ='16. RTSR - Historical Wholesale'!D19 -> 29756 | E20: ='15. RTSR - UTRs & Sub-Tx'!I22 -> 3.78 | F20: =D20*E20 -> 112477.68 | H20: ='16. RTSR - Historical Wholesale'!H19 -> 30530 | I20: ='15. RTSR - UTRs & Sub-Tx'!I24 -> 0.86 | J20: =H20*I20 -> 26255.8 | L20: ='16. RTSR - Historical Wholesale'!L19 -> 30530 | M20: ='15. RTSR - UTRs & Sub-Tx'!I26 -> 2 | N20: =L20*M20 -> 61060 | P20: =J20+N20 -> 87315.8
B21: February | D21: ='16. RTSR - Historical Wholesale'!D20 -> 28045 | E21: =E20 -> 3.78 | F21: 106010.1 | H21: ='16. RTSR - Historical Wholesale'!H20 -> 29286 | I21: =I20 -> 0.86 | J21: 25185.96 | L21: ='16. RTSR - Historical Wholesale'!L20 -> 29286 | M21: =M20 -> 2 | N21: 58572 | P21: 83757.96
B22: March | D22: ='16. RTSR - Historical Wholesale'!D21 -> 27485 | E22: 3.78 | F22: 103893.3 | H22: ='16. RTSR - Historical Wholesale'!H21 -> 28315 | I22: 0.86 | J22: 24350.9 | L22: ='16. RTSR - Historical Wholesale'!L21 -> 28315 | M22: 2 | N22: 56630 | P22: 80980.9
B23: April | D23: ='16. RTSR - Historical Wholesale'!D22 -> 25301 | E23: 3.78 | F23: 95637.78 | H23: ='16. RTSR - Historical Wholesale'!H22 -> 27682 | I23: 0.86 | J23: 23806.52 | L23: ='16. RTSR - Historical Wholesale'!L22 -> 27682 | M23: 2 | N23: 55364 | P23: 79170.52
B24: May | D24: ='16. RTSR - Historical Wholesale'!D23 -> 29557 | E24: 3.78 | F24: 111725.46 | H24: ='16. RTSR - Historical Wholesale'!H23 -> 32061 | I24: 0.86 | J24: 27572.46 | L24: ='16. RTSR - Historical Wholesale'!L23 -> 32061 | M24: 2 | N24: 64122 | P24: 91694.46
B25: June | D25: ='16. RTSR - Historical Wholesale'!D24 -> 36040 | E25: 3.78 | F25: 136231.2 | H25: ='16. RTSR - Historical Wholesale'!H24 -> 36717 | I25: 0.86 | J25: 31576.62 | L25: ='16. RTSR - Historical Wholesale'!L24 -> 36717 | M25: 2 | N25: 73434 | P25: 105010.62
B26: July | D26: ='16. RTSR - Historical Wholesale'!D25 -> 36207 | E26: 3.78 | F26: 136862.46 | H26: ='16. RTSR - Historical Wholesale'!H25 -> 39113 | I26: 0.86 | J26: 33637.18 | L26: ='16. RTSR - Historical Wholesale'!L25 -> 39113 | M26: 2 | N26: 78226 | P26: 111863.18
B27: August | D27: ='16. RTSR - Historical Wholesale'!D26 -> 36461 | E27: 3.78 | F27: 137822.58 | H27: ='16. RTSR - Historical Wholesale'!H26 -> 36461 | I27: 0.86 | J27: 31356.46 | L27: ='16. RTSR - Historical Wholesale'!L26 -> 36461 | M27: 2 | N27: 72922 | P27: 104278.46
B28: September | D28: ='16. RTSR - Historical Wholesale'!D27 -> 35743 | E28: 3.78 | F28: 135108.54 | H28: ='16. RTSR - Historical Wholesale'!H27 -> 36446 | I28: 0.86 | J28: 31343.56 | L28: ='16. RTSR - Historical Wholesale'!L27 -> 36446 | M28: 2 | N28: 72892 | P28: 104235.56
B29: October | D29: ='16. RTSR - Historical Wholesale'!D28 -> 25672 | E29: 3.78 | F29: 97040.16 | H29: ='16. RTSR - Historical Wholesale'!H28 -> 28126 | I29: 0.86 | J29: 24188.36 | L29: ='16. RTSR - Historical Wholesale'!L28 -> 28126 | M29: 2 | N29: 56252 | P29: 80440.36
B30: November | D30: ='16. RTSR - Historical Wholesale'!D29 -> 29581 | E30: 3.78 | F30: 111816.18 | H30: ='16. RTSR - Historical Wholesale'!H29 -> 29581 | I30: 0.86 | J30: 25439.66 | L30: ='16. RTSR - Historical Wholesale'!L29 -> 29581 | M30: 2 | N30: 59162 | P30: 84601.66
B31: December | D31: ='16. RTSR - Historical Wholesale'!D30 -> 30248 | E31: 3.78 | F31: 114337.44 | H31: ='16. RTSR - Historical Wholesale'!H30 -> 31120 | I31: 0.86 | J31: 26763.2 | L31: ='16. RTSR - Historical Wholesale'!L30 -> 31120 | M31: 2 | N31: 62240 | P31: 89003.2
B33: Total | D33: =SUM(D20:D31) -> 370096 | E33: =IF(D33<>0,F33/D33,0) -> 3.78 | F33: =SUM(F20:F31) -> 1398962.88 | H33: =SUM(H20:H31) -> 385438 | I33: =IF(H33<>0,J33/H33,0) -> 0.86 | J33: =SUM(J20:J31) -> 331476.68 | L33: =SUM(L20:L31) -> 385438 | M33: =IF(L33<>0,N33/L33,0) -> 2 | N33: =SUM(N20:N31) -> 770876 | P33: =SUM(P20:P31) -> 1102352.68
B35: Hydro One | D35: Network | H35: Line Connection | L35: Transformation Connection | P35: Total Line
B37: Month | D37: Units Billed | E37: Rate | F37: Amount | H37: Units Billed | I37: Rate | J37: Amount | L37: Units Billed | M37: Rate | N37: Amount | P37: Amount
B39: January | D39: ='16. RTSR - Historical Wholesale'!D38 -> 83.63207547 | E39: ='15. RTSR - UTRs & Sub-Tx'!I35+'15. RTSR - UTRs & Sub-Tx'!I79 -> 3.23 | F39: =D39*E39 -> 270.1316038 | H39: ='16. RTSR - Historical Wholesale'!H38 -> 278.8714286 | I39: ='15. RTSR - UTRs & Sub-Tx'!I37+'15. RTSR - UTRs & Sub-Tx'!I81 -> 0.65 | J39: =H39*I39 -> 181.2664286 | L39: ='16. RTSR - Historical Wholesale'!L38 -> 119.7607362 | M39: ='15. RTSR - UTRs & Sub-Tx'!I39 -> 1.62 | N39: =L39*M39 -> 194.0123926 | P39: =J39+N39 -> 375.2788212
B40: February | D40: ='16. RTSR - Historical Wholesale'!D39 -> 77.05660377 | E40: =E39 -> 3.23 | F40: 248.8928302 | H40: ='16. RTSR - Historical Wholesale'!H39 -> 256.9428571 | I40: =I39 -> 0.65 | J40: 167.0128571 | L40: ='16. RTSR - Historical Wholesale'!L39 -> 110.3435583 | M40: =M39 -> 1.62 | N40: 178.7565644 | P40: 345.7694216
B41: March | D41: ='16. RTSR - Historical Wholesale'!D40 -> 70.79245283 | E41: 3.23 | F41: 228.6596226 | H41: ='16. RTSR - Historical Wholesale'!H40 -> 236.0571429 | I41: 0.65 | J41: 153.4371429 | L41: ='16. RTSR - Historical Wholesale'!L40 -> 101.3742331 | M41: 1.62 | N41: 164.2262577 | P41: 317.6634005
B42: April | D42: ='16. RTSR - Historical Wholesale'!D41 -> 69.02830189 | E42: 3.23 | F42: 222.9614151 | H42: ='16. RTSR - Historical Wholesale'!H41 -> 230.1714286 | I42: 0.65 | J42: 149.6114286 | L42: ='16. RTSR - Historical Wholesale'!L41 -> 98.84662577 | M42: 1.62 | N42: 160.1315337 | P42: 309.7429623
B43: May | D43: ='16. RTSR - Historical Wholesale'!D42 -> 66.01572327 | E43: 3.23 | F43: 213.2307862 | H43: ='16. RTSR - Historical Wholesale'!H42 -> 220.1285714 | I43: 0.65 | J43: 143.0835714 | L43: ='16. RTSR - Historical Wholesale'!L42 -> 94.53374233 | M43: 1.62 | N43: 153.1446626 | P43: 296.228234
B44: June | D44: ='16. RTSR - Historical Wholesale'!D43 -> 47.20125786 | E44: 3.23 | F44: 152.4600629 | H44: ='16. RTSR - Historical Wholesale'!H43 -> 157.4 | I44: 0.65 | J44: 102.31 | L44: ='16. RTSR - Historical Wholesale'!L43 -> 67.59509202 | M44: 1.62 | N44: 109.5040491 | P44: 211.8140491
B45: July | D45: ='16. RTSR - Historical Wholesale'!D44 -> 83.06918239 | E45: 3.23 | F45: 268.3134591 | H45: ='16. RTSR - Historical Wholesale'!H44 -> 277 | I45: 0.65 | J45: 180.05 | L45: ='16. RTSR - Historical Wholesale'!L44 -> 118.9570552 | M45: 1.62 | N45: 192.7104294 | P45: 372.7604294
B46: August | D46: ='16. RTSR - Historical Wholesale'!D45 -> 54.5408805 | E46: 3.23 | F46: 176.167044 | H46: ='16. RTSR - Historical Wholesale'!H45 -> 181.8714286 | I46: 0.65 | J46: 118.2164286 | L46: ='16. RTSR - Historical Wholesale'!L45 -> 78.10429448 | M46: 1.62 | N46: 126.5289571 | P46: 244.7453856
B47: September | D47: ='16. RTSR - Historical Wholesale'!D46 -> 71.58490566 | E47: 3.23 | F47: 231.2192453 | H47: ='16. RTSR - Historical Wholesale'!H46 -> 238.7 | I47: 0.65 | J47: 155.155 | L47: ='16. RTSR - Historical Wholesale'!L46 -> 102.5092025 | M47: 1.62 | N47: 166.064908 | P47: 321.219908
B48: October | D48: ='16. RTSR - Historical Wholesale'!D47 -> 45.10062893 | E48: 3.23 | F48: 145.6750314 | H48: ='16. RTSR - Historical Wholesale'!H47 -> 150.3857143 | I48: 0.65 | J48: 97.75071429 | L48: ='16. RTSR - Historical Wholesale'!L47 -> 64.58282209 | M48: 1.62 | N48: 104.6241718 | P48: 202.3748861
B49: November | D49: ='16. RTSR - Historical Wholesale'!D48 -> 68.74842767 | E49: 3.23 | F49: 222.0574214 | H49: ='16. RTSR - Historical Wholesale'!H48 -> 229.2428571 | I49: 0.65 | J49: 149.0078571 | L49: ='16. RTSR - Historical Wholesale'!L48 -> 98.44785276 | M49: 1.62 | N49: 159.4855215 | P49: 308.4933786
B50: December | D50: ='16. RTSR - Historical Wholesale'!D49 -> 79.58805031 | E50: 3.23 | F50: 257.0694025 | H50: ='16. RTSR - Historical Wholesale'!H49 -> 265.3857143 | I50: 0.65 | J50: 172.5007143 | L50: ='16. RTSR - Historical Wholesale'!L49 -> 113.9693252 | M50: 1.62 | N50: 184.6303067 | P50: 357.131021
B52: Total | D52: =SUM(D39:D50) -> 816.3584906 | E52: =IF(D52<>0,F52/D52,0) -> 3.23 | F52: =SUM(F39:F50) -> 2636.837925 | H52: =SUM(H39:H50) -> 2722.157143 | I52: =IF(H52<>0,J52/H52,0) -> 0.65 | J52: =SUM(J39:J50) -> 1769.402143 | L52: =SUM(L39:L50) -> 1169.02454 | M52: =IF(L52<>0,N52/L52,0) -> 1.62 | N52: =SUM(N39:N50) -> 1893.819755 | P52: =SUM(P39:P50) -> 3663.221897
B54: ='16. RTSR - Historical Wholesale'!B53 -> Add Extra Host Here (I) | D54: Network | H54: Line Connection | L54: Transformation Connection | P54: Total Line
B56: Month | D56: Units Billed | E56: Rate | F56: Amount | H56: Units Billed | I56: Rate | J56: Amount | L56: Units Billed | M56: Rate | N56: Amount | P56: Amount
B58: January | D58: ='16. RTSR - Historical Wholesale'!D57 -> 0 | E58: ='15. RTSR - UTRs & Sub-Tx'!I50 -> 0 | F58: =D58*E58 -> 0 | H58: ='16. RTSR - Historical Wholesale'!H57 -> 0 | I58: ='15. RTSR - UTRs & Sub-Tx'!I52 -> 0 | J58: =H58*I58 -> 0 | L58: ='16. RTSR - Historical Wholesale'!L57 -> 0 | M58: ='15. RTSR - UTRs & Sub-Tx'!I54 -> 0 | N58: =L58*M58 -> 0 | P58: =J58+N58 -> 0
B59: February | D59: ='16. RTSR - Historical Wholesale'!D58 -> 0 | E59: =E58 -> 0 | F59: 0 | H59: ='16. RTSR - Historical Wholesale'!H58 -> 0 | I59: =I58 -> 0 | J59: 0 | L59: ='16. RTSR - Historical Wholesale'!L58 -> 0 | M59: =M58 -> 0 | N59: 0 | P59: 0
B60: March | D60: ='16. RTSR - Historical Wholesale'!D59 -> 0 | E60: 0 | F60: 0 | H60: ='16. RTSR - Historical Wholesale'!H59 -> 0 | I60: 0 | J60: 0 | L60: ='16. RTSR - Historical Wholesale'!L59 -> 0 | M60: 0 | N60: 0 | P60: 0
B61: April | D61: ='16. RTSR - Historical Wholesale'!D60 -> 0 | E61: 0 | F61: 0 | H61: ='16. RTSR - Historical Wholesale'!H60 -> 0 | I61: 0 | J61: 0 | L61: ='16. RTSR - Historical Wholesale'!L60 -> 0 | M61: 0 | N61: 0 | P61: 0
B62: May | D62: ='16. RTSR - Historical Wholesale'!D61 -> 0 | E62: 0 | F62: 0 | H62: ='16. RTSR - Historical Wholesale'!H61 -> 0 | I62: 0 | J62: 0 | L62: ='16. RTSR - Historical Wholesale'!L61 -> 0 | M62: 0 | N62: 0 | P62: 0
B63: June | D63: ='16. RTSR - Historical Wholesale'!D62 -> 0 | E63: 0 | F63: 0 | H63: ='16. RTSR - Historical Wholesale'!H62 -> 0 | I63: 0 | J63: 0 | L63: ='16. RTSR - Historical Wholesale'!L62 -> 0 | M63: 0 | N63: 0 | P63: 0
B64: July | D64: ='16. RTSR - Historical Wholesale'!D63 -> 0 | E64: 0 | F64: 0 | H64: ='16. RTSR - Historical Wholesale'!H63 -> 0 | I64: 0 | J64: 0 | L64: ='16. RTSR - Historical Wholesale'!L63 -> 0 | M64: 0 | N64: 0 | P64: 0
B65: August | D65: ='16. RTSR - Historical Wholesale'!D64 -> 0 | E65: 0 | F65: 0 | H65: ='16. RTSR - Historical Wholesale'!H64 -> 0 | I65: 0 | J65: 0 | L65: ='16. RTSR - Historical Wholesale'!L64 -> 0 | M65: 0 | N65: 0 | P65: 0
B66: September | D66: ='16. RTSR - Historical Wholesale'!D65 -> 0 | E66: 0 | F66: 0 | H66: ='16. RTSR - Historical Wholesale'!H65 -> 0 | I66: 0 | J66: 0 | L66: ='16. RTSR - Historical Wholesale'!L65 -> 0 | M66: 0 | N66: 0 | P66: 0
B67: October | D67: ='16. RTSR - Historical Wholesale'!D66 -> 0 | E67: 0 | F67: 0 | H67: ='16. RTSR - Historical Wholesale'!H66 -> 0 | I67: 0 | J67: 0 | L67: ='16. RTSR - Historical Wholesale'!L66 -> 0 | M67: 0 | N67: 0 | P67: 0
B68: November | D68: ='16. RTSR - Historical Wholesale'!D67 -> 0 | E68: 0 | F68: 0 | H68: ='16. RTSR - Historical Wholesale'!H67 -> 0 | I68: 0 | J68: 0 | L68: ='16. RTSR - Historical Wholesale'!L67 -> 0 | M68: 0 | N68: 0 | P68: 0
B69: December | D69: ='16. RTSR - Historical Wholesale'!D68 -> 0 | E69: 0 | F69: 0 | H69: ='16. RTSR - Historical Wholesale'!H68 -> 0 | I69: 0 | J69: 0 | L69: ='16. RTSR - Historical Wholesale'!L68 -> 0 | M69: 0 | N69: 0 | P69: 0
B71: Total | D71: =SUM(D58:D69) -> 0 | E71: =IF(D71<>0,F71/D71,0) -> 0 | F71: =SUM(F58:F69) -> 0 | H71: =SUM(H58:H69) -> 0 | I71: =IF(H71<>0,J71/H71,0) -> 0 | J71: =SUM(J58:J69) -> 0 | L71: =SUM(L58:L69) -> 0 | M71: =IF(L71<>0,N71/L71,0) -> 0 | N71: =SUM(N58:N69) -> 0 | P71: =SUM(P58:P69) -> 0
B73: ='16. RTSR - Historical Wholesale'!B72 -> Add Extra Host Here (II) | D73: Network | H73: Line Connection | L73: Transformation Connection | P73: Total Line
B75: Month | D75: Units Billed | E75: Rate | F75: Amount | H75: Units Billed | I75: Rate | J75: Amount | L75: Units Billed | M75: Rate | N75: Amount | P75: Amount
B77: January | D77: ='16. RTSR - Historical Wholesale'!D76 -> 0 | E77: ='15. RTSR - UTRs & Sub-Tx'!I65 -> 0 | F77: =D77*E77 -> 0 | H77: ='16. RTSR - Historical Wholesale'!H76 -> 0 | I77: ='15. RTSR - UTRs & Sub-Tx'!I67 -> 0 | J77: =H77*I77 -> 0 | L77: ='16. RTSR - Historical Wholesale'!L76 -> 0 | M77: ='15. RTSR - UTRs & Sub-Tx'!I69 -> 0 | N77: =L77*M77 -> 0 | P77: =J77+N77 -> 0
B78: February | D78: ='16. RTSR - Historical Wholesale'!D77 -> 0 | E78: =E77 -> 0 | F78: 0 | H78: ='16. RTSR - Historical Wholesale'!H77 -> 0 | I78: =I77 -> 0 | J78: 0 | L78: ='16. RTSR - Historical Wholesale'!L77 -> 0 | M78: =M77 -> 0 | N78: 0 | P78: 0
B79: March | D79: ='16. RTSR - Historical Wholesale'!D78 -> 0 | E79: 0 | F79: 0 | H79: ='16. RTSR - Historical Wholesale'!H78 -> 0 | I79: 0 | J79: 0 | L79: ='16. RTSR - Historical Wholesale'!L78 -> 0 | M79: 0 | N79: 0 | P79: 0
B80: April | D80: ='16. RTSR - Historical Wholesale'!D79 -> 0 | E80: 0 | F80: 0 | H80: ='16. RTSR - Historical Wholesale'!H79 -> 0 | I80: 0 | J80: 0 | L80: ='16. RTSR - Historical Wholesale'!L79 -> 0 | M80: 0 | N80: 0 | P80: 0
B81: May | D81: ='16. RTSR - Historical Wholesale'!D80 -> 0 | E81: 0 | F81: 0 | H81: ='16. RTSR - Historical Wholesale'!H80 -> 0 | I81: 0 | J81: 0 | L81: ='16. RTSR - Historical Wholesale'!L80 -> 0 | M81: 0 | N81: 0 | P81: 0
B82: June | D82: ='16. RTSR - Historical Wholesale'!D81 -> 0 | E82: 0 | F82: 0 | H82: ='16. RTSR - Historical Wholesale'!H81 -> 0 | I82: 0 | J82: 0 | L82: ='16. RTSR - Historical Wholesale'!L81 -> 0 | M82: 0 | N82: 0 | P82: 0
B83: July | D83: ='16. RTSR - Historical Wholesale'!D82 -> 0 | E83: 0 | F83: 0 | H83: ='16. RTSR - Historical Wholesale'!H82 -> 0 | I83: 0 | J83: 0 | L83: ='16. RTSR - Historical Wholesale'!L82 -> 0 | M83: 0 | N83: 0 | P83: 0
B84: August | D84: ='16. RTSR - Historical Wholesale'!D83 -> 0 | E84: 0 | F84: 0 | H84: ='16. RTSR - Historical Wholesale'!H83 -> 0 | I84: 0 | J84: 0 | L84: ='16. RTSR - Historical Wholesale'!L83 -> 0 | M84: 0 | N84: 0 | P84: 0
B85: September | D85: ='16. RTSR - Historical Wholesale'!D84 -> 0 | E85: 0 | F85: 0 | H85: ='16. RTSR - Historical Wholesale'!H84 -> 0 | I85: 0 | J85: 0 | L85: ='16. RTSR - Historical Wholesale'!L84 -> 0 | M85: 0 | N85: 0 | P85: 0
B86: October | D86: ='16. RTSR - Historical Wholesale'!D85 -> 0 | E86: 0 | F86: 0 | H86: ='16. RTSR - Historical Wholesale'!H85 -> 0 | I86: 0 | J86: 0 | L86: ='16. RTSR - Historical Wholesale'!L85 -> 0 | M86: 0 | N86: 0 | P86: 0
B87: November | D87: ='16. RTSR - Historical Wholesale'!D86 -> 0 | E87: 0 | F87: 0 | H87: ='16. RTSR - Historical Wholesale'!H86 -> 0 | I87: 0 | J87: 0 | L87: ='16. RTSR - Historical Wholesale'!L86 -> 0 | M87: 0 | N87: 0 | P87: 0
B88: December | D88: ='16. RTSR - Historical Wholesale'!D87 -> 0 | E88: 0 | F88: 0 | H88: ='16. RTSR - Historical Wholesale'!H87 -> 0 | I88: 0 | J88: 0 | L88: ='16. RTSR - Historical Wholesale'!L87 -> 0 | M88: 0 | N88: 0 | P88: 0
B90: Total | D90: =SUM(D77:D88) -> 0 | E90: =IF(D90<>0,F90/D90,0) -> 0 | F90: =SUM(F77:F88) -> 0 | H90: =SUM(H77:H88) -> 0 | I90: =IF(H90<>0,J90/H90,0) -> 0 | J90: =SUM(J77:J88) -> 0 | L90: =SUM(L77:L88) -> 0 | M90: =IF(L90<>0,N90/L90,0) -> 0 | N90: =SUM(N77:N88) -> 0 | P90: =SUM(P77:P88) -> 0
B92: Total | D92: Network | H92: Line Connection | L92: Transformation Connection | P92: Total Line
B94: Month | D94: Units Billed | E94: Rate | F94: Amount | H94: Units Billed | I94: Rate | J94: Amount | L94: Units Billed | M94: Rate | N94: Amount | P94: Amount
B96: January | D96: =D20+D39 -> 29839.63208 | E96: =IF(D96<>0,F96/D96,0) -> 3.778458505 | F96: =F20+F39 -> 112747.8116 | H96: =H20+H39 -> 30808.87143 | I96: =IF(H96<>0,J96/H96,0) -> 0.8580991514 | J96: =J20+J39 -> 26437.06643 | L96: =L20+L39 -> 30649.76074 | M96: =IF(L96<>0,N96/L96,0) -> 1.99851519 | N96: =N20+N39 -> 61254.01239 | P96: =J96+N96 -> 87691.07882
B97: February | D97: 28122.0566 | E97: 3.778492958 | F97: 106258.9928 | H97: 29542.94286 | I97: 0.858173574 | J97: 25352.97286 | L97: 29396.34356 | M97: 1.998573613 | N97: 58750.75656 | P97: 84103.72942
B98: March | D98: 27555.79245 | E98: 3.778587018 | F98: 104121.9596 | H98: 28551.05714 | I98: 0.858263742 | J98: 24504.33714 | L98: 28416.37423 | M98: 1.998644366 | N98: 56794.22626 | P98: 81298.5634
B99: April | D99: 25370.0283 | E99: 3.778503527 | F99: 95860.74142 | H99: 27912.17143 | I99: 0.8582682823 | J99: 23956.13143 | L99: 27780.84663 | M99: 1.998647928 | N99: 55524.13153 | P99: 79480.26296
B100: May | D100: 29623.01572 | E100: 3.77877431 | F100: 111938.6908 | H100: 32281.12857 | I100: 0.8585679869 | J100: 27715.54357 | L100: 32155.53374 | M100: 1.998882842 | N100: 64275.14466 | P100: 91990.68823
B101: June | D101: 36087.20126 | E101: 3.779280612 | F101: 136383.6601 | H101: 36874.4 | I101: 0.8591036058 | J101: 31678.93 | L101: 36784.59509 | M101: 1.999301715 | N101: 73543.50405 | P101: 105222.434
B102: July | D102: 36290.06918 | E102: 3.778741032 | F102: 137130.7735 | H102: 39390 | I102: 0.8585232292 | J102: 33817.23 | L102: 39231.95706 | M102: 1.998847784 | N102: 78418.71043 | P102: 112235.9404
B103: August | D103: 36515.54088 | E103: 3.779178501 | F103: 137998.747 | H103: 36642.87143 | I103: 0.8589576963 | J103: 31474.67643 | L103: 36539.10429 | M103: 1.99918773 | N103: 73048.52896 | P103: 104523.2054
B104: September | D104: 35814.58491 | E104: 3.77890068 | F104: 135339.7592 | H104: 36684.7 | I104: 0.858633572 | J104: 31498.715 | L104: 36548.5092 | M104: 1.998934197 | N104: 73058.06491 | P104: 104556.7799
B105: October | D105: 25717.10063 | E105: 3.779035453 | F105: 97185.83503 | H105: 28276.38571 | I105: 0.8588831317 | J105: 24286.11071 | L105: 28190.58282 | M105: 1.999129444 | N105: 56356.62417 | P105: 80642.73489
B106: November | D106: 29649.74843 | E106: 3.778724723 | F106: 112038.2374 | H106: 29810.24286 | I106: 0.8583850853 | J106: 25588.66786 | L106: 29679.44785 | M106: 1.998739526 | N106: 59321.48552 | P106: 84910.15338
B107: December | D107: 30327.58805 | E107: 3.778556647 | F107: 114594.5094 | H107: 31385.38571 | I107: 0.8582243009 | J107: 26935.70071 | L107: 31233.96933 | M107: 1.998613422 | N107: 62424.63031 | P107: 89360.33102
B109: Total | D109: =SUM(D96:D107) -> 370912.3585 | E109: =IF(D109<>0,F109/D109,0) -> 3.778789479 | F109: =SUM(F96:F107) -> 1401599.718 | H109: =SUM(H96:H107) -> 388160.1571 | I109: =IF(H109<>0,J109/H109,0) -> 0.8585272754 | J109: =SUM(J96:J107) -> 333246.0821 | L109: =SUM(L96:L107) -> 386607.0245 | M109: =IF(L109<>0,N109/L109,0) -> 1.998850954 | N109: =SUM(N96:N107) -> 772769.8198 | P109: =SUM(P96:P107) -> 1106015.902
N111: Transformer Allowance Credit (if applicable) | P111: ='15. RTSR - UTRs & Sub-Tx'!I95 -> 0
N113: Total including deduction for Transformer Allowance Credit | P113: =P109+P111 -> 1106015.902

Sheet 19. RTSR Ntwrk to Curren WS
A13: The purpose of this sheet is to re-align the current RTS Network Rates to recover current wholesale network costs.
A16: Rate Class | B16: Rate Description | C16: Unit | E16: Current RTSR-Network | G16: Loss Adjusted Billed kWh | I16: Loss Adjusted Billed kW | K16: Billed Amount | M16: Billed Amount % | O16: Current Wholesale Billing | Q16: Proposed RTSR Network
A19: RESIDENTIAL | B19: Retail Transmission Rate - Network Service Rate | C19: $/kWh | E19: 0.0073 | G19: 51367609.03 | I19: 0 | K19: =IF(E19="", "", IF(C19="$/kWh", E19*G19, E19*I19)) -> 374983.5459 | M19: =IF(ISERROR(K19/SUM(K19:K100)),"",K19/SUM(K19:K100)) -> 0.2683847053 | O19: =IF(ISERROR('17. RTSR - Current Wholesale'!$F$109*M19), "", '17. RTSR - Current Wholesale'!$F$109*M19) -> 380173.1494 | Q19: =IF(C19="","",IF(C19="$/kWh",IF(G19<>0,O19/G19,),IF(I19<>0,O19/I19,0))) -> 0.007401028715
A20: GENERAL SERVICE LESS THAN 50 KW | B20: Retail Transmission Rate - Network Service Rate | C20: $/kWh | E20: 0.0065 | G20: 22792017.85 | I20: 0 | K20: 148148.116 | M20: =IF(ISERROR(K20/SUM(K19:K100)),"",K20/SUM(K19:K100)) -> 0.1060331551 | O20: =IF(ISERROR('17. RTSR - Current Wholesale'!$F$109*M20), "", '17. RTSR - Current Wholesale'!$F$109*M20) -> 150198.4193 | Q20: 0.006589957075
A21: GENERAL SERVICE 50 TO 499 KW | B21: Retail Transmission Rate - Network Service Rate | C21: $/kW | E21: 2.5311 | G21: 0 | I21: 128881 | K21: 326210.6991 | M21: =IF(ISERROR(K21/SUM(K19:K100)),"",K21/SUM(K19:K100)) -> 0.2334768107 | O21: =IF(ISERROR('17. RTSR - Current Wholesale'!$F$109*M21), "", '17. RTSR - Current Wholesale'!$F$109*M21) -> 330725.3084 | Q21: 2.566129285
A22: GENERAL SERVICE 50 TO 1,499 KW | B22: Retail Transmission Rate - Network Service Rate - Interval Metered | C22: $/kW | E22: 3.3168 | G22: 0 | I22: 92293 | K22: 306117.4224 | M22: =IF(ISERROR(K22/SUM(K19:K100)),"",K22/SUM(K19:K100)) -> 0.2190955713 | O22: =IF(ISERROR('17. RTSR - Current Wholesale'!$F$109*M22), "", '17. RTSR - Current Wholesale'!$F$109*M22) -> 310353.9498 | Q22: 3.362703019
A23: GENERAL SERVICE EQUAL TO OR GREATER THAN 1,500 KW | B23: Retail Transmission Rate - Network Service Rate - Interval Metered | C23: $/kW | E23: 3.3168 | G23: 0 | I23: 69490 | K23: 230484.432 | M23: =IF(ISERROR(K23/SUM(K19:K100)),"",K23/SUM(K19:K100)) -> 0.1649632285 | O23: =IF(ISERROR('17. RTSR - Current Wholesale'!$F$109*M23), "", '17. RTSR - Current Wholesale'!$F$109*M23) -> 233674.2328 | Q23: 3.362703019
A24: UNMETERED SCATTERED LOAD | B24: Retail Transmission Rate - Network Service Rate | C24: $/kWh | E24: 0.0065 | G24: 401692.2751 | I24: 0 | K24: 2610.999788 | M24: =IF(ISERROR(K24/SUM(K19:K100)),"",K24/SUM(K19:K100)) -> 0.001868755087 | O24: =IF(ISERROR('17. RTSR - Current Wholesale'!$F$109*M24), "", '17. RTSR - Current Wholesale'!$F$109*M24) -> 2647.13485 | Q24: 0.006589957075
A25: SENTINEL LIGHTING | B25: Retail Transmission Rate - Network Service Rate | C25: $/kW | E25: 2.084 | G25: 0 | I25: 320.3 | K25: 667.5052 | M25: =IF(ISERROR(K25/SUM(K19:K100)),"",K25/SUM(K19:K100)) -> 0.0004777494596 | O25: =IF(ISERROR('17. RTSR - Current Wholesale'!$F$109*M25), "", '17. RTSR - Current Wholesale'!$F$109*M25) -> 676.7431716 | Q25: 2.112841622
A26: STREET LIGHTING | B26: Retail Transmission Rate - Network Service Rate | C26: $/kW | E26: 2.0787 | G26: 0 | I26: 3831.24 | K26: 7963.998588 | M26: =IF(ISERROR(K26/SUM(K19:K100)),"",K26/SUM(K19:K100)) -> 0.005700024542 | O26: =IF(ISERROR('17. RTSR - Current Wholesale'!$F$109*M26), "", '17. RTSR - Current Wholesale'!$F$109*M26) -> 8074.216745 | Q26: 2.107468273

Sheet 20. RTSR Adj Conn to Current WS
A13: The purpose of this sheet is to re-align the current RTS Connection Rates to recover current wholesale connection costs.
A16: Rate Class | B16: Rate Description | C16: Unit | E16: Current RTSR-Connection | G16: Loss Adjusted Billed kWh | I16: Loss Adjusted Billed kW | K16: Billed Amount | M16: Billed Amount % | O16: Current Wholesale Billing | Q16: Proposed RTSR Connection
A19: RESIDENTIAL | B19: Retail Transmission Rate - Line and Transformation Connection Service Rate | C19: $/kWh | E19: 0.0054 | G19: 51367609.03 | I19: 0 | K19: =IF(E19="", "", IF(C19="$/kWh", E19*G19, E19*I19)) -> 277385.0887 | M19: =IF(ISERROR(K19/SUM(K19:K100)),"",K19/SUM(K19:K100)) -> 0.2643450062 | O19: =IF(ISERROR('17. RTSR - Current Wholesale'!$P$113*M19), "", '17. RTSR - Current Wholesale'!$P$113*M19) -> 286304.4604 | Q19: =IF(C19="","",IF(C19="$/kWh",IF(G19<>0,O19/G19,),IF(I19<>0,O19/I19,0))) -> 0.005573638053
A20: GENERAL SERVICE LESS THAN 50 KW | B20: Retail Transmission Rate - Line and Transformation Connection Service Rate | C20: $/kWh | E20: 0.0048 | G20: 22792017.85 | I20: 0 | K20: 109401.6857 | M20: =IF(ISERROR(K20/SUM(K19:K100)),"",K20/SUM(K19:K100)) -> 0.1042586298 | O20: =IF(ISERROR('17. RTSR - Current Wholesale'!$P$113*M20), "", '17. RTSR - Current Wholesale'!$P$113*M20) -> 112919.5182 | Q20: 0.004954344936
A21: GENERAL SERVICE 50 TO 499 KW | B21: Retail Transmission Rate - Line and Transformation Connection Service Rate | C21: $/kW | E21: 1.8727 | G21: 0 | I21: 128881 | K21: 241355.4487 | M21: =IF(ISERROR(K21/SUM(K19:K100)),"",K21/SUM(K19:K100)) -> 0.2300091468 | O21: =IF(ISERROR('17. RTSR - Current Wholesale'!$P$113*M21), "", '17. RTSR - Current Wholesale'!$P$113*M21) -> 249116.2802 | Q21: 1.932917034
A22: GENERAL SERVICE 50 TO 1,499 KW | B22: Retail Transmission Rate - Line and Transformation Connection Service Rate - Interval Metered | C22: $/kW | E22: 2.552 | G22: 0 | I22: 92293 | K22: 235531.736 | M22: =IF(ISERROR(K22/SUM(K19:K100)),"",K22/SUM(K19:K100)) -> 0.2244592112 | O22: =IF(ISERROR('17. RTSR - Current Wholesale'!$P$113*M22), "", '17. RTSR - Current Wholesale'!$P$113*M22) -> 243105.3049 | Q22: 2.634060058
A23: GENERAL SERVICE EQUAL TO OR GREATER THAN 1,500 KW | B23: Retail Transmission Rate - Line and Transformation Connection Service Rate - Interval Metered | C23: $/kW | E23: 2.552 | G23: 0 | I23: 69490 | K23: 177338.48 | M23: =IF(ISERROR(K23/SUM(K19:K100)),"",K23/SUM(K19:K100)) -> 0.1690016641 | O23: =IF(ISERROR('17. RTSR - Current Wholesale'!$P$113*M23), "", '17. RTSR - Current Wholesale'!$P$113*M23) -> 183040.8334 | Q23: 2.634060058
A24: UNMETERED SCATTERED LOAD | B24: Retail Transmission Rate - Line and Transformation Connection Service Rate | C24: $/kWh | E24: 0.0048 | G24: 401692.2751 | I24: 0 | K24: 1928.12292 | M24: =IF(ISERROR(K24/SUM(K19:K100)),"",K24/SUM(K19:K100)) -> 0.001837480406 | O24: =IF(ISERROR('17. RTSR - Current Wholesale'!$P$113*M24), "", '17. RTSR - Current Wholesale'!$P$113*M24) -> 1990.122089 | Q24: 0.004954344936
A25: SENTINEL LIGHTING | B25: Retail Transmission Rate - Line and Transformation Connection Service Rate | C25: $/kW | E25: 1.5426 | G25: 0 | I25: 320.3 | K25: 494.09478 | M25: =IF(ISERROR(K25/SUM(K19:K100)),"",K25/SUM(K19:K100)) -> 0.0004708670112 | O25: =IF(ISERROR('17. RTSR - Current Wholesale'!$P$113*M25), "", '17. RTSR - Current Wholesale'!$P$113*M25) -> 509.982494 | Q25: 1.592202604
A26: STREET LIGHTING | B26: Retail Transmission Rate - Line and Transformation Connection Service Rate | C26: $/kW | E26: 1.5387 | G26: 0 | I26: 3831.24 | K26: 5895.128988 | M26: =IF(ISERROR(K26/SUM(K19:K100)),"",K26/SUM(K19:K100)) -> 0.005617994522 | O26: =IF(ISERROR('17. RTSR - Current Wholesale'!$P$113*M26), "", '17. RTSR - Current Wholesale'!$P$113*M26) -> 6084.688011 | Q26: 1.588177199

Sheet 21. RTSR Adj Ntwk to Forcast WS
A13: The purpose of this sheet is to update the re-align RTS Network Rates to recover forecast wholesale network costs.
A16: Rate Class | B16: Rate Description | C16: Unit | E16: Adjusted RTSR-Network | G16: Loss Adjusted Billed kWh | I16: Loss Adjusted Billed kW | K16: Billed Amount | M16: Billed Amount % | O16: Forecast Wholesale Billing | Q16: Proposed RTSR Network
A19: RESIDENTIAL | B19: Retail Transmission Rate - Network Service Rate | C19: $/kWh | E19: 0.007401028715 | G19: 51367609.03 | I19: 0 | K19: =IF(E19="", "", IF(C19="$/kWh", E19*G19, E19*I19)) -> 380173.1494 | M19: =IF(ISERROR(K19/SUM(K19:K100)),"",K19/SUM(K19:K100)) -> 0.2683847053 | O19: =IF(ISERROR('18. RTSR - Forecast Wholesale'!$F$109*M19), "", '18. RTSR - Forecast Wholesale'!$F$109*M19) -> 376167.9273 | Q19: =IF(C19="","",IF(C19="$/kWh",IF(G19<>0,O19/G19,),IF(I19<>0,O19/I19,0))) -> 0.00732305697
A20: GENERAL SERVICE LESS THAN 50 KW | B20: Retail Transmission Rate - Network Service Rate | C20: $/kWh | E20: 0.006589957075 | G20: 22792017.85 | I20: 0 | K20: =IF(E20="", "", IF(C20="$/kWh", E20*G20, E20*I20)) -> 150198.4193 | M20: =IF(ISERROR(K20/SUM(K19:K100)),"",K20/SUM(K19:K100)) -> 0.1060331551 | O20: =IF(ISERROR('18. RTSR - Forecast Wholesale'!$F$109*M20), "", '18. RTSR - Forecast Wholesale'!$F$109*M20) -> 148616.0402 | Q20: =IF(C20="","",IF(C20="$/kWh",IF(G20<>0,O20/G20,),IF(I20<>0,O20/I20,0))) -> 0.006520530179
A21: GENERAL SERVICE 50 TO 499 KW | B21: Retail Transmission Rate - Network Service Rate | C21: $/kW | E21: 2.566129285 | G21: 0 | I21: 128881 | K21: =IF(E21="", "", IF(C21="$/kWh", E21*G21, E21*I21)) -> 330725.3084 | M21: =IF(ISERROR(K21/SUM(K19:K100)),"",K21/SUM(K19:K100)) -> 0.2334768107 | O21: =IF(ISERROR('18. RTSR - Forecast Wholesale'!$F$109*M21), "", '18. RTSR - Forecast Wholesale'!$F$109*M21) -> 327241.032 | Q21: =IF(C21="","",IF(C21="$/kWh",IF(G21<>0,O21/G21,),IF(I21<>0,O21/I21,0))) -> 2.539094452
A22: GENERAL SERVICE 50 TO 1,499 KW | B22: Retail Transmission Rate - Network Service Rate - Interval Metered | C22: $/kW | E22: 3.362703019 | G22: 0 | I22: 92293 | K22: =IF(E22="", "", IF(C22="$/kWh", E22*G22, E22*I22)) -> 310353.9498 | M22: =IF(ISERROR(K22/SUM(K19:K100)),"",K22/SUM(K19:K100)) -> 0.2190955713 | O22: =IF(ISERROR('18. RTSR - Forecast Wholesale'!$F$109*M22), "", '18. RTSR - Forecast Wholesale'!$F$109*M22) -> 307084.2909 | Q22: =IF(C22="","",IF(C22="$/kWh",IF(G22<>0,O22/G22,),IF(I22<>0,O22/I22,0))) -> 3.327276076
A23: GENERAL SERVICE EQUAL TO OR GREATER THAN 1,500 KW | B23: Retail Transmission Rate - Network Service Rate - Interval Metered | C23: $/kW | E23: 3.362703019 | G23: 0 | I23: 69490 | K23: =IF(E23="", "", IF(C23="$/kWh", E23*G23, E23*I23)) -> 233674.2328 | M23: =IF(ISERROR(K23/SUM(K19:K100)),"",K23/SUM(K19:K100)) -> 0.1649632285 | O23: =IF(ISERROR('18. RTSR - Forecast Wholesale'!$F$109*M23), "", '18. RTSR - Forecast Wholesale'!$F$109*M23) -> 231212.4146 | Q23: =IF(C23="","",IF(C23="$/kWh",IF(G23<>0,O23/G23,),IF(I23<>0,O23/I23,0))) -> 3.327276076
A24: UNMETERED SCATTERED LOAD | B24: Retail Transmission Rate - Network Service Rate | C24: $/kWh | E24: 0.006589957075 | G24: 401692.2751 | I24: 0 | K24: =IF(E24="", "", IF(C24="$/kWh", E24*G24, E24*I24)) -> 2647.13485 | M24: =IF(ISERROR(K24/SUM(K19:K100)),"",K24/SUM(K19:K100)) -> 0.001868755087 | O24: =IF(ISERROR('18. RTSR - Forecast Wholesale'!$F$109*M24), "", '18. RTSR - Forecast Wholesale'!$F$109*M24) -> 2619.246602 | Q24: =IF(C24="","",IF(C24="$/kWh",IF(G24<>0,O24/G24,),IF(I24<>0,O24/I24,0))) -> 0.006520530179
A25: SENTINEL LIGHTING | B25: Retail Transmission Rate - Network Service Rate | C25: $/kW | E25: 2.112841622 | G25: 0 | I25: 320.3 | K25: =IF(E25="", "", IF(C25="$/kWh", E25*G25, E25*I25)) -> 676.7431716 | M25: =IF(ISERROR(K25/SUM(K19:K100)),"",K25/SUM(K19:K100)) -> 0.0004777494596 | O25: =IF(ISERROR('18. RTSR - Forecast Wholesale'!$F$109*M25), "", '18. RTSR - Forecast Wholesale'!$F$109*M25) -> 669.6135079 | Q25: =IF(C25="","",IF(C25="$/kWh",IF(G25<>0,O25/G25,),IF(I25<>0,O25/I25,0))) -> 2.090582291
A26: STREET LIGHTING | B26: Retail Transmission Rate - Network Service Rate | C26: $/kW | E26: 2.107468273 | G26: 0 | I26: 3831.24 | K26: =IF(E26="", "", IF(C26="$/kWh", E26*G26, E26*I26)) -> 8074.216745 | M26: =IF(ISERROR(K26/SUM(K19:K100)),"",K26/SUM(K19:K100)) -> 0.005700024542 | O26: =IF(ISERROR('18. RTSR - Forecast Wholesale'!$F$109*M26), "", '18. RTSR - Forecast Wholesale'!$F$109*M26) -> 7989.15279 | Q26: =IF(C26="","",IF(C26="$/kWh",IF(G26<>0,O26/G26,),IF(I26<>0,O26/I26,0))) -> 2.085265551

Sheet 22. RTSR Adj Conn. to Forcst WS
A13: The purpose of this sheet is to update the re-aligned RTS Connection Rates to recover forecast wholesale connection costs.
A16: Rate Class | B16: Rate Description | C16: Unit | E16: Adjusted RTSR-Connection | G16: Loss Adjusted Billed kWh | I16: Loss Adjusted Billed kW | K16: Billed Amount | M16: Billed Amount % | O16: Forecast Wholesale Billing | Q16: Proposed RTSR Connection
A19: RESIDENTIAL | B19: Retail Transmission Rate - Line and Transformation Connection Service Rate | C19: $/kWh | E19: 0.005573638053 | G19: 51367609.03 | I19: 0 | K19: =IF(E19="", "", IF(C19="$/kWh", E19*G19, E19*I19)) -> 286304.4604 | M19: =IF(ISERROR(K19/SUM(K19:K100)),"",K19/SUM(K19:K100)) -> 0.2643450062 | O19: =IF(ISERROR('18. RTSR - Forecast Wholesale'!$P$113*M19), "", '18. RTSR - Forecast Wholesale'!$P$113*M19) -> 292369.7805 | Q19: =IF(C19="","",IF(C19="$/kWh",IF(G19<>0,O19/G19,),IF(I19<>0,O19/I19,0))) -> 0.005691714798
A20: GENERAL SERVICE LESS THAN 50 KW | B20: Retail Transmission Rate - Line and Transformation Connection Service Rate | C20: $/kWh | E20: 0.004954344936 | G20: 22792017.85 | I20: 0 | K20: =IF(E20="", "", IF(C20="$/kWh", E20*G20, E20*I20)) -> 112919.5182 | M20: =IF(ISERROR(K20/SUM(K19:K100)),"",K20/SUM(K19:K100)) -> 0.1042586298 | O20: =IF(ISERROR('18. RTSR - Forecast Wholesale'!$P$113*M20), "", '18. RTSR - Forecast Wholesale'!$P$113*M20) -> 115311.7025 | Q20: =IF(C20="","",IF(C20="$/kWh",IF(G20<>0,O20/G20,),IF(I20<>0,O20/I20,0))) -> 0.005059302043
A21: GENERAL SERVICE 50 TO 499 KW | B21: Retail Transmission Rate - Line and Transformation Connection Service Rate | C21: $/kW | E21: 1.932917034 | G21: 0 | I21: 128881 | K21: =IF(E21="", "", IF(C21="$/kWh", E21*G21, E21*I21)) -> 249116.2802 | M21: =IF(ISERROR(K21/SUM(K19:K100)),"",K21/SUM(K19:K100)) -> 0.2300091468 | O21: =IF(ISERROR('18. RTSR - Forecast Wholesale'!$P$113*M21), "", '18. RTSR - Forecast Wholesale'!$P$113*M21) -> 254393.7739 | Q21: =IF(C21="","",IF(C21="$/kWh",IF(G21<>0,O21/G21,),IF(I21<>0,O21/I21,0))) -> 1.973865612
A22: GENERAL SERVICE 50 TO 1,499 KW | B22: Retail Transmission Rate - Line and Transformation Connection Service Rate - Interval Metered | C22: $/kW | E22: 2.634060058 | G22: 0 | I22: 92293 | K22: =IF(E22="", "", IF(C22="$/kWh", E22*G22, E22*I22)) -> 243105.3049 | M22: =IF(ISERROR(K22/SUM(K19:K100)),"",K22/SUM(K19:K100)) -> 0.2244592112 | O22: =IF(ISERROR('18. RTSR - Forecast Wholesale'!$P$113*M22), "", '18. RTSR - Forecast Wholesale'!$P$113*M22) -> 248255.4569 | Q22: =IF(C22="","",IF(C22="$/kWh",IF(G22<>0,O22/G22,),IF(I22<>0,O22/I22,0))) -> 2.689862253
A23: GENERAL SERVICE EQUAL TO OR GREATER THAN 1,500 KW | B23: Retail Transmission Rate - Line and Transformation Connection Service Rate - Interval Metered | C23: $/kW | E23: 2.634060058 | G23: 0 | I23: 69490 | K23: =IF(E23="", "", IF(C23="$/kWh", E23*G23, E23*I23)) -> 183040.8334 | M23: =IF(ISERROR(K23/SUM(K19:K100)),"",K23/SUM(K19:K100)) -> 0.1690016641 | O23: =IF(ISERROR('18. RTSR - Forecast Wholesale'!$P$113*M23), "", '18. RTSR - Forecast Wholesale'!$P$113*M23) -> 186918.528 | Q23: =IF(C23="","",IF(C23="$/kWh",IF(G23<>0,O23/G23,),IF(I23<>0,O23/I23,0))) -> 2.689862253
A24: UNMETERED SCATTERED LOAD | B24: Retail Transmission Rate - Line and Transformation Connection Service Rate | C24: $/kWh | E24: 0.004954344936 | G24: 401692.2751 | I24: 0 | K24: =IF(E24="", "", IF(C24="$/kWh", E24*G24, E24*I24)) -> 1990.122089 | M24: =IF(ISERROR(K24/SUM(K19:K100)),"",K24/SUM(K19:K100)) -> 0.001837480406 | O24: =IF(ISERROR('18. RTSR - Forecast Wholesale'!$P$113*M24), "", '18. RTSR - Forecast Wholesale'!$P$113*M24) -> 2032.282548 | Q24: =IF(C24="","",IF(C24="$/kWh",IF(G24<>0,O24/G24,),IF(I24<>0,O24/I24,0))) -> 0.005059302043
A25: SENTINEL LIGHTING | B25: Retail Transmission Rate - Line and Transformation Connection Service Rate | C25: $/kW | E25: 1.592202604 | G25: 0 | I25: 320.3 | K25: =IF(E25="", "", IF(C25="$/kWh", E25*G25, E25*I25)) -> 509.982494 | M25: =IF(ISERROR(K25/SUM(K19:K100)),"",K25/SUM(K19:K100)) -> 0.0004708670112 | O25: =IF(ISERROR('18. RTSR - Forecast Wholesale'!$P$113*M25), "", '18. RTSR - Forecast Wholesale'!$P$113*M25) -> 520.7864021 | Q25: =IF(C25="","",IF(C25="$/kWh",IF(G25<>0,O25/G25,),IF(I25<>0,O25/I25,0))) -> 1.625933194
A26: STREET LIGHTING | B26: Retail Transmission Rate - Line and Transformation Connection Service Rate | C26: $/kW | E26: 1.588177199 | G26: 0 | I26: 3831.24 | K26: =IF(E26="", "", IF(C26="$/kWh", E26*G26, E26*I26)) -> 6084.688011 | M26: =IF(ISERROR(K26/SUM(K19:K100)),"",K26/SUM(K19:K100)) -> 0.005617994522 | O26: =IF(ISERROR('18. RTSR - Forecast Wholesale'!$P$113*M26), "", '18. RTSR - Forecast Wholesale'!$P$113*M26) -> 6213.591278 | Q26: =IF(C26="","",IF(C26="$/kWh",IF(G26<>0,O26/G26,),IF(I26<>0,O26/I26,0))) -> 1.621822511

Sheet 23. RTSR Final 2015 RTS Rates
A13: This sheet lists proposed RTSRs for all classes. No input required.
A16: Rate Class | B16: Rate Description | C16: Unit | E16: Proposed Retail Transmission Rate
A19: RESIDENTIAL | B19: Retail Transmission Rate - Network Service Rate | C19: $/kWh | E19: 0.00732305697
A20: RESIDENTIAL | B20: Retail Transmission Rate - Line and Transformation Connection Service Rate | C20: $/kWh | E20: 0.005691714798
A21: GENERAL SERVICE LESS THAN 50 KW | B21: Retail Transmission Rate - Network Service Rate | C21: $/kWh | E21: 0.006520530179
A22: GENERAL SERVICE LESS THAN 50 KW | B22: Retail Transmission Rate - Line and Transformation Connection Service Rate | C22: $/kWh | E22: 0.005059302043
A23: GENERAL SERVICE 50 TO 499 KW | B23: Retail Transmission Rate - Network Service Rate | C23: $/kW | E23: 2.539094452
A24: GENERAL SERVICE 50 TO 499 KW | B24: Retail Transmission Rate - Line and Transformation Connection Service Rate | C24: $/kW | E24: 1.973865612
A25: GENERAL SERVICE 50 TO 1,499 KW | B25: Retail Transmission Rate - Network Service Rate - Interval Metered | C25: $/kW | E25: 3.327276076
A26: GENERAL SERVICE 50 TO 1,499 KW | B26: Retail Transmission Rate - Line and Transformation Connection Service Rate - Interval Metered | C26: $/kW | E26: 2.689862253
A27: GENERAL SERVICE EQUAL TO OR GREATER THAN 1,500 KW | B27: Retail Transmission Rate - Network Service Rate - Interval Metered | C27: $/kW | E27: 3.327276076
A28: GENERAL SERVICE EQUAL TO OR GREATER THAN 1,500 KW | B28: Retail Transmission Rate - Line and Transformation Connection Service Rate - Interval Metered | C28: $/kW | E28: 2.689862253
A29: UNMETERED SCATTERED LOAD | B29: Retail Transmission Rate - Network Service Rate | C29: $/kWh | E29: 0.006520530179
A30: UNMETERED SCATTERED LOAD | B30: Retail Transmission Rate - Line and Transformation Connection Service Rate | C30: $/kWh | E30: 0.005059302043
A31: SENTINEL LIGHTING | B31: Retail Transmission Rate - Network Service Rate | C31: $/kW | E31: 2.090582291
A32: SENTINEL LIGHTING | B32: Retail Transmission Rate - Line and Transformation Connection Service Rate | C32: $/kW | E32: 1.625933194
A33: STREET LIGHTING | B33: Retail Transmission Rate - Network Service Rate | C33: $/kW | E33: 2.085265551
A34: STREET LIGHTING | B34: Retail Transmission Rate - Line and Transformation Connection Service Rate | C34: $/kW | E34: 1.621822511

Sheet 24. Rev2Cost_GDPIPI
Y1: FALSE | Z1: 0 | AC1: NO
Y2: TRUE
A12: If applicable, please enter any adjustments related to the revenue to cost ratio model into columns C and E. The Price Escalator and Stretch Factor have been set at the 2014 values and will be updated by Board staff at a later date.
A15: Price Escalator | B15: 0.016 | C15: Choose Stretch Factor Group | E15: IV
A16: Productivity Factor | B16: 0 | C16: Associated Stretch Factor Value | E16: =IF(E15="I", 0%, IF(E15="II", 0.15%, IF(E15="III", 0.3%, IF(E15="IV", 0.45%, 0.6%)))) -> 0.0045
A17: Price Cap Index | B17: =B15-B16-E16 -> 0.0115
B19: Current MFC | C19: MFC Adjustment from R/C Model | D19: Current Volumetric Charge | E19: DVR Adjustment from R/C Model | F19: Price Cap Index to be Applied to MFC and DVR | G19: Proposed MFC | H19: Proposed Volumetric Charge
A20: Rate Class
A22: RESIDENTIAL | B22: 10.13 | D22: 0.0239 | F22: =$B$17 -> 0.0115 | G22: =ROUND(SUM(B22,C22)*(1+F22),2) -> 10.25 | H22: =ROUND(SUM(D22,E22)*(1+F22),4) -> 0.0242
A23: GENERAL SERVICE LESS THAN 50 KW | B23: 25.31 | D23: 0.0177 | F23: =$B$17 -> 0.0115 | G23: =ROUND(SUM(B23,C23)*(1+F23),2) -> 25.6 | H23: =ROUND(SUM(D23,E23)*(1+F23),4) -> 0.0179
A24: GENERAL SERVICE 50 TO 499 KW | B24: 131.63 | D24: 1.9906 | F24: =$B$17 -> 0.0115 | G24: =ROUND(SUM(B24,C24)*(1+F24),2) -> 133.14 | H24: =ROUND(SUM(D24,E24)*(1+F24),4) -> 2.0135
A25: GENERAL SERVICE 50 TO 1,499 KW | B25: 1368.9 | D25: 1.0319 | F25: =$B$17 -> 0.0115 | G25: =ROUND(SUM(B25,C25)*(1+F25),2) -> 1384.64 | H25: =ROUND(SUM(D25,E25)*(1+F25),4) -> 1.0438
A26: GENERAL SERVICE EQUAL TO OR GREATER THAN 1,500 KW | B26: 1927.2 | D26: 1.8209 | F26: =$B$17 -> 0.0115 | G26: =ROUND(SUM(B26,C26)*(1+F26),2) -> 1949.36 | H26: =ROUND(SUM(D26,E26)*(1+F26),4) -> 1.8418
A27: UNMETERED SCATTERED LOAD | B27: 7.03 | D27: 0.0123 | F27: =$B$17 -> 0.0115 | G27: =ROUND(SUM(B27,C27)*(1+F27),2) -> 7.11 | H27: =ROUND(SUM(D27,E27)*(1+F27),4) -> 0.0124
A28: SENTINEL LIGHTING | B28: 2.4 | D28: 21.0387 | F28: =$B$17 -> 0.0115 | G28: =ROUND(SUM(B28,C28)*(1+F28),2) -> 2.43 | H28: =ROUND(SUM(D28,E28)*(1+F28),4) -> 21.2806
A29: STREET LIGHTING | B29: 1707.42 | D29: 8.1464 | F29: =$B$17 -> 0.0115 | G29: =ROUND(SUM(B29,C29)*(1+F29),2) -> 1727.06 | H29: =ROUND(SUM(D29,E29)*(1+F29),4) -> 8.2401
A30: microFIT | B30: 5.4 | G30: =ROUND(SUM(B30,C30)*(1+F30),2) -> 5.4

Sheet 24. hidden (hidden)
A1: Rate Class | B1: MFC Adjustment from R/C Model | C1: DVR Adjustment from R/C Model
A2: RESIDENTIAL | B2: 10.13 | D2: 0.0239
A3: GENERAL SERVICE LESS THAN 50 KW | B3: 25.31 | D3: 0.0177
A4: GENERAL SERVICE 50 TO 499 KW | B4: 131.63 | D4: 1.9906
A5: GENERAL SERVICE 50 TO 1,499 KW | B5: 1368.9 | D5: 1.0319
A6: GENERAL SERVICE EQUAL TO OR GREATER THAN 1,500 KW | B6: 1927.2 | D6: 1.8209
A7: UNMETERED SCATTERED LOAD | B7: 7.03 | D7: 0.0123
A8: SENTINEL LIGHTING | B8: 2.4 | D8: 21.0387
A9: STREET LIGHTING | B9: 1707.42 | D9: 8.1464
A10: microFIT | B10: 5.4

Sheet 25. Other Charges & LF
A11: Please enter the following charges as found on your most recent Board-Approved Tariff Schedule. The standard Allowance rates have been included as default entries. If you have different rates, please make the appropriate corrections in the applicable cells below. As well, please enter the current Specific Service Charges below. The standard Retail Service Charges have been entered below. If you have different rates, please make the appropriate corrections in columns A, C or D as applicable (cells are unlocked).
C13: UNIT | D13: RATE
A15: ALLOWANCES
A17: Transformer Allowance for Ownership - per kW of billing demand/month | D17: -0.6
A20: Primary Metering Allowance for transformer losses – applied to measured demand and energy | D20: -1
A22: SPECIFIC SERVICE CHARGES
A24: APPLICATION
A26: The application of these rates and charges shall be in accordance with the Licence of the Distributor and any Code or Order of the Board, and amendments thereto as approved by the Board, which may be applicable to the administration of this schedule.
A27: No charges to meet the costs of any work or service done or furnished for the purpose of the distribution of electricity shall be made except as permitted by this schedule, unless required by the Distributor’s Licence or a Code or Order of the Board, and amendments thereto as approved by the Board, or as specified herein.
A28: It should be noted that this schedule does not list any charges, assessments or credits that are required by law to be invoiced by a distributor and that are not subject to Board approval, such as the Debt Retirement Charge, the Global Adjustment, the Ontario Clean Energy Benefit and the HST.
A30: Customer Administration
A31: Returned cheque (plus bank charges) | C31: $ | D31: 15
A32: Account set up charge/change of occupancy charge (plus credit agency costs if applicable) | C32: $ | D32: 30
A33: Special meter reads | C33: $ | D33: 30
A67: Non-Payment of Account
A68: Late Payment – per month | C68: % | D68: 1.5
A69: Late Payment – per annum | C69: % | D69: 19.56
A70: Collection of account charge – no disconnection | C70: $ | D70: 30
A71: Disconnect/Reconnect at meter – during regular hours | C71: $ | D71: 65
A72: Disconnect/Reconnect at meter – after regular hours | C72: $ | D72: 185
A73: Disconnect/Reconnect at pole – during regular hours | C73: $ | D73: 185
A74: Install/Remove load control device – after regular hours | C74: $ | D74: 185
A75: Service call – after regular hours | C75: $ | D75: 165
A76: Specific Charge for Bell Canada Access to the Power Poles – per pole/year | C76: $ | D76: 22.35
A116: RETAIL SERVICE CHARGES (if applicable)
A118: The application of these rates and charges shall be in accordance with the Licence of the Distributor and any Code or Order of the Board, and amendments thereto as approved by the Board, which may be applicable to the administration of this schedule.
A120: No rates and charges for the distribution of electricity and charges to meet the costs of any work or service done or furnished for the purpose of the distribution of electricity shall be made except as permitted by this schedule, unless required by the Distributor’s Licence or a Code or Order of the Board, and amendments thereto as approved by the Board, or as specified herein.
A122: Unless specifically noted, this schedule does not contain any charges for the electricity commodity, be it under the Regulated Price Plan, a contract with a retailer or the wholesale market price, as applicable.
A124: It should be noted that this schedule does not list any charges, assessments, or credits that are required by law to be invoiced by a distributor and that are not subject to Board approval, such as the Debt Retirement Charge, the Global Adjustment, the Ontario Clean Energy Benefit and the HST.
A126: Retail Service Charges refer to services provided by a distributor to retailers or customers related to the supply of competitive electricity.
A128: One-time charge, per retailer, to establish the service agreement between the distributor and the retailer | C128: $ | D128: 100
A129: Monthly Fixed Charge, per retailer | C129: $ | D129: 20
A130: Monthly Variable Charge, per customer, per retailer | C130: $/cust. | D130: 0.5
A131: Distributor-consolidated billing monthly charge, per customer, per retailer | C131: $/cust. | D131: 0.3
A132: Retailer-consolidated billing monthly credit, per customer, per retailer | C132: $/cust. | D132: -0.3
A133: Service Transaction Requests (STR)
A134: Request fee, per request, applied to the requesting party | C134: $ | D134: 0.25
A135: Processing fee, per request, applied to the requesting party | C135: $ | D135: 0.5
A136: Request for customer information as outlined in Section 10.6.3 and Chapter 11 of the Retail
A137: Settlement Code directly to retailers and customers, if not delivered electronically through the
A138: Electronic Business Transaction (EBT) system, applied to the requesting party
A139: Up to twice a year | C139: $ | D139: no charge
A140: More than twice a year, per request (plus incremental delivery costs) | C140: $ | D140: 2
A143: LOSS FACTORS
A145: If the distributor is not capable of prorating changed loss factors jointly with distribution rates, the revised loss factors will be implemented upon the first subsequent billing for each billing cycle.
A148: Total Loss Factor – Secondary Metered Customer < 5,000 kW | D148: 1.0333 | H148: TLF_Secondary_LT_5000kW
A149: Total Loss Factor – Primary Metered Customer < 5,000 kW | D149: 1.0233 | H149: TLF_Primary_LT_5000kW

Sheet 26. Proposed Rates
Z1: 3
L5: =ROUND(LEN(B5), -2) / 100 -> 0
L9: =ROUND(LEN(B9), -2) / 100 -> 0
B12: In the Green Cells below, enter any proposed rate riders that are not already included in this model (e.g: ICM rate riders). In column B, the rate rider descriptions must begin with "Rate Rider for". In column C, choose the associated unit from the drop-down menu. In column D, enter the rate. All rate riders with a "$" unit will be rounded to 2 decimal places and all others will be rounded to 4 decimal places.
A20: RESIDENTIAL | B20: RESIDENTIAL SERVICE CLASSIFICATION | C20: Unit | D20: Rate
A21: RESIDENTIAL
A22: RESIDENTIAL
A23: RESIDENTIAL
A24: RESIDENTIAL
A25: RESIDENTIAL
A26: RESIDENTIAL
A27: RESIDENTIAL
A28: RESIDENTIAL
A29: RESIDENTIAL
A30: RESIDENTIAL
A32: GENERAL SERVICE LESS THAN 50 KW | B32: GENERAL SERVICE LESS THAN 50 KW SERVICE CLASSIFICATION | C32: Unit | D32: Rate
A33: GENERAL SERVICE LESS THAN 50 KW
A34: GENERAL SERVICE LESS THAN 50 KW
A35: GENERAL SERVICE LESS THAN 50 KW
A36: GENERAL SERVICE LESS THAN 50 KW
A37: GENERAL SERVICE LESS THAN 50 KW
A38: GENERAL SERVICE LESS THAN 50 KW
A39: GENERAL SERVICE LESS THAN 50 KW
A40: GENERAL SERVICE LESS THAN 50 KW
A41: GENERAL SERVICE LESS THAN 50 KW
A42: GENERAL SERVICE LESS THAN 50 KW
A44: GENERAL SERVICE 50 TO 499 KW | B44: GENERAL SERVICE 50 TO 499 KW SERVICE CLASSIFICATION | C44: Unit | D44: Rate
A45: GENERAL SERVICE 50 TO 499 KW
A46: GENERAL SERVICE 50 TO 499 KW
A47: GENERAL SERVICE 50 TO 499 KW
A48: GENERAL SERVICE 50 TO 499 KW
A49: GENERAL SERVICE 50 TO 499 KW
A50: GENERAL SERVICE 50 TO 499 KW
A51: GENERAL SERVICE 50 TO 499 KW
A52: GENERAL SERVICE 50 TO 499 KW
A53: GENERAL SERVICE 50 TO 499 KW
A54: GENERAL SERVICE 50 TO 499 KW
A56: GENERAL SERVICE 50 TO 1,499 KW | B56: GENERAL SERVICE 50 TO 1,499 KW SERVICE CLASSIFICATION | C56: Unit | D56: Rate
A57: GENERAL SERVICE 50 TO 1,499 KW
A58: GENERAL SERVICE 50 TO 1,499 KW
A59: GENERAL SERVICE 50 TO 1,499 KW
A60: GENERAL SERVICE 50 TO 1,499 KW
A61: GENERAL SERVICE 50 TO 1,499 KW
A62: GENERAL SERVICE 50 TO 1,499 KW
A63: GENERAL SERVICE 50 TO 1,499 KW
A64: GENERAL SERVICE 50 TO 1,499 KW
A65: GENERAL SERVICE 50 TO 1,499 KW
A66: GENERAL SERVICE 50 TO 1,499 KW
A68: GENERAL SERVICE EQUAL TO OR GREATER THAN 1,500 KW | B68: GENERAL SERVICE EQUAL TO OR GREATER THAN 1,500 KW SERVICE CLASSIFICATION | C68: Unit | D68: Rate
A69: GENERAL SERVICE EQUAL TO OR GREATER THAN 1,500 KW
A70: GENERAL SERVICE EQUAL TO OR GREATER THAN 1,500 KW
A71: GENERAL SERVICE EQUAL TO OR GREATER THAN 1,500 KW
A72: GENERAL SERVICE EQUAL TO OR GREATER THAN 1,500 KW
A73: GENERAL SERVICE EQUAL TO OR GREATER THAN 1,500 KW
A74: GENERAL SERVICE EQUAL TO OR GREATER THAN 1,500 KW
A75: GENERAL SERVICE EQUAL TO OR GREATER THAN 1,500 KW
A76: GENERAL SERVICE EQUAL TO OR GREATER THAN 1,500 KW
A77: GENERAL SERVICE EQUAL TO OR GREATER THAN 1,500 KW
A78: GENERAL SERVICE EQUAL TO OR GREATER THAN 1,500 KW
A80: UNMETERED SCATTERED LOAD | B80: UNMETERED SCATTERED LOAD SERVICE CLASSIFICATION | C80: Unit | D80: Rate
A81: UNMETERED SCATTERED LOAD
A82: UNMETERED SCATTERED LOAD
A83: UNMETERED SCATTERED LOAD
A84: UNMETERED SCATTERED LOAD
A85: UNMETERED SCATTERED LOAD
A86: UNMETERED SCATTERED LOAD
A87: UNMETERED SCATTERED LOAD
A88: UNMETERED SCATTERED LOAD
A89: UNMETERED SCATTERED LOAD
A90: UNMETERED SCATTERED LOAD
A92: SENTINEL LIGHTING | B92: SENTINEL LIGHTING SERVICE CLASSIFICATION | C92: Unit | D92: Rate
A93: SENTINEL LIGHTING
A94: SENTINEL LIGHTING
A95: SENTINEL LIGHTING
A96: SENTINEL LIGHTING
A97: SENTINEL LIGHTING
A98: SENTINEL LIGHTING
A99: SENTINEL LIGHTING
A100: SENTINEL LIGHTING
A101: SENTINEL LIGHTING
A102: SENTINEL LIGHTING
A104: STREET LIGHTING | B104: STREET LIGHTING SERVICE CLASSIFICATION | C104: Unit | D104: Rate
A105: STREET LIGHTING
A106: STREET LIGHTING
A107: STREET LIGHTING
A108: STREET LIGHTING
A109: STREET LIGHTING
A110: STREET LIGHTING
A111: STREET LIGHTING
A112: STREET LIGHTING
A113: STREET LIGHTING
A114: STREET LIGHTING
A116: microFIT | B116: microFIT SERVICE CLASSIFICATION | C116: Unit | D116: Rate
A117: microFIT
A118: microFIT
A119: microFIT
A120: microFIT
A121: microFIT
A122: microFIT
A123: microFIT
A124: microFIT
A125: microFIT
A126: microFIT
B130: PROPOSED MONTHLY RATES AND CHARGES - Regulatory Component
A132: Wholesale Market Service Rate | B132: Wholesale Market Service Rate | C132: $/kWh | D132: 0.0044
A133: Rural or Remote Electricity Rate Protection Charge (RRRP) | B133: Rural or Remote Electricity Rate Protection Charge (RRRP) | C133: $/kWh | D133: 0.0013
A134: Standard Supply Service - Administrative Charge (if applicable) | B134: Standard Supply Service - Administrative Charge (if applicable) | C134: $ | D134: 0.25

Sheet 26. Hidden (hidden)
A1: RESIDENTIAL | B1: RESIDENTIAL SERVICE CLASSIFICATION | C1: Unit | D1: Rate
A2: RESIDENTIAL
A3: RESIDENTIAL
A4: RESIDENTIAL
A5: RESIDENTIAL
A6: RESIDENTIAL
A7: RESIDENTIAL
A8: RESIDENTIAL
A9: RESIDENTIAL
A10: RESIDENTIAL
A11: RESIDENTIAL
A13: GENERAL SERVICE LESS THAN 50 KW | B13: GENERAL SERVICE LESS THAN 50 KW SERVICE CLASSIFICATION | C13: Unit | D13: Rate
A14: GENERAL SERVICE LESS THAN 50 KW
A15: GENERAL SERVICE LESS THAN 50 KW
A16: GENERAL SERVICE LESS THAN 50 KW
A17: GENERAL SERVICE LESS THAN 50 KW
A18: GENERAL SERVICE LESS THAN 50 KW
A19: GENERAL SERVICE LESS THAN 50 KW
A20: GENERAL SERVICE LESS THAN 50 KW
A21: GENERAL SERVICE LESS THAN 50 KW
A22: GENERAL SERVICE LESS THAN 50 KW
A23: GENERAL SERVICE LESS THAN 50 KW
A25: GENERAL SERVICE 50 TO 499 KW | B25: GENERAL SERVICE 50 TO 499 KW SERVICE CLASSIFICATION | C25: Unit | D25: Rate
A26: GENERAL SERVICE 50 TO 499 KW
A27: GENERAL SERVICE 50 TO 499 KW
A28: GENERAL SERVICE 50 TO 499 KW
A29: GENERAL SERVICE 50 TO 499 KW
A30: GENERAL SERVICE 50 TO 499 KW
A31: GENERAL SERVICE 50 TO 499 KW
A32: GENERAL SERVICE 50 TO 499 KW
A33: GENERAL SERVICE 50 TO 499 KW
A34: GENERAL SERVICE 50 TO 499 KW
A35: GENERAL SERVICE 50 TO 499 KW
A37: GENERAL SERVICE 50 TO 1,499 KW | B37: GENERAL SERVICE 50 TO 1,499 KW SERVICE CLASSIFICATION | C37: Unit | D37: Rate
A38: GENERAL SERVICE 50 TO 1,499 KW
A39: GENERAL SERVICE 50 TO 1,499 KW
A40: GENERAL SERVICE 50 TO 1,499 KW
A41: GENERAL SERVICE 50 TO 1,499 KW
A42: GENERAL SERVICE 50 TO 1,499 KW
A43: GENERAL SERVICE 50 TO 1,499 KW
A44: GENERAL SERVICE 50 TO 1,499 KW
A45: GENERAL SERVICE 50 TO 1,499 KW
A46: GENERAL SERVICE 50 TO 1,499 KW
A47: GENERAL SERVICE 50 TO 1,499 KW
A49: GENERAL SERVICE EQUAL TO OR GREATER THAN 1,500 KW | B49: GENERAL SERVICE EQUAL TO OR GREATER THAN 1,500 KW SERVICE CLASSIFICATION | C49: Unit | D49: Rate
A50: GENERAL SERVICE EQUAL TO OR GREATER THAN 1,500 KW
A51: GENERAL SERVICE EQUAL TO OR GREATER THAN 1,500 KW
A52: GENERAL SERVICE EQUAL TO OR GREATER THAN 1,500 KW
A53: GENERAL SERVICE EQUAL TO OR GREATER THAN 1,500 KW
A54: GENERAL SERVICE EQUAL TO OR GREATER THAN 1,500 KW
A55: GENERAL SERVICE EQUAL TO OR GREATER THAN 1,500 KW
A56: GENERAL SERVICE EQUAL TO OR GREATER THAN 1,500 KW
A57: GENERAL SERVICE EQUAL TO OR GREATER THAN 1,500 KW
A58: GENERAL SERVICE EQUAL TO OR GREATER THAN 1,500 KW
A59: GENERAL SERVICE EQUAL TO OR GREATER THAN 1,500 KW
A61: UNMETERED SCATTERED LOAD | B61: UNMETERED SCATTERED LOAD SERVICE CLASSIFICATION | C61: Unit | D61: Rate
A62: UNMETERED SCATTERED LOAD
A63: UNMETERED SCATTERED LOAD
A64: UNMETERED SCATTERED LOAD
A65: UNMETERED SCATTERED LOAD
A66: UNMETERED SCATTERED LOAD
A67: UNMETERED SCATTERED LOAD
A68: UNMETERED SCATTERED LOAD
A69: UNMETERED SCATTERED LOAD
A70: UNMETERED SCATTERED LOAD
A71: UNMETERED SCATTERED LOAD
A73: SENTINEL LIGHTING | B73: SENTINEL LIGHTING SERVICE CLASSIFICATION | C73: Unit | D73: Rate
A74: SENTINEL LIGHTING
A75: SENTINEL LIGHTING
A76: SENTINEL LIGHTING
A77: SENTINEL LIGHTING
A78: SENTINEL LIGHTING
A79: SENTINEL LIGHTING
A80: SENTINEL LIGHTING
A81: SENTINEL LIGHTING
A82: SENTINEL LIGHTING
A83: SENTINEL LIGHTING
A85: STREET LIGHTING | B85: STREET LIGHTING SERVICE CLASSIFICATION | C85: Unit | D85: Rate
A86: STREET LIGHTING
A87: STREET LIGHTING
A88: STREET LIGHTING
A89: STREET LIGHTING
A90: STREET LIGHTING
A91: STREET LIGHTING
A92: STREET LIGHTING
A93: STREET LIGHTING
A94: STREET LIGHTING
A95: STREET LIGHTING
A97: microFIT | B97: microFIT SERVICE CLASSIFICATION | C97: Unit | D97: Rate
A98: microFIT
A99: microFIT
A100: microFIT
A101: microFIT
A102: microFIT
A103: microFIT
A104: microFIT
A105: microFIT
A106: microFIT
A107: microFIT
B111: PROPOSED MONTHLY RATES AND CHARGES - Regulatory Component
A113: Wholesale Market Service Rate | B113: Wholesale Market Service Rate | C113: $/kWh | D113: 0.0044
A114: Rural or Remote Electricity Rate Protection Charge (RRRP) | B114: Rural or Remote Electricity Rate Protection Charge (RRRP) | C114: $/kWh | D114: 0.0013
A115: Standard Supply Service - Administrative Charge (if applicable) | B115: Standard Supply Service - Administrative Charge (if applicable) | C115: $ | D115: 0.25

Sheet 27. Final Tariff Schedule
A1: hidden column | B1: ='1. Information Sheet'!F14 -> Tillsonburg Hydro Inc. | F1: hidden column | Z1: 3
A2: for rate classes | B2: TARIFF OF RATES AND CHARGES | F2: for proposed
B3: ="Effective and Implementation Date " & TEXT('1. Information Sheet'!F26, "mmmm dd, yyyy") -> Effective and Implementation Date May 01, 2015 | F3: labeliing
B5: This schedule supersedes and replaces all previously
B6: approved schedules of Rates, Charges and Loss Factors | L6: =ROUND(LEN(B6), -2) / 100 -> 1
B7: =IF(LEN('1. Information Sheet'!F18)=0, "Please enter your assigned EB# on Sheet 1", '1. Information Sheet'!F18) -> EB-2014-0115
B9: RESIDENTIAL SERVICE CLASSIFICATION
B11: This classification applies to an account in one of three categories of residential services: single-family or single-unit homes, multi-family buildings, and subdivision developments. Further servicing details are available in Tillsonburg Hydro's Conditions of Service. | L11: =ROUND(LEN(B11), -2) / 100 -> 3
B13: APPLICATION
B15: The application of these rates and charges shall be in accordance with the Licence of the Distributor and any Code or Order of the Board, and amendments thereto as approved by the Board, which may be applicable to the administration of this schedule. | L15: =ROUND(LEN(B15), -2) / 100 -> 3
B17: No rates or charges for the distribution of electricity and charges to meet the costs of any work or service done or furnished for the purpose of the distribution of electricity shall be made except as permitted by this schedule, unless required by the Distributor's Licence or a Code or Order of the Board, and amendments thereto as approved by the Board, or as specified herein. | L17: =ROUND(LEN(B17), -2) / 100 -> 4
B19: Unless specifically noted, this schedule does not contain any charges for the electricity commodity, be it under the Regulated Price Plan, a contract with a retailer or the wholesale market price, as applicable. In addition, the charges in the MONTHLY RATES AND CHARGES - Regulatory Component of this schedule do not apply to a customer that is an embedded wholesale market participant. | L19: =ROUND(LEN(B19), -2) / 100 -> 4
B21: It should be noted that this schedule does not list any charges, assessments or credits that are required by law to be invoiced by a distributor and that are not subject to Board approval, such as the Debt Retirement Charge, the Global Adjustment, the Ontario Clean Energy Benefit and the HST. | L21: =ROUND(LEN(B21), -2) / 100 -> 3
B23: MONTHLY RATES AND CHARGES - Delivery Component
A25: RESIDENTIAL | B25: Service Charge | D25: $ | E25: 10.25 | K25: 1_P_MSC
A26: RESIDENTIAL | B26: Rate Rider for Smart Metering Entity Charge - effective until October 31, 2018 | D26: $ | E26: 0.79 | K26: 1_P_SMEC
A27: RESIDENTIAL | B27: Distribution Volumetric Rate | D27: $/kWh | E27: 0.0242 | K27: 1_P_VC_1
A28: RESIDENTIAL | B28: Rate Rider for Disposition of Deferral/Variance Accounts (2015) - effective until April 30, 2016 | D28: $/kWh | E28: -0.002 | K28: 1_P_VC_DEFVAR_kWh_1
A29: RESIDENTIAL | B29: Rate Rider for Disposition of Global Adjustment Account (2015) - effective until April 30, 2016 Applicable only for Non RPP Customers | D29: $/kWh | E29: 0.0016 | K29: 1_P_VC_GA_Rate_Rider_kWh_1
A30: RESIDENTIAL | B30: Retail Transmission Rate - Network Service Rate | D30: $/kWh | E30: 0.00732305697 | K30: 1_P_RTSR_Network
A31: RESIDENTIAL | B31: Retail Transmission Rate - Line and Transformation Connection Service Rate | D31: $/kWh | E31: 0.005691714798 | K31: 1_P_RTSR_Connection
A32: RESIDENTIAL
A33: RESIDENTIAL | B33: MONTHLY RATES AND CHARGES - Regulatory Component
A34: RESIDENTIAL
A35: RESIDENTIAL | B35: Wholesale Market Service Rate | D35: $/kWh | E35: 0.0044 | K35: 1_P_WMSR
A36: RESIDENTIAL | B36: Rural or Remote Electricity Rate Protection Charge (RRRP) | D36: $/kWh | E36: 0.0013 | K36: 1_P_RRPC
A37: RESIDENTIAL | B37: Standard Supply Service - Administrative Charge (if applicable) | D37: $ | E37: 0.25 | K37: 1_P_SSS
B39: GENERAL SERVICE LESS THAN 50 KW SERVICE CLASSIFICATION
B41: This classification applies to non residential account whose average monthly maximum demand is less than, or is forecast to be less than, 50 kW. Further servicing details are available in Tillsonburg Hydro's Conditions of Service. | L41: =ROUND(LEN(B41), -2) / 100 -> 2
B43: APPLICATION
B45: The application of these rates and charges shall be in accordance with the Licence of the Distributor and any Code or Order of the Board, and amendments thereto as approved by the Board, which may be applicable to the administration of this schedule. | L45: =ROUND(LEN(B45), -2) / 100 -> 3
B47: No rates or charges for the distribution of electricity and charges to meet the costs of any work or service done or furnished for the purpose of the distribution of electricity shall be made except as permitted by this schedule, unless required by the Distributor's Licence or a Code or Order of the Board, and amendments thereto as approved by the Board, or as specified herein. | L47: =ROUND(LEN(B47), -2) / 100 -> 4
B49: Unless specifically noted, this schedule does not contain any charges for the electricity commodity, be it under the Regulated Price Plan, a contract with a retailer or the wholesale market price, as applicable. In addition, the charges in the MONTHLY RATES AND CHARGES - Regulatory Component of this schedule do not apply to a customer that is an embedded wholesale market participant. | L49: =ROUND(LEN(B49), -2) / 100 -> 4
B51: It should be noted that this schedule does not list any charges, assessments or credits that are required by law to be invoiced by a distributor and that are not subject to Board approval, such as the Debt Retirement Charge, the Global Adjustment, the Ontario Clean Energy Benefit and the HST. | L51: =ROUND(LEN(B51), -2) / 100 -> 3
B53: MONTHLY RATES AND CHARGES - Delivery Component
A55: GENERAL SERVICE LESS THAN 50 KW | B55: Service Charge | D55: $ | E55: 25.6 | K55: 2_P_MSC
A56: GENERAL SERVICE LESS THAN 50 KW | B56: Rate Rider for Smart Metering Entity Charge - effective until October 31, 2018 | D56: $ | E56: 0.79 | K56: 2_P_SMEC
A57: GENERAL SERVICE LESS THAN 50 KW | B57: Distribution Volumetric Rate | D57: $/kWh | E57: 0.0179 | K57: 2_P_VC_1
A58: GENERAL SERVICE LESS THAN 50 KW | B58: Rate Rider for Disposition of Deferral/Variance Accounts (2015) - effective until April 30, 2016 | D58: $/kWh | E58: -0.0021 | K58: 2_P_VC_DEFVAR_kWh_1
A59: GENERAL SERVICE LESS THAN 50 KW | B59: Rate Rider for Disposition of Global Adjustment Account (2015) - effective until April 30, 2016 Applicable only for Non RPP Customers | D59: $/kWh | E59: 0.0016 | K59: 2_P_VC_GA_Rate_Rider_kWh_1
A60: GENERAL SERVICE LESS THAN 50 KW | B60: Retail Transmission Rate - Network Service Rate | D60: $/kWh | E60: 0.006520530179 | K60: 2_P_RTSR_Network
A61: GENERAL SERVICE LESS THAN 50 KW | B61: Retail Transmission Rate - Line and Transformation Connection Service Rate | D61: $/kWh | E61: 0.005059302043 | K61: 2_P_RTSR_Connection
A62: GENERAL SERVICE LESS THAN 50 KW
A63: GENERAL SERVICE LESS THAN 50 KW | B63: MONTHLY RATES AND CHARGES - Regulatory Component
A64: GENERAL SERVICE LESS THAN 50 KW
A65: GENERAL SERVICE LESS THAN 50 KW | B65: Wholesale Market Service Rate | D65: $/kWh | E65: 0.0044 | K65: 2_P_WMSR
A66: GENERAL SERVICE LESS THAN 50 KW | B66: Rural or Remote Electricity Rate Protection Charge (RRRP) | D66: $/kWh | E66: 0.0013 | K66: 2_P_RRPC
A67: GENERAL SERVICE LESS THAN 50 KW | B67: Standard Supply Service - Administrative Charge (if applicable) | D67: $ | E67: 0.25 | K67: 2_P_SSS
B69: GENERAL SERVICE 50 TO 499 KW SERVICE CLASSIFICATION
B71: This classification applies to a non residential account whose average monthly maximum demand used for billing purposes is equal to or greater than, or is forecast to be equal to or greater than, 50 kW but less than 500 kW. Further servicing details are available in Tillsonburg Hydro's Conditions of Service. | L71: =ROUND(LEN(B71), -2) / 100 -> 3
B73: APPLICATION
B75: The application of these rates and charges shall be in accordance with the Licence of the Distributor and any Code or Order of the Board, and amendments thereto as approved by the Board, which may be applicable to the administration of this schedule. | L75: =ROUND(LEN(B75), -2) / 100 -> 3
B77: No rates or charges for the distribution of electricity and charges to meet the costs of any work or service done or furnished for the purpose of the distribution of electricity shall be made except as permitted by this schedule, unless required by the Distributor's Licence or a Code or Order of the Board, and amendments thereto as approved by the Board, or as specified herein. | L77: =ROUND(LEN(B77), -2) / 100 -> 4
B79: Unless specifically noted, this schedule does not contain any charges for the electricity commodity, be it under the Regulated Price Plan, a contract with a retailer or the wholesale market price, as applicable. In addition, the charges in the MONTHLY RATES AND CHARGES - Regulatory Component of this schedule do not apply to a customer that is an embedded wholesale market participant. | L79: =ROUND(LEN(B79), -2) / 100 -> 4
B81: It should be noted that this schedule does not list any charges, assessments or credits that are required by law to be invoiced by a distributor and that are not subject to Board approval, such as the Debt Retirement Charge, the Global Adjustment, the Ontario Clean Energy Benefit and the HST. | L81: =ROUND(LEN(B81), -2) / 100 -> 3
B83: MONTHLY RATES AND CHARGES - Delivery Component
A85: GENERAL SERVICE 50 TO 499 KW | B85: Service Charge | D85: $ | E85: 133.14 | K85: 3_P_MSC
A86: GENERAL SERVICE 50 TO 499 KW | B86: Distribution Volumetric Rate | D86: $/kW | E86: 2.0135 | K86: 3_P_VC_1
A87: GENERAL SERVICE 50 TO 499 KW | B87: Rate Rider for Disposition of Deferral/Variance Accounts (2015) - effective until April 30, 2016 | D87: $/kW | E87: -0.7145 | K87: 3_P_VC_DEFVAR_kW_1
A88: GENERAL SERVICE 50 TO 499 KW | B88: Rate Rider for Disposition of Global Adjustment Account (2015) - effective until April 30, 2016 Applicable only for Non RPP Customers | D88: $/kW | E88: 0.5365 | K88: 3_P_VC_GA_Rate_Rider_kW_1
A89: GENERAL SERVICE 50 TO 499 KW | B89: Retail Transmission Rate - Network Service Rate | D89: $/kW | E89: 2.539094452 | K89: 3_P_RTSR_Network
A90: GENERAL SERVICE 50 TO 499 KW | B90: Retail Transmission Rate - Line and Transformation Connection Service Rate | D90: $/kW | E90: 1.973865612 | K90: 3_P_RTSR_Connection
A91: GENERAL SERVICE 50 TO 499 KW
A92: GENERAL SERVICE 50 TO 499 KW | B92: MONTHLY RATES AND CHARGES - Regulatory Component
A93: GENERAL SERVICE 50 TO 499 KW
A94: GENERAL SERVICE 50 TO 499 KW | B94: Wholesale Market Service Rate | D94: $/kWh | E94: 0.0044 | K94: 3_P_WMSR
A95: GENERAL SERVICE 50 TO 499 KW | B95: Rural or Remote Electricity Rate Protection Charge (RRRP) | D95: $/kWh | E95: 0.0013 | K95: 3_P_RRPC
A96: GENERAL SERVICE 50 TO 499 KW | B96: Standard Supply Service - Administrative Charge (if applicable) | D96: $ | E96: 0.25 | K96: 3_P_SSS
B98: GENERAL SERVICE 500 TO 1,499 KW SERVICE CLASSIFICATION
B100: This classification applies to a non residential account whose average monthly maximum demand used for billing purposes is equal to or greater than, or is forecast to be equal to order greater than, 500 kW but less than 1,500 kW. Further servicing details are available in Tillsonburg Hydro's Conditions of Service. | L100: =ROUND(LEN(B100), -2) / 100 -> 3
B102: APPLICATION
B104: The application of these rates and charges shall be in accordance with the Licence of the Distributor and any Code or Order of the Board, and amendments thereto as approved by the Board, which may be applicable to the administration of this schedule. | L104: =ROUND(LEN(B104), -2) / 100 -> 3
B106: No rates or charges for the distribution of electricity and charges to meet the costs of any work or service done or furnished for the purpose of the distribution of electricity shall be made except as permitted by this schedule, unless required by the Distributor's Licence or a Code or Order of the Board, and amendments thereto as approved by the Board, or as specified herein. | L106: =ROUND(LEN(B106), -2) / 100 -> 4
B108: Unless specifically noted, this schedule does not contain any charges for the electricity commodity, be it under the Regulated Price Plan, a contract with a retailer or the wholesale market price, as applicable. In addition, the charges in the MONTHLY RATES AND CHARGES - Regulatory Component of this schedule do not apply to a customer that is an embedded wholesale market participant. | L108: =ROUND(LEN(B108), -2) / 100 -> 4
B110: It should be noted that this schedule does not list any charges, assessments or credits that are required by law to be invoiced by a distributor and that are not subject to Board approval, such as the Debt Retirement Charge, the Global Adjustment, the Ontario Clean Energy Benefit and the HST. | L110: =ROUND(LEN(B110), -2) / 100 -> 3
B112: MONTHLY RATES AND CHARGES - Delivery Component
A114: GENERAL SERVICE 50 TO 1,499 KW | B114: Service Charge | D114: $ | E114: 1384.64 | K114: 4_P_MSC
A115: GENERAL SERVICE 50 TO 1,499 KW | B115: Distribution Volumetric Rate | D115: $/kW | E115: 1.0438 | K115: 4_P_VC_1
A116: GENERAL SERVICE 50 TO 1,499 KW | B116: Rate Rider for Disposition of Deferral/Variance Accounts (2015) - effective until April 30, 2016 | D116: $/kW | E116: -0.8428 | K116: 4_P_VC_DEFVAR_kW_1
A117: GENERAL SERVICE 50 TO 1,499 KW | B117: Rate Rider for Disposition of Global Adjustment Account (2015) - effective until April 30, 2016 Applicable only for Non RPP Customers | D117: $/kW | E117: 0.6329 | K117: 4_P_VC_GA_Rate_Rider_kW_1
A118: GENERAL SERVICE 50 TO 1,499 KW | B118: Retail Transmission Rate - Network Service Rate - Interval Metered | D118: $/kW | E118: 3.327276076 | K118: 4_P_RTSR_Network_Interval
A119: GENERAL SERVICE 50 TO 1,499 KW | B119: Retail Transmission Rate - Line and Transformation Connection Service Rate - Interval Metered | D119: $/kW | E119: 2.689862253 | K119: 4_P_RTSR_Connection_Interval
A120: GENERAL SERVICE 50 TO 1,499 KW
A121: GENERAL SERVICE 50 TO 1,499 KW | B121: MONTHLY RATES AND CHARGES - Regulatory Component
A122: GENERAL SERVICE 50 TO 1,499 KW
A123: GENERAL SERVICE 50 TO 1,499 KW | B123: Wholesale Market Service Rate | D123: $/kWh | E123: 0.0044 | K123: 4_P_WMSR
A124: GENERAL SERVICE 50 TO 1,499 KW | B124: Rural or Remote Electricity Rate Protection Charge (RRRP) | D124: $/kWh | E124: 0.0013 | K124: 4_P_RRPC
A125: GENERAL SERVICE 50 TO 1,499 KW | B125: Standard Supply Service - Administrative Charge (if applicable) | D125: $ | E125: 0.25 | K125: 4_P_SSS
B127: GENERAL SERVICE EQUAL TO OR GREATER THAN 1,500 KW SERVICE CLASSIFICATION
B129: This classification applies to a non residential account whose average monthly maximum demand used for billing purposes is equal to or greater than, or is forecast to be equal to or greater than, 1,500 kW. Further servicing details are available in Tillsonburg Hydro's Conditions of Service. | L129: =ROUND(LEN(B129), -2) / 100 -> 3
B131: APPLICATION
B133: The application of these rates and charges shall be in accordance with the Licence of the Distributor and any Code or Order of the Board, and amendments thereto as approved by the Board, which may be applicable to the administration of this schedule. | L133: =ROUND(LEN(B133), -2) / 100 -> 3
B135: No rates or charges for the distribution of electricity and charges to meet the costs of any work or service done or furnished for the purpose of the distribution of electricity shall be made except as permitted by this schedule, unless required by the Distributor's Licence or a Code or Order of the Board, and amendments thereto as approved by the Board, or as specified herein. | L135: =ROUND(LEN(B135), -2) / 100 -> 4
B137: Unless specifically noted, this schedule does not contain any charges for the electricity commodity, be it under the Regulated Price Plan, a contract with a retailer or the wholesale market price, as applicable. In addition, the charges in the MONTHLY RATES AND CHARGES - Regulatory Component of this schedule do not apply to a customer that is an embedded wholesale market participant. | L137: =ROUND(LEN(B137), -2) / 100 -> 4
B139: It should be noted that this schedule does not list any charges, assessments or credits that are required by law to be invoiced by a distributor and that are not subject to Board approval, such as the Debt Retirement Charge, the Global Adjustment, the Ontario Clean Energy Benefit and the HST. | L139: =ROUND(LEN(B139), -2) / 100 -> 3
B141: MONTHLY RATES AND CHARGES - Delivery Component
A143: GENERAL SERVICE EQUAL TO OR GREATER THAN 1,500 KW | B143: Service Charge | D143: $ | E143: 1949.36 | K143: 5_P_MSC
A144: GENERAL SERVICE EQUAL TO OR GREATER THAN 1,500 KW | B144: Distribution Volumetric Rate | D144: $/kW | E144: 1.8418 | K144: 5_P_VC_1
A145: GENERAL SERVICE EQUAL TO OR GREATER THAN 1,500 KW | B145: Rate Rider for Disposition of Deferral/Variance Accounts (2015) - effective until April 30, 2016 | D145: $/kW | E145: -1.1188 | K145: 5_P_VC_DEFVAR_kW_1
A146: GENERAL SERVICE EQUAL TO OR GREATER THAN 1,500 KW | B146: Rate Rider for Disposition of Global Adjustment Account (2015) - effective until April 30, 2016 Applicable only for Non RPP Customers | D146: $/kW | E146: 0.8401 | K146: 5_P_VC_GA_Rate_Rider_kW_1
A147: GENERAL SERVICE EQUAL TO OR GREATER THAN 1,500 KW | B147: Retail Transmission Rate - Network Service Rate - Interval Metered | D147: $/kW | E147: 3.327276076 | K147: 5_P_RTSR_Network_Interval
A148: GENERAL SERVICE EQUAL TO OR GREATER THAN 1,500 KW | B148: Retail Transmission Rate - Line and Transformation Connection Service Rate - Interval Metered | D148: $/kW | E148: 2.689862253 | K148: 5_P_RTSR_Connection_Interval
A149: GENERAL SERVICE EQUAL TO OR GREATER THAN 1,500 KW
A150: GENERAL SERVICE EQUAL TO OR GREATER THAN 1,500 KW | B150: MONTHLY RATES AND CHARGES - Regulatory Component
A151: GENERAL SERVICE EQUAL TO OR GREATER THAN 1,500 KW
A152: GENERAL SERVICE EQUAL TO OR GREATER THAN 1,500 KW | B152: Wholesale Market Service Rate | D152: $/kWh | E152: 0.0044 | K152: 5_P_WMSR
A153: GENERAL SERVICE EQUAL TO OR GREATER THAN 1,500 KW | B153: Rural or Remote Electricity Rate Protection Charge (RRRP) | D153: $/kWh | E153: 0.0013 | K153: 5_P_RRPC
A154: GENERAL SERVICE EQUAL TO OR GREATER THAN 1,500 KW | B154: Standard Supply Service - Administrative Charge (if applicable) | D154: $ | E154: 0.25 | K154: 5_P_SSS
B156: UNMETERED SCATTERED LOAD SERVICE CLASSIFICATION
B158: This classification applies to an account whose average monthly maximum demand is less than, or is forecast to be less than, 50 kW and the consumption is unmetered. Such connections include cable TV power packs, bus shelters, telephone booths, traffic lights, railway crossings, etc. The level of the consumption will be agreed to by the distributor and the customer, based on detailed manufacturer information/documentation with regard to electrical consumption of the unmetered load or periodic monitoring of actual consumption. Further servicing details are available in Tillsonburg Hydro's Conditions of Service. | L158: =ROUND(LEN(B158), -2) / 100 -> 6
B160: APPLICATION
B162: The application of these rates and charges shall be in accordance with the Licence of the Distributor and any Code or Order of the Board, and amendments thereto as approved by the Board, which may be applicable to the administration of this schedule. | L162: =ROUND(LEN(B162), -2) / 100 -> 3
B164: No rates or charges for the distribution of electricity and charges to meet the costs of any work or service done or furnished for the purpose of the distribution of electricity shall be made except as permitted by this schedule, unless required by the Distributor's Licence or a Code or Order of the Board, and amendments thereto as approved by the Board, or as specified herein. | L164: =ROUND(LEN(B164), -2) / 100 -> 4
B166: Unless specifically noted, this schedule does not contain any charges for the electricity commodity, be it under the Regulated Price Plan, a contract with a retailer or the wholesale market price, as applicable. In addition, the charges in the MONTHLY RATES AND CHARGES - Regulatory Component of this schedule do not apply to a customer that is an embedded wholesale market participant. | L166: =ROUND(LEN(B166), -2) / 100 -> 4
B168: It should be noted that this schedule does not list any charges, assessments or credits that are required by law to be invoiced by a distributor and that are not subject to Board approval, such as the Debt Retirement Charge, the Global Adjustment, the Ontario Clean Energy Benefit and the HST. | L168: =ROUND(LEN(B168), -2) / 100 -> 3
B170: MONTHLY RATES AND CHARGES - Delivery Component
A172: UNMETERED SCATTERED LOAD | B172: Service Charge (per connection) | D172: $ | E172: 7.11 | K172: 6_P_MSC
A173: UNMETERED SCATTERED LOAD | B173: Distribution Volumetric Rate | D173: $/kWh | E173: 0.0124 | K173: 6_P_VC_1
A174: UNMETERED SCATTERED LOAD | B174: Rate Rider for Disposition of Deferral/Variance Accounts (2015) - effective until April 30, 2016 | D174: $/kWh | E174: -0.0021 | K174: 6_P_VC_DEFVAR_kWh_1
A175: UNMETERED SCATTERED LOAD | B175: Rate Rider for Disposition of Global Adjustment Account (2015) - effective until April 30, 2016 Applicable only for Non RPP Customers | D175: $/kWh | E175: 0.0016 | K175: 6_P_VC_GA_Rate_Rider_kWh_1
A176: UNMETERED SCATTERED LOAD | B176: Retail Transmission Rate - Network Service Rate | D176: $/kWh | E176: 0.006520530179 | K176: 6_P_RTSR_Network
A177: UNMETERED SCATTERED LOAD | B177: Retail Transmission Rate - Line and Transformation Connection Service Rate | D177: $/kWh | E177: 0.005059302043 | K177: 6_P_RTSR_Connection
A178: UNMETERED SCATTERED LOAD
A179: UNMETERED SCATTERED LOAD | B179: MONTHLY RATES AND CHARGES - Regulatory Component
A180: UNMETERED SCATTERED LOAD
A181: UNMETERED SCATTERED LOAD | B181: Wholesale Market Service Rate | D181: $/kWh | E181: 0.0044 | K181: 6_P_WMSR
A182: UNMETERED SCATTERED LOAD | B182: Rural or Remote Electricity Rate Protection Charge (RRRP) | D182: $/kWh | E182: 0.0013 | K182: 6_P_RRPC
A183: UNMETERED SCATTERED LOAD | B183: Standard Supply Service - Administrative Charge (if applicable) | D183: $ | E183: 0.25 | K183: 6_P_SSS
B185: SENTINEL LIGHTING SERVICE CLASSIFICATION
B187: This classification refers to accounts that are an unmetered lighting load supplied to a sentinel light. Further servicing details are available in Tillsonburg Hydro's Conditions of Service. | L187: =ROUND(LEN(B187), -2) / 100 -> 2
B189: APPLICATION
B191: The application of these rates and charges shall be in accordance with the Licence of the Distributor and any Code or Order of the Board, and amendments thereto as approved by the Board, which may be applicable to the administration of this schedule. | L191: =ROUND(LEN(B191), -2) / 100 -> 3
B193: No rates or charges for the distribution of electricity and charges to meet the costs of any work or service done or furnished for the purpose of the distribution of electricity shall be made except as permitted by this schedule, unless required by the Distributor's Licence or a Code or Order of the Board, and amendments thereto as approved by the Board, or as specified herein. | L193: =ROUND(LEN(B193), -2) / 100 -> 4
B195: Unless specifically noted, this schedule does not contain any charges for the electricity commodity, be it under the Regulated Price Plan, a contract with a retailer or the wholesale market price, as applicable. In addition, the charges in the MONTHLY RATES AND CHARGES - Regulatory Component of this schedule do not apply to a customer that is an embedded wholesale market participant. | L195: =ROUND(LEN(B195), -2) / 100 -> 4
B197: It should be noted that this schedule does not list any charges, assessments or credits that are required by law to be invoiced by a distributor and that are not subject to Board approval, such as the Debt Retirement Charge, the Global Adjustment, the Ontario Clean Energy Benefit and the HST. | L197: =ROUND(LEN(B197), -2) / 100 -> 3
B199: MONTHLY RATES AND CHARGES - Delivery Component
A201: SENTINEL LIGHTING | B201: Service Charge (per connection) | D201: $ | E201: 2.43 | K201: 7_P_MSC
A202: SENTINEL LIGHTING | B202: Distribution Volumetric Rate | D202: $/kW | E202: 21.2806 | K202: 7_P_VC_1
A203: SENTINEL LIGHTING | B203: Rate Rider for Disposition of Deferral/Variance Accounts (2015) - effective until April 30, 2016 | D203: $/kW | E203: -0.7646 | K203: 7_P_VC_DEFVAR_kW_1
A204: SENTINEL LIGHTING | B204: Rate Rider for Disposition of Global Adjustment Account (2015) - effective until April 30, 2016 Applicable only for Non RPP Customers | D204: $/kW | E204: 0.5738 | K204: 7_P_VC_GA_Rate_Rider_kW_1
A205: SENTINEL LIGHTING | B205: Retail Transmission Rate - Network Service Rate | D205: $/kW | E205: 2.090582291 | K205: 7_P_RTSR_Network
A206: SENTINEL LIGHTING | B206: Retail Transmission Rate - Line and Transformation Connection Service Rate | D206: $/kW | E206: 1.625933194 | K206: 7_P_RTSR_Connection
A207: SENTINEL LIGHTING
A208: SENTINEL LIGHTING | B208: MONTHLY RATES AND CHARGES - Regulatory Component
A209: SENTINEL LIGHTING
A210: SENTINEL LIGHTING | B210: Wholesale Market Service Rate | D210: $/kWh | E210: 0.0044 | K210: 7_P_WMSR
A211: SENTINEL LIGHTING | B211: Rural or Remote Electricity Rate Protection Charge (RRRP) | D211: $/kWh | E211: 0.0013 | K211: 7_P_RRPC
A212: SENTINEL LIGHTING | B212: Standard Supply Service - Administrative Charge (if applicable) | D212: $ | E212: 0.25 | K212: 7_P_SSS
B214: STREET LIGHTING SERVICE CLASSIFICATION
B216: This classification applies to an account for roadway lighting with a Municipality, Regional Municipality, Ministry of Transportation and private roadway lighting, controlled by photo cells. The consumption for these customers will be based on the calculated conneccted load times the required lighting times established in the approved OEB street lighting load shape template. Further servicing details are available in Tillsonburg Hydro's Conditions of Service. | L216: =ROUND(LEN(B216), -2) / 100 -> 5
B218: APPLICATION
B220: The application of these rates and charges shall be in accordance with the Licence of the Distributor and any Code or Order of the Board, and amendments thereto as approved by the Board, which may be applicable to the administration of this schedule. | L220: =ROUND(LEN(B220), -2) / 100 -> 3
B222: No rates or charges for the distribution of electricity and charges to meet the costs of any work or service done or furnished for the purpose of the distribution of electricity shall be made except as permitted by this schedule, unless required by the Distributor's Licence or a Code or Order of the Board, and amendments thereto as approved by the Board, or as specified herein. | L222: =ROUND(LEN(B222), -2) / 100 -> 4
B224: Unless specifically noted, this schedule does not contain any charges for the electricity commodity, be it under the Regulated Price Plan, a contract with a retailer or the wholesale market price, as applicable. In addition, the charges in the MONTHLY RATES AND CHARGES - Regulatory Component of this schedule do not apply to a customer that is an embedded wholesale market participant. | L224: =ROUND(LEN(B224), -2) / 100 -> 4
B226: It should be noted that this schedule does not list any charges, assessments or credits that are required by law to be invoiced by a distributor and that are not subject to Board approval, such as the Debt Retirement Charge, the Global Adjustment, the Ontario Clean Energy Benefit and the HST. | L226: =ROUND(LEN(B226), -2) / 100 -> 3
B228: MONTHLY RATES AND CHARGES - Delivery Component
A230: STREET LIGHTING | B230: Service Charge (per customer) | D230: $ | E230: 1727.06 | K230: 8_P_MSC
A231: STREET LIGHTING | B231: Distribution Volumetric Rate | D231: $/kW | E231: 8.2401 | K231: 8_P_VC_1
A232: STREET LIGHTING | B232: Rate Rider for Disposition of Deferral/Variance Accounts (2015) - effective until April 30, 2016 | D232: $/kW | E232: -0.784 | K232: 8_P_VC_DEFVAR_kW_1
A233: STREET LIGHTING | B233: Rate Rider for Disposition of Global Adjustment Account (2015) - effective until April 30, 2016 Applicable only for Non RPP Customers | D233: $/kW | E233: 0.5886 | K233: 8_P_VC_GA_Rate_Rider_kW_1
A234: STREET LIGHTING | B234: Retail Transmission Rate - Network Service Rate | D234: $/kW | E234: 2.085265551 | K234: 8_P_RTSR_Network
A235: STREET LIGHTING | B235: Retail Transmission Rate - Line and Transformation Connection Service Rate | D235: $/kW | E235: 1.621822511 | K235: 8_P_RTSR_Connection
A236: STREET LIGHTING
A237: STREET LIGHTING | B237: MONTHLY RATES AND CHARGES - Regulatory Component
A238: STREET LIGHTING
A239: STREET LIGHTING | B239: Wholesale Market Service Rate | D239: $/kWh | E239: 0.0044 | K239: 8_P_WMSR
A240: STREET LIGHTING | B240: Rural or Remote Electricity Rate Protection Charge (RRRP) | D240: $/kWh | E240: 0.0013 | K240: 8_P_RRPC
A241: STREET LIGHTING | B241: Standard Supply Service - Administrative Charge (if applicable) | D241: $ | E241: 0.25 | K241: 8_P_SSS
B243: MICROFIT SERVICE CLASSIFICATION
B245: This classification applies to an electricity generation facility contracted under the Ontario Power Authority's microFIT program and connected to the distributor's distribution system. Further servicing details are available in Tillsonburg Hydro's Conditions of Service. | L245: =ROUND(LEN(B245), -2) / 100 -> 3
B247: APPLICATION
B249: The application of these rates and charges shall be in accordance with the Licence of the Distributor and any Code or Order of the Board, and amendments thereto as approved by the Board, which may be applicable to the administration of this schedule. | L249: =ROUND(LEN(B249), -2) / 100 -> 3
B251: No rates or charges for the distribution of electricity and charges to meet the costs of any work or service done or furnished for the purpose of the distribution of electricity shall be made except as permitted by this schedule, unless required by the Distributor's Licence or a Code or Order of the Board, and amendments thereto as approved by the Board, or as specified herein. | L251: =ROUND(LEN(B251), -2) / 100 -> 4
B253: Unless specifically noted, this schedule does not contain any charges for the electricity commodity, be it under the Regulated Price Plan, a contract with a retailer or the wholesale market price, as applicable. | L253: =ROUND(LEN(B253), -2) / 100 -> 2
B255: It should be noted that this schedule does not list any charges, assessments or credits that are required by law to be invoiced by a distributor and that are not subject to Board approval, such as the Debt Retirement Charge, the Global Adjustment, the Ontario Clean Energy Benefit and the HST. | L255: =ROUND(LEN(B255), -2) / 100 -> 3
B257: MONTHLY RATES AND CHARGES - Delivery Component
A259: MICROFIT | B259: Service Charge | D259: $ | E259: 5.4 | K259: 9_P_MSC
A260: MICROFIT
B261: ALLOWANCES
A262: MICROFIT
B263: Transformer Allowance for Ownership - per kW of billing demand/month | E263: -0.6
B264: Primary Metering Allowance for transformer losses – applied to measured demand and energy | E264: -1
B266: SPECIFIC SERVICE CHARGES
B268: The application of these rates and charges shall be in accordance with the Licence of the Distributor and any Code or Order of the Board, and amendments thereto as approved by the Board, which may be applicable to the administration of this schedule.
B270: No charges to meet the costs of any work or service done or furnished for the purpose of the distribution of electricity shall be made except as permitted by this schedule, unless required by the Distributor’s Licence or a Code or Order of the Board, and amendments thereto as approved by the Board, or as specified herein.
B272: It should be noted that this schedule does not list any charges, assessments, or credits that are required by law to be invoiced by a distributor and that are not subject to Board approval, such as the Debt Retirement Charge, the Global Adjustment, the Ontario Clean Energy Benefit and the HST.
B274: Customer Administration
B275: Returned cheque (plus bank charges) | D275: $ | E275: 15
B276: Account set up charge/change of occupancy charge (plus credit agency costs if applicable) | D276: $ | E276: 30
B277: Special meter reads | D277: $ | E277: 30
B280: Non-Payment of Account
B281: Late Payment – per month | D281: % | E281: 1.5
B282: Late Payment – per annum | D282: % | E282: 19.56
B283: Collection of account charge – no disconnection | D283: $ | E283: 30
B284: Disconnect/Reconnect at meter – during regular hours | D284: $ | E284: 65
B285: Disconnect/Reconnect at meter – after regular hours | D285: $ | E285: 185
B286: Disconnect/Reconnect at pole – during regular hours | D286: $ | E286: 185
B287: Install/Remove load control device – after regular hours | D287: $ | E287: 185
B288: Service call – after regular hours | D288: $ | E288: 165
B289: Specific Charge for Bell Canada Access to the Power Poles – per pole/year | D289: $ | E289: 22.35
... 23 more rows

Sheet 14. Bill Impacts (hidden)
Z1: =MATCH(A13, '3. Rate Class Selection'!B19:B40,0) -> 1 | AA1: =VLOOKUP(A13, lists!AO:AP,2,0) -> kWh
A11: Choose a Rate Class from the drop-down menu below and click UPDATE. For Street Lighting and USL classes, please ensure that the number of customers is manually entered into cells B30 and B31. Click the UPDATE button to refresh the sheet.
A13: RESIDENTIAL | F13: =IF(ISERROR(SEARCH("MicroFit",A13,1))=FALSE,"Bill impact presentation for this class does not exist.", "") -> 
A15: Consumption | B15: =730*D15*B17 -> 3650000 | C15: kWh | D15: 10000 | E15: =IF(AA1 = "kWh", "", "kW") -> 
A16: RPP Tier One | B16: 600 | C16: kWh | E16: 1
A17: Load Factor | B17: 0.5
A18: Loss Factor | B18: 1
B21: CURRENT ESTIMATED BILL | E21: PROPOSED ESTIMATED BILL
B22: Volume | C22: Current Rate ($) | D22: Current Charge ($) | E22: Volume | F22: Proposed Rate ($) | G22: Proposed Charge ($) | I22: Change ($) | J22: Change (%) | K22: % of Total RPP Bill | L22: % of Total TOU Bill
A23: Energy First Tier (kWh) | B23: 3650000 | C23: 0.075 | D23: =B23*C23 -> 273750 | E23: =B23 -> 3650000 | F23: =C23 -> 0.075 | G23: =E23*F23 -> 273750 | I23: =G23-D23 -> 0 | J23: =I23/D23 -> 0 | K23: =G23/G48 -> 0.8646078577
A24: Energy Second Tier (kWh) | B24: 0 | C24: 0.088 | D24: =B24*C24 -> 0 | E24: =B24 -> 0 | F24: =C24 -> 0.088 | G24: =E24*F24 -> 0 | I24: =G24-D24 -> 0 | J24: 0 | K24: =G24/G48 -> 0
A26: TOU - Off Peak | B26: =0.64*$B$15*$B$18 -> 2336000 | C26: 0.065 | D26: =C26*B26 -> 151840 | E26: =B26 -> 2336000 | F26: =C26 -> 0.065 | G26: =F26*E26 -> 151840 | I26: =G26-D26 -> 0 | J26: =I26/D26 -> 0 | L26: =G26/G54 -> 0.449726096
A27: TOU - Mid Peak | B27: =0.18*$B$15*$B$18 -> 657000 | C27: 0.1 | D27: =C27*B27 -> 65700 | E27: =B27 -> 657000 | F27: =C27 -> 0.1 | G27: =F27*E27 -> 65700 | H27: =G27*F27 -> 6570 | I27: =G27-D27 -> 0 | J27: =I27/D27 -> 0 | L27: =G27/G54 -> 0.1945930223
A28: TOU - On Peak | B28: =0.18*$B$15*$B$18 -> 657000 | C28: 0.117 | D28: 76869 | F28: =C28 -> 0.117 | G28: =F28*E28 -> 0 | H28: =G28*F28 -> 0 | J28: =I28/D28 -> 0 | L28: =G28/G54 -> 0
A30: Service Charge | B30: 1 | D30: 0 | G30: =F30*E30 -> 0 | H30: 0 | J30: 0 | K30: 0 | L30: 0
A31: Service Charge Rate Rider(s) | B31: 1 | C31: 0 | D31: 0 | F31: 0 | G31: 0 | H31: 0 | J31: 0 | K31: 0 | L31: 0
A32: Distribution Volumetric Rate | B32: 10000 | D32: 0 | E32: =B32 -> 10000 | G32: 0 | H32: 0 | I32: =G32-D32 -> 0 | J32: 0 | K32: 0 | L32: 0
A33: Low Voltage Volumetric Rate | B33: 10000 | D33: 0 | G33: 0 | H33: 0 | J33: 0 | K33: 0 | L33: 0
A34: Distribution Volumetric Rate Rider(s) | B34: 10000 | C34: 0 | D34: 0 | F34: 1.2025 | G34: 0 | H34: 0 | J34: 0 | K34: =G34/G48 -> 0 | L34: =G34/G54 -> 0
A35: Total: Distribution | D35: =ROUND(SUM(D30:D34),2) -> 0 | G35: =ROUND(SUM(G30:G34),2) -> 0 | J35: 0 | K35: =G35/G48 -> 0 | L35: =G35/G54 -> 0
A36: Total: Retail Transmission
A37: Sub-Total: Delivery (Distribution and Retail Transmission) | D37: =SUM(D36,D35) -> 0 | G37: =SUM(G36,G35) -> 0 | J37: 0 | K37: =G37/G48 -> 0 | L37: =G37/G54 -> 0
A38: Wholesale Market Service Rate | B38: 3650000 | C38: 0 | D38: =B38*C38 -> 0 | F38: =C38 -> 0 | G38: =E38*F38 -> 0 | J38: 0 | K38: 0 | L38: 0
A39: Rural Rate Protection Charge | B39: 3650000 | C39: 0 | D39: =B39*C39 -> 0 | E39: 3650000 | F39: 0 | G39: =E39*F39 -> 0 | I39: =G39-D39 -> 0 | J39: 0 | K39: 0 | L39: 0
A40: Standard Supply Service – Administration Charge (if applicable) | B40: 1 | C40: 0 | D40: =B40*C40 -> 0 | E40: 1 | F40: 0 | G40: =E40*F40 -> 0 | I40: =G40-D40 -> 0 | J40: 0 | K40: 0 | L40: 0
A41: Sub-Total: Regulatory | D41: =SUM(D38:D40) -> 0 | G41: =SUM(G38:H40) -> 0 | I41: =G41-D41 -> 0 | J41: 0 | K41: 0 | L41: 0
A42: Debt Retirement Charge (DRC) | B42: 3650000 | C42: 0.007 | D42: =B42*C42 -> 25550 | E42: =B42 -> 3650000 | F42: =C42 -> 0.007 | G42: =E42*F42 -> 25550 | I42: =G42-D42 -> 0 | J42: =I42/D42 -> 0 | K42: =G42/G48 -> 0.08069673339 | L42: =G42/G54 -> 0.07567506422
A44: Total Bill on RPP (before taxes) | D44: 299300 | G44: 311325 | I44: =G44-D44 -> 12025 | J44: =I44/D44 -> 0.04017707985 | K44: =G44/G48 -> 0.9832841691
A45: HST | C45: 0.13 | D45: =C45*D44 -> 38909 | F45: =C45 -> 0.13 | G45: =F45*G44 -> 40472.25 | I45: =G45-D45 -> 1563.25 | J45: =I45/D45 -> 0.04017707985 | K45: =G45/G48 -> 0.127826942
A46: Total Bill (including HST) | D46: =D45+D44 -> 338209 | G46: =G45+G44 -> 351797.25 | I46: =G46-D46 -> 13588.25 | J46: =I46/D46 -> 0.04017707985 | K46: =G46/G48 -> 1.111111111
A47: Ontario Clean Energy Benefit (OCEB) | C47: -0.1 | D47: =-0.1*D46 -> -33820.9 | F47: =C47 -> -0.1 | G47: =-0.1*G46 -> -35179.725 | I47: =G47-D47 -> -1358.825 | J47: =I47/D47 -> 0.04017707985 | K47: =G47/G48 -> -0.1111111111
A48: Total Bill on RPP (including OCEB) | D48: =D46+D47 -> 304388.1 | G48: =G46+G47 -> 316617.525 | I48: =G48-D48 -> 12229.425 | J48: =I48/D48 -> 0.04017707985 | K48: =G48/G48 -> 1
A50: Total Bill on TOU (before taxes) | D50: 319959 | G50: 331984 | I50: =G50-D50 -> 12025 | J50: =I50/D50 -> 0.03758294031 | L50: =G50/G54 -> 0.9832841691
A51: HST | C51: 0.13 | D51: =C51*D50 -> 41594.67 | F51: =C51 -> 0.13 | G51: =F51*G50 -> 43157.92 | I51: =G51-D51 -> 1563.25 | J51: =I51/D51 -> 0.03758294031 | L51: =G51/G54 -> 0.127826942
A52: Total Bill (including HST) | D52: =D51+D50 -> 361553.67 | G52: =G51+G50 -> 375141.92 | I52: =G52-D52 -> 13588.25 | J52: =I52/D52 -> 0.03758294031 | L52: =G52/G54 -> 1.111111111
A53: Ontario Clean Energy Benefit (OCEB) | C53: -0.1 | D53: =-0.1*D52 -> -36155.367 | F53: =C53 -> -0.1 | G53: =-0.1*G52 -> -37514.192 | I53: =G53-D53 -> -1358.825 | J53: =I53/D53 -> 0.03758294031 | L53: =G53/G54 -> -0.1111111111
A54: Total Bill on TOU (including OCEB) | D54: =D52+D53 -> 325398.303 | G54: =G52+G53 -> 337627.728 | I54: =G54-D54 -> 12229.425 | J54: =I54/D54 -> 0.03758294031 | L54: =G54/G54 -> 1
A57: Applicants must provide bill impacts for residential at 800 kWh and GS<50kW at 2000 kWh. In addition, their filing should cover the range that is relevant to their service territory, class by class. A general guideline of consumption levels follows: Residential (kWh) - 100, 250, 500, 800, 1000, 1500, 2000 GS<50kW (kWh) - 1000, 2000, 5000, 10000, 15000 GS>50kW (kW) 100, 500, 1000 Large User - range appropriate for utility Street/Sentinel Lighting Classes and USL - 150 kWh and 1 kW, range appropriate for utility.

Sheet 28. Bill Impacts
S1: 1 | Z1: =MATCH(C14, '3. Rate Class Selection'!B19:B40,0) -> 2 | AA1: =VLOOKUP(C14, lists!AO:AP,2,0) -> kWh
A14: Rate Class | C14: GENERAL SERVICE LESS THAN 50 KW
A16: Loss Factor | E16: 1.033
A18: Consumption | C18: kWh | E18: 2000
A20: If Billed on a kW basis:
A21: Demand | C21: kW
E25: Current Board-Approved | I25: Proposed | M25: Impact
E26: Rate | F26: Volume | G26: Charge | I26: Rate | J26: Volume | K26: Charge | M26: $ Change | N26: % Change
E27: ($) | G27: ($) | I27: ($) | K27: ($)
A28: Monthly Service Charge | E28: 25.31 | F28: 1 | G28: =F28*E28 -> 25.31 | I28: 25.59 | J28: 1 | K28: =J28*I28 -> 25.59 | M28: =K28-G28 -> 0.28 | N28: =IF((G28)=0,"",(M28/G28)) -> 0.01106282102
A29: Distribution Volumetric Rate | E29: 0.0177 | F29: 2000 | G29: =F29*E29 -> 35.4 | I29: 0.0179 | J29: =F29 -> 2000 | K29: =J29*I29 -> 35.8 | M29: 0.4 | N29: 0.01129943503
A30: Fixed Rate Riders | E30: 0 | F30: 1 | G30: =F30*E30 -> 0 | I30: 0 | J30: 1 | K30: =J30*I30 -> 0 | M30: 0
A31: Volumetric Rate Riders | E31: 0 | F31: 2000 | G31: =F31*E31 -> 0 | I31: 0 | J31: =F31 -> 2000 | K31: =J31*I31 -> 0 | M31: 0
A32: Sub-Total A (excluding pass through) | G32: =SUM(G28:G31) -> 60.71 | K32: =SUM(K28:K31) -> 61.39 | M32: 0.68 | N32: 0.01120079064
A33: Line Losses on Cost of Power | E33: =E45*0.64+E46*0.18+E47*0.18 -> 0.08392 | F33: =E18*(E16-1) -> 66 | G33: =E33*F33 -> 5.53872 | I33: =I45*0.64+I46*0.18+I47*0.18 -> 0.08392 | J33: =F33 -> 66 | K33: =I33*J33 -> 5.53872 | M33: 0 | N33: 0
A34: Total Deferral/Variance Account Rate Riders | E34: -0.0014 | F34: 2000 | G34: =F34*E34 -> -2.8 | I34: -0.0021 | J34: =F34 -> 2000 | K34: =J34*I34 -> -4.2 | M34: -1.4 | N34: 0.5
A35: Low Voltage Service Charge | F35: 2000 | G35: =F35*E35 -> 0 | J35: =F35 -> 2000 | K35: =J35*I35 -> 0 | M35: 0
A36: Smart Meter Entity Charge | E36: 0.79 | F36: 1 | G36: =F36*E36 -> 0.79 | I36: 0.79 | J36: =F36 -> 1 | K36: =J36*I36 -> 0.79 | M36: 0 | N36: 0
A37: Sub-Total B - Distribution (includes Sub-Total A) | G37: =SUM(G32:G36) -> 64.23872 | K37: =SUM(K32:K36) -> 63.51872 | M37: =K37-G37 -> -0.72 | N37: =IF((G37)=0,"",(M37/G37)) -> -0.01120819344
A38: RTSR - Network | E38: 0.0065 | F38: 4133.2 | G38: =F38*E38 -> 26.8658 | I38: 0.0066 | J38: =F38 -> 4133.2 | K38: =J38*I38 -> 27.27912 | M38: 0.41332 | N38: 0.01538461538
A39: RTSR - Connection and/or Line and Transformation Connection | E39: 0.0048 | F39: 4133.2 | G39: =F39*E39 -> 19.83936 | I39: 0.005 | J39: =F39 -> 4133.2 | K39: =J39*I39 -> 20.666 | M39: 0.82664 | N39: 0.04166666667
A40: Sub-Total C - Delivery (including Sub-Total B) | G40: =SUM(G37:G39) -> 110.94388 | K40: =SUM(K37:K39) -> 111.46384 | M40: 0.51996 | N40: 0.004686693849
A41: Wholesale Market Service Charge (WMSC) | E41: 0.0044 | F41: =E18*E16 -> 2066 | G41: =F41*E41 -> 9.0904 | I41: 0.0044 | J41: =E18*E16 -> 2066 | K41: =J41*I41 -> 9.0904 | M41: 0 | N41: 0
A42: Rural and Remote Rate Protection (RRRP) | E42: 0.0013 | F42: =E18*E16 -> 2066 | G42: 2.6858 | I42: 0.0013 | J42: =E18*E16 -> 2066 | K42: 2.6858 | M42: 0 | N42: 0
A43: Standard Supply Service Charge | E43: 0.25 | F43: 1 | G43: 0.25 | I43: 0.25 | J43: 1 | K43: 0.25 | M43: 0 | N43: 0
A44: Debt Retirement Charge (DRC) | E44: 0.007 | F44: =E18 -> 2000 | G44: 14 | I44: 0.007 | J44: =E18 -> 2000 | K44: 14 | M44: 0 | N44: 0
A45: TOU - Off Peak | E45: 0.067 | F45: 1280 | G45: 85.76 | I45: 0.067 | J45: =F45 -> 1280 | K45: 85.76 | M45: 0 | N45: 0
A46: TOU - Mid Peak | E46: 0.104 | F46: 360 | G46: 37.44 | I46: 0.104 | J46: =F46 -> 360 | K46: 37.44 | M46: 0 | N46: 0
A47: TOU - On Peak | E47: 0.124 | F47: 360 | G47: 44.64 | I47: 0.124 | J47: =F47 -> 360 | K47: 44.64 | M47: 0 | N47: 0
A49: Total Bill on TOU (before Taxes) | G49: =SUM(G40:G44,G45:G47) -> 304.81008 | K49: =SUM(K40:K44,K45:K47) -> 305.33004 | M49: =K49-G49 -> 0.51996 | N49: =IF((G49)=0,"",(M49/G49)) -> 0.001705849098
A50: HST | E50: 0.13 | G50: =G49*E50 -> 39.6253104 | I50: 0.13 | K50: =K49*I50 -> 39.6929052 | M50: 0.0675948 | N50: 0.001705849098
A51: Total Bill (including HST) | G51: =G49+G50 -> 344.4353904 | K51: =K49+K50 -> 345.0229452 | M51: 0.5875548 | N51: 0.001705849098
A52: Ontario Clean Energy Benefit 1 | G52: =ROUND(-G51*10%,2) -> -34.44 | K52: =ROUND(-K51*10%,2) -> -34.5 | M52: -0.06 | N52: 0.001742160279
A53: Total Bill on TOU (including OCEB) | G53: =G51+G52 -> 309.9953904 | K53: =K51+K52 -> 310.5229452 | M53: 0.5275548 | N53: 0.001701814983
A58: Note: For distributors who have a majority of customers on Tiered pricing, please provide a separate bill impact for such customers.

Sheet lists (hidden)
A1: DISTRIBUTED GENERATION [DGEN] | B1: Embedded Distributor | C1: =COUNTA(B1:B17) -> 4 | I1: A Standby Service Charge will be applied for a month where standby power is not provided. The applicable rate is the approved Distribution Volumetric Rate of the applicable service class and is applied to gross metered demand or contracted amount, whichever is greater. A monthly administration charge of $200, for simple metering arrangements, or $500, for complex metering arrangements, will also be applied. | L1: Loss Factors | N1: Units | O1: Units1 | P1: Units2 | Z1: Account History | AA1: Account set up charge/change of occupancy charge (plus credit agency costs if applicable) | AB1: Total Loss Factor – Embedded Distributor – Hydro One Networks Inc. | AL1: Algoma Power Inc. | AM1: Algoma Power Inc. | AO1: DISTRIBUTED GENERATION [DGEN] | AP1: kW | AT1: Sub-Total: Delivery (Distribution and Retail Transmission)
A2: EMBEDDED DISTRIBUTOR | B2: General Service 3,000 to 4,999 kW | I2: Distribution Volumetric Rate | L2: Total Loss Factor – Primary Metered Customer | N2: $ | O2: $/kWh | P2: $ | Z2: Account set up charge/change of occupancy charge | AA2: Administrative Billing Charge | AB2: Total Loss Factor – Primary Metered Customer | AL2: Atikokan Hydro Inc. | AM2: Atikokan Hydro Inc. | AO2: EMBEDDED DISTRIBUTOR | AP2: kW | AT2: Wholesale Market Service Rate | AW2: =AU2*AV2 -> 0 | AX2: =AU2 -> 0 | AY2: 0 | AZ2: =AX2*AY2 -> 0 | BB2: =AZ2-AW2 -> 0 | BC2: =BB2/AW2 -> 
A3: EMBEDDED DISTRIBUTOR | B3: General Service 1,000 to 4,999 kW | I3: Distribution Volumetric Rate - $/kW of contracted amount | L3: Total Loss Factor – Primary Metered Customer < 5,000 kW | N3: $/kWh | O3: $/kW | P3: % | W3: MSC | Z3: Account set up charge/change of occupancy charge (plus credit agency costs if applicable – Residential) | AA3: Bell Canada Pole Rentals | AB3: Total Loss Factor – Primary Metered Customer < 5,000 kW | AL3: Bluewater Power Distribution Corporation | AM3: Bluewater Power Distribution Corporation | AO3: EMBEDDED DISTRIBUTOR | AP3: kW | AT3: Rural or Remote Electricity Rate Protection Charge (RRRP) | AW3: =AU3*AV3 -> 0 | AX3: 0 | AY3: 0 | AZ3: =AX3*AY3 -> 0 | BB3: =AZ3-AW3 -> 0 | BC3: =BB3/AW3 -> 
A4: FARMS - SINGLE PHASE ENERGY-BILLED [F1] | B4: General Service Equal To Or Greater Than 1,500 kW - Interval Metered | I4: Distribution Wheeling Service Rate | L4: Total Loss Factor – Primary Metered Customer > 5,000 kW | N4: $/kW | O4: $/kVA | W4: SM_Rate_Adder | Z4: Account set up charge/change of occupancy charge (plus credit agency costs if applicable) | AA4: Clearance Pole Attachment charge $/pole/year | AB4: Total Loss Factor – Primary Metered Customer > 5,000 kW | AL4: Brant County Power Inc. | AM4: Brant County Power Inc. | AO4: FARMS - SINGLE PHASE ENERGY-BILLED [F1] | AP4: kWh | AT4: Standard Supply Service – Administration Charge (if applicable) | AW4: =AU4*AV4 -> 0 | AX4: 0 | AY4: 0 | AZ4: =AX4*AY4 -> 0 | BB4: =AZ4-AW4 -> 0 | BC4: =BB4/AW4 -> 
A5: FARMS - THREE PHASE ENERGY-BILLED [F3] | I5: Electricity Rate | L5: Total Loss Factor – Secondary Metered Customer | N5: $/kVA | W5: MSC_Rate_Rider_ | Z5: Arrears certificate | AA5: Collection of account charge – no disconnection | AB5: Total Loss Factor – Secondary Metered Customer | AL5: Brantford Power Inc. | AM5: Brantford Power Inc. | AO5: FARMS - THREE PHASE ENERGY-BILLED [F3] | AP5: kWh | AT5: Sub-Total: Regulatory | AW5: =SUM(AW2:AW4) -> 0 | AZ5: =SUM(AZ2:BA4) -> 0 | BB5: =AZ5-AW5 -> 0 | BC5: =BB5/AW5 -> 
A6: GENERAL SERVICE - COMMERCIAL | I6: Electricity Rate - All Additional kWh | L6: Total Loss Factor – Secondary Metered Customer < 5,000 kW | W6: VC | Z6: Arrears certificate (credit reference) | AA6: Collection of account charge – no disconnection – after regular hours | AB6: Total Loss Factor – Secondary Metered Customer < 5,000 kW | AL6: Burlington Hydro Inc. | AM6: Burlington Hydro Inc. | AO6: GENERAL SERVICE - COMMERCIAL | AP6: kW | AT6: Debt Retirement Charge (DRC) | AW6: =AU6*AV6 -> 0 | AX6: =AU6 -> 0 | AY6: =AV6 -> 0 | AZ6: =AX6*AY6 -> 0 | BB6: =AZ6-AW6 -> 0 | BC6: =BB6/AW6 -> 
A7: GENERAL SERVICE - INSTITUTIONAL | I7: Electricity Rate - First 250 kWh | AL7: Cambridge and North Dumfries Hydro Inc. | AM7: Cambridge and North Dumfries Hydro Inc. | AO7: GENERAL SERVICE - INSTITUTIONAL | AP7: kW
A8: GENERAL SERVICE 1,000 TO 2,999 KW | I8: Electricity Rate -All Additional kWh | L8: Total Loss Factor – Secondary Metered Customer > 5,000 kW | W8: VC_Rate_Rider_ | Z8: Charge to certify cheque | AA8: Collection of account charge – no disconnection - during regular business hours | AB8: Total Loss Factor – Secondary Metered Customer > 5,000 kW | AL8: Canadian Niagara Power Inc. | AM8: Canadian Niagara Power Inc. | AO8: GENERAL SERVICE 1,000 TO 2,999 KW | AP8: kW | AT8: Total Bill on RPP (before taxes) | BB8: =AZ8-AW8 -> 0
A9: GENERAL SERVICE 1,000 TO 4,999 KW | I9: Electricity Rate First 1,000 kWh | L9: Distribution Loss Factor - Secondary Metered Customer < 5,000 kW | W9: VC_GA_Rate_Rider_kW_ | Z9: Collection of Account Charge – No Disconnection | AA9: Collection of account charge – no disconnection – during regular hours | AL9: Centre Wellington Hydro Ltd. | AM9: Centre Wellington Hydro Ltd. | AO9: GENERAL SERVICE 1,000 TO 4,999 KW | AP9: kW | AT9: HST | AW9: =AV9*AW8 -> 0 | AY9: =AV9 -> 0 | AZ9: =AY9*AZ8 -> 0 | BB9: =AZ9-AW9 -> 0 | BC9: =BB9/AW9 -> 
A10: GENERAL SERVICE 1,000 TO 4,999 KW - INTERVAL METERS | I10: Electricity Rate First 25,000 kWh | L10: Distribution Loss Factor - Secondary Metered Customer > 5,000 kW | W10: VC_LV_Rate | Z10: Credit Card Convenience Charge | AA10: Collection/Disconnection/Load Limiter/Reconnection – if in Community | AL10: Chapleau Public Utilities Corporation | AM10: Chapleau Public Utilities Corporation | AO10: GENERAL SERVICE 1,000 TO 4,999 KW - INTERVAL METERS | AP10: kW | AT10: Total Bill (including HST) | AW10: =AW9+AW8 -> 0 | AZ10: =AZ9+AZ8 -> 0 | BB10: =AZ10-AW10 -> 0 | BC10: =BB10/AW10 -> 
A11: GENERAL SERVICE 1,000 TO 4,999 KW (CO-GENERATION) | I11: Electricity Rate First 6,000 kWh | L11: Distribution Loss Factor - Primary Metered Customer < 5,000 kW | W11: RTSR_Network | Z11: Credit check (plus credit agency costs) | AA11: Credit Card Convenience Charge | AL11: Collus PowerStream Corporation | AM11: Collus PowerStream Corporation | AO11: GENERAL SERVICE 1,000 TO 4,999 KW (CO-GENERATION) | AP11: kW | AT11: Ontario Clean Energy Benefit (OCEB) | AW11: =-0.1*AW10 -> 0 | AY11: =AV11 -> 0 | AZ11: =-0.1*AZ10 -> 0 | BB11: =AZ11-AW11 -> 0 | BC11: =BB11/AW11 -> 
A12: GENERAL SERVICE 1,500 TO 4,999 KW | I12: Electricity Rate Next 1,500 kWh | L12: Distribution Loss Factor - Primary Metered Customer > 5,000 kW | W12: RTSR_Connection | Z12: Credit reference Letter | AA12: Disconnect/Reconnect at meter – after regular hours | AL12: Cooperative Hydro Embrun Inc. | AM12: Cooperative Hydro Embrun Inc. | AO12: GENERAL SERVICE 1,500 TO 4,999 KW | AP12: kW | AT12: Total Bill on RPP (including OCEB) | AW12: =AW10+AW11 -> 0 | AZ12: =AZ10+AZ11 -> 0 | BB12: =AZ12-AW12 -> 0 | BC12: =BB12/AW12 -> 
A13: GENERAL SERVICE 2,500 TO 4,999 KW | I13: General Service 1,500 to 4,999 kW customer | AL13: E.L.K. Energy Inc. | AM13: E.L.K. Energy Inc. | AO13: GENERAL SERVICE 2,500 TO 4,999 KW | AP13: kW
A14: GENERAL SERVICE 3,000 TO 4,999 KW | I14: General Service 50 to 1,499 kW customer | L14: Total Loss Factor - Embedded Distributor | W14: RTSR_Network_Interval | Z14: Credit reference/credit check (plus credit agency costs – General Service) | AA14: Disconnect/Reconnect at meter – during regular hours | AL14: Enersource Hydro Mississauga Inc. | AM14: Enersource Hydro Mississauga Inc. | AO14: GENERAL SERVICE 3,000 TO 4,999 KW | AP14: kW | AT14: Total Bill on TOU (before taxes) | BB14: =AZ14-AW14 -> 0
A15: GENERAL SERVICE 3,000 TO 4,999 KW - INTERMEDIATE USE | I15: General Service Large Use customer | L15: Total Loss Factor – Embedded Distributor – Hydro One Networks Inc. | W15: RTSR_Connection_Interval | Z15: Credit Reference/credit check (plus credit agency costs) | AA15: Disconnect/Reconnect at pole – after regular hours | AL15: Entegrus Powerlines Inc. | AM15: Entegrus Powerlines Inc. | AO15: GENERAL SERVICE 3,000 TO 4,999 KW - INTERMEDIATE USE | AP15: kW | AT15: HST | AW15: =AV15*AW14 -> 0 | AY15: =AV15 -> 0 | AZ15: =AY15*AZ14 -> 0 | BB15: =AZ15-AW15 -> 0 | BC15: =BB15/AW15 -> 
A16: GENERAL SERVICE 3,000 TO 4,999 KW - INTERVAL METERED | I16: Green Energy Act Initiatives Funding Adder - effective until the date of the next cost of service-based rate order | W16: RTSR_Network_Interval_GR1000kW | Z16: Dispute Test – Commercial self contained -- MC | AA16: Disconnect/Reconnect at pole – during regular hours | AL16: Entegrus Powerlines Inc. - Dutton Service Area | AM16: Entegrus Powerlines Inc. - Dutton Service Area | AO16: GENERAL SERVICE 3,000 TO 4,999 KW - INTERVAL METERED | AP16: kW | AT16: Total Bill (including HST) | AW16: =AW15+AW14 -> 0 | AZ16: =AZ15+AZ14 -> 0 | BB16: =AZ16-AW16 -> 0 | BC16: =BB16/AW16 -> 
A17: GENERAL SERVICE 3,000 TO 4,999 KW - TIME OF USE | I17: Green Energy Act Plan Funding Adder | W17: RTSR_Connection_Interval_GR1000kW | Z17: Dispute Test – Commercial TT -- MC | AA17: Disconnect/Reconnect Charge – At Meter – After Hours | AL17: Entegrus Powerlines Inc. - former Chatham-Kent Hydro Service Area | AM17: Entegrus Powerlines Inc. - former Chatham-Kent Hydro Service Area | AO17: GENERAL SERVICE 3,000 TO 4,999 KW - TIME OF USE | AP17: kW | AT17: Ontario Clean Energy Benefit (OCEB) | AW17: =-0.1*AW16 -> 0 | AY17: =AV17 -> 0 | AZ17: =-0.1*AZ16 -> 0 | BB17: =AZ17-AW17 -> 0 | BC17: =BB17/AW17 -> 
A18: GENERAL SERVICE 50 TO 1,000 KW | I18: Green Energy Act Plan Funding Adder - effective April 1, 2013 until March 31, 2014 | W18: RTSR_Line_Connection | Z18: Dispute Test – Residential | AA18: Disconnect/Reconnect Charge – At Meter – During Regular Hours | AL18: Entegrus Powerlines Inc. - Newbury Service Area | AM18: Entegrus Powerlines Inc. - Newbury Service Area | AO18: GENERAL SERVICE 50 TO 1,000 KW | AP18: kW | AT18: Total Bill on TOU (including OCEB) | AW18: =AW16+AW17 -> 0 | AZ18: =AZ16+AZ17 -> 0 | BB18: =AZ18-AW18 -> 0 | BC18: =BB18/AW18 -> 
A19: GENERAL SERVICE 50 TO 1,000 KW - INTERVAL METERS | I19: Green Energy Act Plan Funding Adder - effective April 1, 2014 until March 31, 2015 | W19: RTSR_Transformer_Connection | Z19: Duplicate Invoices for previous billing | AA19: Disconnect/Reconnect Charge – At Pole – After Hours | AL19: Entegrus Powerlines Inc. - Strathroy, Mount Brydges and Parkhill Service Areas | AM19: Entegrus Powerlines Inc. - Strathroy, Mount Brydges and Parkhill Service Areas | AO19: GENERAL SERVICE 50 TO 1,000 KW - INTERVAL METERS | AP19: kW
A20: GENERAL SERVICE 50 TO 1,000 KW - NON INTERVAL METERS | I20: ICM Rate Rider (2014) - in effect until the effective date of the next cost of service rates | W20: WMSR | Z20: Easement Letter | AA20: Disconnect/Reconnect Charge – At Pole – During Regular Hours | AL20: ENWIN Utilities Ltd. | AM20: ENWIN Utilities Ltd. | AO20: GENERAL SERVICE 50 TO 1,000 KW - NON INTERVAL METERS | AP20: kW
A21: GENERAL SERVICE 50 TO 1,499 KW | I21: Low Voltage Service Charge | W21: RRRP | Z21: Income Tax Letter | AA21: Disconnect/Reconnect Charges for non payment of account - At Meter After Hours | AL21: Erie Thames Powerlines Corporation | AM21: Erie Thames Powerlines Corporation | AO21: GENERAL SERVICE 50 TO 1,499 KW | AP21: kW
A22: GENERAL SERVICE 50 TO 1,499 KW - INTERVAL METERED | I22: Low Voltage Service Rate | W22: SPC | Z22: Interval Meter Interrogation | AA22: Disconnect/Reconnect charges for non payment of account – at meter after regular hours | AL22: Espanola Regional Hydro Distribution Corporation | AM22: Espanola Regional Hydro Distribution Corporation | AO22: GENERAL SERVICE 50 TO 1,499 KW - INTERVAL METERED | AP22: kW
A23: GENERAL SERVICE 50 TO 2,499 KW | I23: Low Voltage Volumetric Rate | W23: DRC | Z23: Interval meter request change | AA23: Disconnect/Reconnect Charges for non payment of account - At Meter During Regular Hours | AL23: Essex Powerlines Corporation | AM23: Essex Powerlines Corporation | AO23: GENERAL SERVICE 50 TO 2,499 KW | AP23: kW
A24: GENERAL SERVICE 50 TO 2,999 KW | I24: LRAM Rate Rider - Effective Until April 30, 2015 | W24: SSS | Z24: Legal letter | AA24: Disconnect/Reconnect charges for non payment of account – at meter during regular hours | AL24: Festival Hydro Inc. | AM24: Festival Hydro Inc. | AO24: GENERAL SERVICE 50 TO 2,999 KW | AP24: kW
A25: GENERAL SERVICE 50 TO 2,999 KW - INTERVAL METERED | I25: Minimum Distribution Charge - per KW of maximum billing demand in the previous 11 months | W25: SFLF | Z25: Legal letter charge | AA25: Disconnect/Reconnect charges for non payment of account – at pole after regular hours | AL25: Fort Frances Power Corporation | AM25: Fort Frances Power Corporation | AO25: GENERAL SERVICE 50 TO 2,999 KW - INTERVAL METERED | AP25: kW
A26: GENERAL SERVICE 50 TO 2,999 KW - TIME OF USE | B26: January | I26: Monthly Distribution Wheeling Service Rate - Dedicated LV Line | W26: DLF_Secondary_LT_5000kW | Z26: Meter dispute charge plus Measurement Canada fees (if meter found correct) | AA26: Disconnect/Reconnect charges for non payment of account – at pole during regular hours | AL26: Greater Sudbury Hydro Inc. | AM26: Greater Sudbury Hydro Inc. | AO26: GENERAL SERVICE 50 TO 2,999 KW - TIME OF USE | AP26: kW
A27: GENERAL SERVICE 50 TO 4,999 KW | B27: February | I27: Monthly Distribution Wheeling Service Rate - Hydro One Networks | W27: DLF_Secondary_GT_5000kW | Z27: Notification charge | AA27: Disconnect/Reconnection for >300 volts - after regular hours | AL27: Grimsby Power Inc. | AM27: Grimsby Power Inc. | AO27: GENERAL SERVICE 50 TO 4,999 KW | AP27: kW
A28: GENERAL SERVICE 50 TO 4,999 KW - INTERVAL METERED | B28: March | I28: Monthly Distribution Wheeling Service Rate - Shared LV Line | W28: DLF_Primary_LT_5000kW | Z28: Pulling Post Dated Cheques | AA28: Disconnect/Reconnection for >300 volts - during regular hours | AL28: Guelph Hydro Electric Systems Inc. | AM28: Guelph Hydro Electric Systems Inc. | AO28: GENERAL SERVICE 50 TO 4,999 KW - INTERVAL METERED | AP28: kW
A29: GENERAL SERVICE 50 TO 4,999 KW - TIME OF USE | B29: April | I29: Monthly Distribution Wheeling Service Rate - Waterloo North Hydro | W29: DLF_Primary_GT_5000kW | Z29: Request for other billing information | AA29: Disposal of Concrete Poles | AL29: Haldimand County Hydro Inc. | AM29: Haldimand County Hydro Inc. | AO29: GENERAL SERVICE 50 TO 4,999 KW - TIME OF USE | AP29: kW
A30: GENERAL SERVICE 50 TO 4,999 KW (COGENERATION) | B30: May | I30: Rate Rider for Application of Tax Change - effective until April 30, 2015 | W30: TLF_Secondary_LT_5000kW | Z30: Returned cheque (plus bank charges) | AA30: Dispute Test – Commercial TT -- MC | AL30: Halton Hills Hydro Inc. | AM30: Halton Hills Hydro Inc. | AO30: GENERAL SERVICE 50 TO 4,999 KW (COGENERATION) | AP30: kW
A31: GENERAL SERVICE 50 TO 4,999 KW (FORMERLY TIME OF USE) | B31: June | I31: Rate Rider for Application of Tax Change - effective until December 31, 2014 | W31: TLF_Secondary_GT_5000kW | Z31: Returned cheque charge (plus bank charges) | AA31: Install/Remove load control device – after regular hours | AL31: Hearst Power Distribution Company Limited | AM31: Hearst Power Distribution Company Limited | AO31: GENERAL SERVICE 50 TO 4,999 KW (FORMERLY TIME OF USE) | AP31: kW
A32: GENERAL SERVICE 50 TO 499 KW | B32: July | I32: Rate Rider for Application of Tax Change (2014) - effective until April 30, 2015 | W32: TLF_Primary_LT_5000kW | Z32: Special Billing Service (aggregation) | AA32: Install/Remove load control device – during regular hours | AL32: Horizon Utilities Corporation | AM32: Horizon Utilities Corporation | AO32: GENERAL SERVICE 50 TO 499 KW | AP32: kW
A33: GENERAL SERVICE 50 TO 699 KW | B33: August | I33: Rate Rider for Application of Tax Change (per connection) - effective until April 30, 2015 | W33: TLF_Primary_GT_5000kW | Z33: Special Billing Service (sub-metering charge per meter) | AA33: Interval Meter Interrogation | AL33: Hydro 2000 Inc. | AM33: Hydro 2000 Inc. | AO33: GENERAL SERVICE 50 TO 699 KW | AP33: kW
A34: GENERAL SERVICE 50 TO 999 KW | B34: September | I34: Rate Rider for CGAAP Accounting Changes (2013) - effective until April 30, 2017 | W34: TLF_EmbeddedDistributor | Z34: Special meter reads | AA34: Interval Meter Load Management Tool Charge $/month | AL34: Hydro Hawkesbury Inc. | AM34: Hydro Hawkesbury Inc. | AO34: GENERAL SERVICE 50 TO 999 KW | AP34: kW
A35: GENERAL SERVICE 50 TO 999 KW - INTERVAL METERED | B35: October | I35: Rate Rider for Deferral/Variance Account (2012) - effective unitl April 30, 2016 | Z35: Statement of Account | AA35: Interval meter request change | AL35: Hydro One Brampton Networks Inc. | AM35: Hydro One Brampton Networks Inc. | AO35: GENERAL SERVICE 50 TO 999 KW - INTERVAL METERED | AP35: kW
A36: GENERAL SERVICE 500 TO 4,999 KW | B36: November | I36: Rate Rider for Deferral/Variance Account Disposition – effective until April 30, 2015 | Z36: Unprocessed Payment Charge (plus bank charges) | AA36: Late Payment – per annum | AL36: Hydro One Networks Inc. | AM36: Hydro One Networks Inc. | AO36: GENERAL SERVICE 500 TO 4,999 KW | AP36: kW
A37: GENERAL SERVICE 700 TO 4,999 KW | B37: December | I37: Rate Rider for Deferral/Variance Account Disposition (2012) - effective until April 30, 2016 | AA37: Late Payment – per month | AL37: Hydro Ottawa Limited | AM37: Hydro Ottawa Limited | AO37: GENERAL SERVICE 700 TO 4,999 KW | AP37: kW
A38: GENERAL SERVICE DEMAND BILLED (50 KW AND ABOVE) [GSD] | I38: Rate Rider for Deferral/Variance Account Disposition (2013) - effective until April 30, 2014 | AA38: Layout fees | AL38: Innisfil Hydro Distribution Systems Limited | AM38: Innisfil Hydro Distribution Systems Limited | AO38: GENERAL SERVICE DEMAND BILLED (50 KW AND ABOVE) [GSD] | AP38: kW
A39: GENERAL SERVICE ENERGY BILLED (LESS THAN 50 KW) [GSE-METERED] | I39: Rate Rider for Deferral/Variance Account Disposition (2014) - effective until April 28, 2016 | AA39: Meter dispute charge plus Measurement Canada fees (if meter found correct) | AL39: Kenora Hydro Electric Corporation Ltd. | AM39: Kenora Hydro Electric Corporation Ltd. | AO39: GENERAL SERVICE ENERGY BILLED (LESS THAN 50 KW) [GSE-METERED] | AP39: kWh
A40: GENERAL SERVICE ENERGY BILLED (LESS THAN TO 50 KW) [GSE-UNMETERED] | I40: Rate Rider for Deferral/Variance Account Disposition (2014) - effective until April 30, 2015 | AA40: Meter Interrogation Charge | AL40: Kingston Hydro Corporation | AM40: Kingston Hydro Corporation | AO40: GENERAL SERVICE ENERGY BILLED (LESS THAN TO 50 KW) [GSE-UNMETERED] | AP40: kWh
A41: GENERAL SERVICE EQUAL TO OR GREATER THAN 1,500 KW | I41: Rate Rider for Deferral/Variance Account Disposition (2014) - effective until December 31, 2014 | AA41: Missed Service Appointment | AL41: Kitchener-Wilmot Hydro Inc. | AM41: Kitchener-Wilmot Hydro Inc. | AO41: GENERAL SERVICE EQUAL TO OR GREATER THAN 1,500 KW | AP41: kW
A42: GENERAL SERVICE EQUAL TO OR GREATER THAN 1,500 KW - INTERVAL METERED | I42: Rate Rider for Deferral/Variance Account Disposition (2014) - effective until December 31, 2015 | AA42: Norfolk Pole Rentals – Billed | AL42: Lakefront Utilities Inc. | AM42: Lakefront Utilities Inc. | AO42: GENERAL SERVICE EQUAL TO OR GREATER THAN 1,500 KW - INTERVAL METERED | AP42: kW
A43: GENERAL SERVICE GREATER THAN 1,000 KW | I43: Rate Rider for Deferral/Variance Account Dispositon (2012) - effective until April 30, 2016 | AA43: Optional Interval/TOU Meter charge $/month | AL43: Lakeland Power Distribution Ltd. | AM43: Lakeland Power Distribution Ltd. | AO43: GENERAL SERVICE GREATER THAN 1,000 KW | AP43: kW
A44: GENERAL SERVICE GREATER THAN 50 kW - WMP | I44: Rate Rider for Disposition of Accounting Changes Under CGAAP Account 1576 - effective until April 30, 2016 | AA44: Overtime Locate | AL44: London Hydro Inc. | AM44: London Hydro Inc. | AO44: GENERAL SERVICE GREATER THAN 50 kW - WMP | AP44: kW
A45: GENERAL SERVICE INTERMEDIATE 1,000 TO 4,999 KW | I45: Rate Rider for Disposition of Deferral/Variance Accounts (2010) - effective until December 31, 2014 | AA45: Owner Requested Disconnection/Reconnection – after regular hours | AL45: Midland Power Utility Corporation | AM45: Midland Power Utility Corporation | AO45: GENERAL SERVICE INTERMEDIATE 1,000 TO 4,999 KW | AP45: kW
A46: GENERAL SERVICE INTERMEDIATE RATE CLASS 1,000 TO 4,999 KW (FORMERLY GENERAL SERVICE > 50 KW CUSTOMERS) | I46: Rate Rider for Disposition of Deferral/Variance Accounts (2011) - effective until April 30, 2015 | AA46: Owner Requested Disconnection/Reconnection – during regular hours | AL46: Milton Hydro Distribution Inc. | AM46: Milton Hydro Distribution Inc. | AO46: GENERAL SERVICE INTERMEDIATE RATE CLASS 1,000 TO 4,999 KW (FORMERLY GENERAL SERVICE > 50 KW CUSTOMERS) | AP46: kW
A47: GENERAL SERVICE INTERMEDIATE RATE CLASS 1,000 TO 4,999 KW (FORMERLY LARGE USE CUSTOMERS) | I47: Rate Rider for Disposition of Deferral/Variance Accounts (2011) - effective until April 30, 2016 | AA47: Returned cheque (plus bank charges) | AL47: Newmarket - Tay Power Distribution Ltd. | AM47: Newmarket - Tay Power Distribution Ltd. | AO47: GENERAL SERVICE INTERMEDIATE RATE CLASS 1,000 TO 4,999 KW (FORMERLY LARGE USE CUSTOMERS) | AP47: kW
A48: GENERAL SERVICE LESS THAN 50 KW | I48: Rate Rider for Disposition of Deferral/Variance Accounts (2012) - effective until April 30, 2014 | AA48: Rural system expansion / line connection fee | AL48: Niagara Peninsula Energy Inc. | AM48: Niagara Peninsula Energy Inc. | AO48: GENERAL SERVICE LESS THAN 50 KW | AP48: kWh
A49: GENERAL SERVICE LESS THAN 50 KW - SINGLE PHASE ENERGY-BILLED [G1] | I49: Rate Rider for Disposition of Deferral/Variance Accounts (2012) - effective until April 30, 2015 | AA49: Same Day Open Trench | AL49: Niagara-on-the-Lake Hydro Inc. | AM49: Niagara-on-the-Lake Hydro Inc. | AO49: GENERAL SERVICE LESS THAN 50 KW - SINGLE PHASE ENERGY-BILLED [G1] | AP49: kWh
A50: GENERAL SERVICE LESS THAN 50 KW - THREE PHASE ENERGY-BILLED [G3] | I50: Rate Rider for Disposition of Deferral/Variance Accounts (2012) - effective until April 30, 2016 | AA50: Scheduled Day Open Trench | AL50: Norfolk Power Distribution Inc. | AM50: Norfolk Power Distribution Inc. | AO50: GENERAL SERVICE LESS THAN 50 KW - THREE PHASE ENERGY-BILLED [G3] | AP50: kWh
A51: GENERAL SERVICE LESS THAN 50 KW - TRANSMISSION CLASS ENERGY-BILLED [T] | I51: Rate Rider for Disposition of Deferral/Variance Accounts (2012) - effective until August 31, 2014 | AA51: Service call – after regular hours | AL51: North Bay Hydro Distribution Limited | AM51: North Bay Hydro Distribution Limited | AO51: GENERAL SERVICE LESS THAN 50 KW - TRANSMISSION CLASS ENERGY-BILLED [T] | AP51: kWh
A52: GENERAL SERVICE LESS THAN 50 KW - URBAN ENERGY-BILLED [UG] | I52: Rate Rider for Disposition of Deferral/Variance Accounts (2012) - effective until December 31, 2015 | AA52: Service call – customer owned equipment | AL52: Northern Ontario Wires Inc. | AM52: Northern Ontario Wires Inc. | AO52: GENERAL SERVICE LESS THAN 50 KW - URBAN ENERGY-BILLED [UG] | AP52: kWh
A53: GENERAL SERVICE SINGLE PHASE - G1 | I53: Rate Rider for Disposition of Deferral/Variance Accounts (2012) - effective until December 31, 2016 Applicable only in the former service area of Clinton Power | AA53: Service Call – Customer-owned Equipment – After Regular Hours | AL53: Oakville Hydro Electricity Distribution Inc. | AM53: Oakville Hydro Electricity Distribution Inc. | AO53: GENERAL SERVICE SINGLE PHASE - G1 | AP53: kW
A54: GENERAL SERVICE THREE PHASE - G3 | I54: Rate Rider for Disposition of Deferral/Variance Accounts (2012) – effective until December 31, 2016 Applicable only in the former service area of Clinton Power | AA54: Service Call – Customer-owned Equipment – During Regular Hours | AL54: Orangeville Hydro Limited | AM54: Orangeville Hydro Limited | AO54: GENERAL SERVICE THREE PHASE - G3 | AP54: kW
A55: INTERMEDIATE USERS | I55: Rate Rider for Disposition of Deferral/Variance Accounts (2012) - effective until January 31, 2014 | AA55: Service Charge for onsite interrogation of interval meter due to customer phone line failure - required weekly until line repaired $ 6 | AL55: Orillia Power Distribution Corporation | AM55: Orillia Power Distribution Corporation | AO55: INTERMEDIATE USERS | AP55: kW
A56: INTERMEDIATE WITH SELF GENERATION | I56: Rate Rider for Disposition of Deferral/Variance Accounts (2012) - effective until June 30, 2014 | AA56: Service Layout - Commercial | AL56: Oshawa PUC Networks Inc. | AM56: Oshawa PUC Networks Inc. | AO56: INTERMEDIATE WITH SELF GENERATION | AP56: kW
A57: LARGE USE | I57: Rate Rider for Disposition of Deferral/Variance Accounts (2013) - Applicable only to Wholesale Market Participants - effective until April 30, 2015 | AA57: Service Layout - ResidentiaI | AL57: Ottawa River Power Corporation | AM57: Ottawa River Power Corporation | AO57: LARGE USE | AP57: kW
A58: LARGE USE - 3TS | I58: Rate Rider for Disposition of Deferral/Variance Accounts (2013) - effective until April 30, 2014 | AA58: Special Billing Service (sub-metering charge per meter) | AL58: Parry Sound Power Corporation | AM58: Parry Sound Power Corporation | AO58: LARGE USE - 3TS | AP58: kW
A59: LARGE USE - FORD ANNEX | I59: Rate Rider for Disposition of Deferral/Variance Accounts (2013) - effective until April 30, 2015 | AA59: Special meter reads | AL59: Peterborough Distribution Incorporated | AM59: Peterborough Distribution Incorporated | AO59: LARGE USE - FORD ANNEX | AP59: kW
A60: LARGE USE - REGULAR | I60: Rate Rider for Disposition of Deferral/Variance Accounts (2013) - effective until April 30, 2015 - not applicable to Wholesale Market Participants | AA60: Specific Charge for Access to the Power Poles - $/pole/year | AL60: PowerStream Inc. | AM60: PowerStream Inc. | AO60: LARGE USE - REGULAR | AP60: kW
A61: LARGE USE > 5000 KW | I61: Rate Rider for Disposition of Deferral/Variance Accounts (2013) - effective until April 30, 2017 | AA61: Specific Charge for Bell Canada Access to the Power Poles – per pole/year | AL61: PUC Distribution Inc. | AM61: PUC Distribution Inc. | AO61: LARGE USE > 5000 KW | AP61: kW
A62: microFIT | I62: Rate Rider for Disposition of Deferral/Variance Accounts (2013) - effective until August 31, 2014 | AA62: Switching for company maintenance – Charge based on Time and Materials | AL62: Renfrew Hydro Inc. | AM62: Renfrew Hydro Inc. | AO62: microFIT | AP62: $
A63: RESIDENTIAL | I63: Rate Rider for Disposition of Deferral/Variance Accounts (2013) - effective until December 31, 2014 | AA63: Temporary Service – Install & remove – overhead – no transformer | AL63: Rideau St. Lawrence Distribution Inc. | AM63: Rideau St. Lawrence Distribution Inc. | AO63: RESIDENTIAL | AP63: kWh
A64: RESIDENTIAL - HENSALL | I64: Rate Rider for Disposition of Deferral/Variance Accounts (2013) - effective until May 31, 2014 | AA64: Temporary Service – Install & remove – overhead – with transformer | AL64: Sioux Lookout Hydro Inc. | AM64: Sioux Lookout Hydro Inc. | AO64: RESIDENTIAL - HENSALL | AP64: kWh
A65: RESIDENTIAL - HIGH DENSITY [R1] | I65: Rate Rider for Disposition of Deferral/Variance Accounts (2014) - effective until December 31, 2015 | AA65: Temporary Service – Install & remove – underground – no transformer | AL65: St. Thomas Energy Inc. | AM65: St. Thomas Energy Inc. | AO65: RESIDENTIAL - HIGH DENSITY [R1] | AP65: kWh
A66: RESIDENTIAL - LOW DENSITY [R2] | I66: Rate Rider for Disposition of Deferred PILs Variance Account 1562 - effective until March 31, 2016 | AA66: Temporary service install & remove – overhead – no transformer | AL66: Thunder Bay Hydro Electricity Distribution Inc. | AM66: Thunder Bay Hydro Electricity Distribution Inc. | AO66: RESIDENTIAL - LOW DENSITY [R2] | AP66: kWh
A67: RESIDENTIAL - MEDIUM DENSITY [R1] | I67: Rate Rider for Disposition of Deferred PILs Variance Account 1562 (2012) - effective until April 30, 2015 | AA67: Temporary Service Install & Remove – Overhead – With Transformer | AL67: Tillsonburg Hydro Inc. | AM67: Tillsonburg Hydro Inc. | AO67: RESIDENTIAL - MEDIUM DENSITY [R1] | AP67: kWh
A68: RESIDENTIAL - NORMAL DENSITY [R2] | I68: Rate Rider for Disposition of Deferred PILs Variance Account 1562 (2012) - effective until April 30, 2016 | AA68: Temporary Service Install & Remove – Underground – No Transformer | AL68: Toronto Hydro-Electric System Limited | AM68: Toronto Hydro-Electric System Limited | AO68: RESIDENTIAL - NORMAL DENSITY [R2] | AP68: kWh
A69: RESIDENTIAL - TIME OF USE | I69: Rate Rider for Disposition of Deferred PILs Variance Account 1562 (2nd Installment - 2012) - effective until April 30, 2016 | AA69: Temporary service installation and removal – overhead – no transformer | AL69: Veridian Connections Inc. | AM69: Veridian Connections Inc. | AO69: RESIDENTIAL - TIME OF USE | AP69: kWh
A70: RESIDENTIAL - URBAN [UR] | I70: Rate Rider for Disposition of Deferred PILs Variance Account 1562 (per connection) (2012) - effective until April 30, 2015 | AA70: Temporary service installation and removal – overhead – with transformer | AL70: Wasaga Distribution Inc. | AM70: Wasaga Distribution Inc. | AO70: RESIDENTIAL - URBAN [UR] | AP70: kWh
A71: RESIDENTIAL REGULAR | I71: Rate Rider for Disposition of Deferred PILs Variance Account 1562 (per connection) (2012) - effective until April 30, 2016 | AA71: Temporary service installation and removal – underground – no transformer | AL71: Waterloo North Hydro Inc. | AM71: Waterloo North Hydro Inc. | AO71: RESIDENTIAL REGULAR | AP71: kWh
A72: RESIDENTIAL SUBURBAN | I72: Rate Rider for Disposition of Global Adjustment Sub-Account (2011) - effective until April 30, 2015 Applicable only for Non-RPP Customers | AL72: Welland Hydro-Electric System Corp. | AM72: Welland Hydro-Electric System Corp. | AO72: RESIDENTIAL SUBURBAN | AP72: kWh
A73: RESIDENTIAL SUBURBAN SEASONAL | I73: Rate Rider for Disposition of Global Adjustment Sub-Account (2011) - effective until April 30, 2016 Applicable only for Non-RPP Customers | AL73: Wellington North Power Inc. | AM73: Wellington North Power Inc. | AO73: RESIDENTIAL SUBURBAN SEASONAL | AP73: kWh
A74: RESIDENTIAL SUBURBAN YEAR ROUND | I74: Rate Rider for Disposition of Global Adjustment Sub-Account (2012) - effective until April 30, 2014 Applicable only for Non-RPP Customers | AL74: West Coast Huron Energy Inc. | AM74: West Coast Huron Energy Inc. | AO74: RESIDENTIAL SUBURBAN YEAR ROUND | AP74: kWh
A75: RESIDENTIAL URBAN | I75: Rate Rider for Disposition of Global Adjustment Sub-Account (2012) - effective until April 30, 2015 Applicable only for Non-RPP Customers | AL75: Westario Power Inc. | AM75: Westario Power Inc. | AO75: RESIDENTIAL URBAN | AP75: kWh
A76: RESIDENTIAL URBAN YEAR-ROUND | I76: Rate Rider for Disposition of Global Adjustment Sub-Account (2012) - effective until April 30, 2015 Applicatble only for Non-RPP Customers | AL76: Whitby Hydro Electric Corporation | AM76: Whitby Hydro Electric Corporation | AO76: RESIDENTIAL URBAN YEAR-ROUND | AP76: kWh
A77: SEASONAL RESIDENTIAL | I77: Rate Rider for Disposition of Global Adjustment Sub-Account (2012) - effective until April 30, 2016 Applicable only for Non-RPP Customers | AL77: Woodstock Hydro Services Inc. | AM77: Woodstock Hydro Services Inc. | AO77: SEASONAL RESIDENTIAL | AP77: kWh
A78: SEASONAL RESIDENTIAL - HIGH DENSITY [R3] | I78: Rate Rider for Disposition of Global Adjustment Sub-Account (2012) - effective until January 31, 2014. Applicable only for Non-RPP Customers | AO78: SEASONAL RESIDENTIAL - HIGH DENSITY [R3] | AP78: kWh
A79: SEASONAL RESIDENTIAL - NORMAL DENSITY [R4] | I79: Rate Rider for Disposition of Global Adjustment Sub-Account (2012) - effective until June 30, 2014 Applicable only for Non-RPP Customers | AO79: SEASONAL RESIDENTIAL - NORMAL DENSITY [R4] | AP79: kWh
A80: SENTINEL LIGHTING | I80: Rate Rider for Disposition of Global Adjustment Sub-Account (2012) Applicable only for Non-RPP Customers - effective until August 31, 2014 | AO80: SENTINEL LIGHTING | AP80: kW
A81: SMALL COMMERCIAL AND USL - PER CONNECTION | I81: Rate Rider for Disposition of Global Adjustment Sub-Account (2012) Applicable only to Non-RPP Customers - effective until August 31, 2014 | AO81: SMALL COMMERCIAL AND USL - PER CONNECTION | AP81: kWh
A82: SMALL COMMERCIAL AND USL - PER METER | I82: Rate Rider for Disposition of Global Adjustment Sub-Account (2013) - effective until April 30, 2014 Applicable only for Non-RPP Customers | AO82: SMALL COMMERCIAL AND USL - PER METER | AP82: kWh
A83: STANDARD A GENERAL SERVICE AIR ACCESS | I83: Rate Rider for Disposition of Global Adjustment Sub-Account (2013) - effective until April 30, 2015 Applicable only for Non-RPP Customers | AO83: STANDARD A GENERAL SERVICE AIR ACCESS | AP83: kWh
A84: STANDARD A GENERAL SERVICE ROAD/RAIL | I84: Rate Rider for Disposition of Global Adjustment Sub-Account (2013) - effective until April 30, 2015 Applicable only for Non-RPP Customers and excluding Wholesale Market Participants | AO84: STANDARD A GENERAL SERVICE ROAD/RAIL | AP84: kWh
A85: STANDARD A GRID CONNECTED | I85: Rate Rider for Disposition of Global Adjustment Sub-Account (2013) - effective until April 30, 2017 Applicable only for Non-RPP Customers | AO85: STANDARD A GRID CONNECTED | AP85: kWh
A86: STANDARD A RESIDENTIAL AIR ACCESS | I86: Rate Rider For Disposition of Global Adjustment Sub-Account (2013) - effective until August 31, 2014 Applicable only for Non-RPP Customers | AO86: STANDARD A RESIDENTIAL AIR ACCESS | AP86: kWh
A87: STANDARD A RESIDENTIAL ROAD/RAIL | I87: Rate Rider for Disposition of Global Adjustment Sub-Account (2013) - effective until December 31, 2014 Applicable only for Non-RPP Customers | AO87: STANDARD A RESIDENTIAL ROAD/RAIL | AP87: kWh
A88: STANDBY - GENERAL SERVICE 1,000 - 5,000 KW | I88: Rate Rider for Disposition of Global Adjustment Sub-Account (2013) - effective until May 31, 2014 Applicable only for Non-RPP Customers | AO88: STANDBY - GENERAL SERVICE 1,000 - 5,000 KW | AP88: kW
A89: STANDBY - GENERAL SERVICE 50 - 1,000 KW | I89: Rate Rider for Disposition of Global Adjustment Sub-Account (2014) - effective until December 31, 2014. Applicable only for Non-RPP - Class B Customers | AO89: STANDBY - GENERAL SERVICE 50 - 1,000 KW | AP89: kW
A90: STANDBY - LARGE USE | I90: Rate Rider for Disposition of Global Adjustment Sub-Account (2014) - effective until December 31, 2014. Applicable only for Non-RPP Customers | AO90: STANDBY - LARGE USE | AP90: kW
A91: STANDBY DISTRIBUTION SERVICE | I91: Rate Rider for Disposition of Global Adjustment Sub-Account (2014) - effective until December 31, 2014. Applicable only for Non-RPP Customers - Class A Customers | AO91: STANDBY DISTRIBUTION SERVICE | AP91: kW
A92: STANDBY POWER | I92: Rate Rider for Disposition of Global Adjustment Sub-Account (2014) - effective until December 31, 2014. Applicable only for Non-RPP Customers - Interval Metered | AO92: STANDBY POWER | AP92: kW
A93: STANDBY POWER - APPROVED ON AN INTERIM BASIS | I93: Rate Rider for Disposition of Global Adjustment Sub-Account (2014) - effective until December 31, 2014. Applicable only for Non-RPP Customers - Non Interval Metered | AO93: STANDBY POWER - APPROVED ON AN INTERIM BASIS | AP93: kW
A94: STANDBY POWER GENERAL SERVICE 1,500 TO 4,999 KW | I94: Rate Rider for Disposition of Global Adjustment Sub-Account (2014) - effective until December 31, 2015. Applicable only for Non-RPP Customers. | AO94: STANDBY POWER GENERAL SERVICE 1,500 TO 4,999 KW | AP94: kW
A95: STANDBY POWER GENERAL SERVICE 50 TO 1,499 KW | I95: Rate Rider for Disposition of Post Retirement Actuarial Gain - effective until March 31, 2025 | AO95: STANDBY POWER GENERAL SERVICE 50 TO 1,499 KW | AP95: kW
A96: STANDBY POWER GENERAL SERVICE LARGE USE | I96: Rate Rider for Disposition of Residual Hisotrical Smart Meter Costs - effective until April 30, 2015 | AO96: STANDBY POWER GENERAL SERVICE LARGE USE | AP96: kW
A97: STREET LIGHTING | I97: Rate Rider for Disposition of Residual Hisotrical Smart Meter Costs - effective until April 30, 2017 | AO97: STREET LIGHTING | AP97: kW
A98: SUB TRANSMISSION [ST] | I98: Rate Rider for Disposition of Residual Historical Smart Meter Costs - effective until April 30, 2014 | AO98: SUB TRANSMISSION [ST] | AP98: kW
A99: UNMETERED SCATTERED LOAD | I99: Rate Rider for Disposition of Residual Historical Smart Meter Costs - effective until April 30, 2016 | AO99: UNMETERED SCATTERED LOAD | AP99: kWh
A100: URBAN GENERAL SERVICE DEMAND BILLED (50 KW AND ABOVE) [UGD] | I100: Rate Rider for Disposition of Residual Historical Smart Meter Costs - effective until August 31, 2014 | AO100: URBAN GENERAL SERVICE DEMAND BILLED (50 KW AND ABOVE) [UGD] | AP100: kW
A101: URBAN GENERAL SERVICE ENERGY BILLED (LESS THAN 50 KW) [UGE] | I101: Rate Rider for Disposition of Residual Historical Smart Meter Costs - effective until August 31, 2015 | AO101: URBAN GENERAL SERVICE ENERGY BILLED (LESS THAN 50 KW) [UGE] | AP101: kWh
A102: WESTPORT SEWAGE TREATMENT PLANT | I102: Rate Rider for Disposition of Residual Historical Smart Meter Costs - effective until December 31, 2014 | AO102: WESTPORT SEWAGE TREATMENT PLANT | AP102: kW
A103: YEAR-ROUND RESIDENTIAL - R2 | I103: Rate Rider for Disposition of Residual Historical Smart Meter Costs – effective until December 31, 2014 | AO103: YEAR-ROUND RESIDENTIAL - R2 | AP103: kWh
I104: Rate Rider for Disposition of Residual Historical Smart Meter Costs - effective until December 31, 2015
I105: Rate Rider for Disposition of Residual Historical Smart Meter Costs - effective until December 31, 2016
I106: Rate Rider for Disposition of Residual Historical Smart Meter Costs - effective until October 31, 2014
I107: Rate Rider for Disposition of Residual Historical Smart Meter Costs - effective until September 30, 2014
I108: Rate Rider for Disposition of Residual Historical Smart Meter Costs - Non-Interval Metered - effective until April 30, 2014
I109: Rate Rider for Disposition of Residual Historical Smart Meter Costs 2 - in effect until the effective date of the next cost of service-based rate order
I110: Rate Rider for Disposition of Residual Historical Smart Meter Costs 3 - in effect until the effective date of the next cost of service-based rate order
I111: Rate Rider for Disposition of Residual Incremental Historical Smart Meter Costs - effective until August 31, 2015
I112: Rate Rider for Disposition of Stranded Meter costs - effective until April 30, 2015
I113: Rate Rider for Disposition of Stranded Meter Costs - effective until April 30, 2016
I114: Rate Rider for Disposition of Stranded Meter Costs - effective until April 30, 2017
I115: Rate Rider for Global Adjustment Sub Account Disposition - effective until April 30, 2016 Applicable only for Non RPP Customers
I116: Rate Rider for Global Adjustment Sub-Account Disposition (2014) - effective until April 28, 2016 Applicable only for Non-RPP Customers
I117: Rate Rider for Global Adjustment Sub-Account Disposition (2014) - effective until April 30, 2015 Applicable only for Non-RPP Customers
I118: Rate Rider for Global Adjustment Sub-Account Disposition (2014) - effective until December 30, 2015 Applicable only for Non-RPP Customers
I119: Rate Rider for Global Adjustment Sub-Account Disposition (2014) - effective until December 31, 2014 Applicable only for Non-RPP Customers
I120: Rate Rider for Global Adjustment Sub-Account Disposition (2014) - effective until December 31, 2015 Applicable only for Non-RPP Customers
I121: Rate Rider for Global Adjustment Sub-Account Disposition Applicable only for Non-RPP Customers - effective until April 30, 2015
I122: Rate Rider for Incremental Capital - Distribution Volumetric - effective until April 30, 2016
I123: Rate Rider for Incremental Capital - Service Charge - effective until April 30, 2016
I124: Rate Rider for Incremental Capital (2012) - effective until April 30, 2015
I125: Rate Rider for Lost Revenue Adjustment Mechanism Variance Account (LRAMVA) Recovery (2012 CDM Activities) - effective until April 30, 2015
I126: Rate Rider for Recover of Residual Historical Smart meter Costs - effective until June 30, 2014
I127: Rate Rider for Recovery of CGAAP/CWIP Differential - in effect until December 31, 2016
I128: Rate Rider for Recovery of Foregone Revenue - effective until April 30, 2015
I129: Rate Rider for Recovery of Forgone Revenue - effective until April 30, 2015
I130: Rate Rider for Recovery of Forgone Revenue - effective until December 31, 2014
I131: Rate Rider for Recovery of Green Energy Act related costs - effective until December 31, 2014
I132: Rate Rider for Recovery of Incremental Capital (2013) - in effect until the effective date of the next cost of service-based rate order
I133: Rate Rider for Recovery of Incremental Capital (2013) - in effect until the effective date of the next cost of service-based rate order
I134: Rate Rider for Recovery of Incremental Capital (2013) (per connection) - in effect until the effective date of the next cost of service-based rate order
I135: Rate Rider for Recovery of Incremental Capital (2013) (per connection)- in effect until the effective date of the next cost of service-based rate order
I136: Rate Rider for Recovery of Incremental Capital Costs
I137: Rate Rider for Recovery of Incremental Capital Costs - effective until April 30, 2015
I138: Rate Rider for Recovery of Incremental Capital Module Costs (2014) - in effect until the effective date of the next cost of service-based rate order
I139: Rate Rider for Recovery of Incremental Capital Module Costs (2014) - in effect until the effective date of the next cost of service-based rate order
I140: Rate Rider for Recovery of Lost Revenue Adjustment Mechanism ( LRAM)/Shared Savings Mechanism (SSM) (2012) - effective until August 31, 2014
I141: Rate Rider for Recovery of Lost Revenue Adjustment Mechanism (2013) - effective until December 31, 2014
I142: Rate Rider for Recovery of Lost Revenue Adjustment Mechanism (LRAM) - effective until April 30, 2016
I143: Rate Rider for Recovery of Lost Revenue Adjustment Mechanism (LRAM) (pre-2011 CDM Activities) - effective until April 30, 2015
I144: Rate Rider for Recovery of Lost Revenue Adjustment Mechanism (LRAM) (pre-2011 CDM Activities) (2013) - effective until April 30, 2015
I145: Rate Rider for Recovery of Lost Revenue Adjustment Mechanism (LRAM)/Shared Savings
I146: Rate Rider for Recovery of Lost Revenue Adjustment Mechanism (LRAM)/Shared Savings Mechanism (SSM) - effective until December 31, 2018 and applicable in the service area excluding the former service areas of Clinton Power and West Perth Power
I147: Rate Rider for Recovery of Lost Revenue Adjustment Mechanism (LRAM)/Shared Savings Mechanism (SSM) - effective until December 31, 2014 and applicable in the service area excluding the former service areas of Clinton Power and West Perth Power
I148: Rate Rider for Recovery of Lost Revenue Adjustment Mechanism (LRAM)/Shared Savings Mechanism (SSM) - effective until December 31, 2014 and applicable only in the former service area of Clinton Power
I149: Rate Rider for Recovery of Lost Revenue Adjustment Mechanism (LRAM)/Shared Savings Mechanism (SSM) - effective until December 31, 2014 and applicable only in the former service area of West Perth Power
I150: Rate Rider for Recovery of Lost Revenue Adjustment Mechanism (LRAM)/Shared Savings Mechanism (SSM) - effective until December 31, 2014 and applicable in the service area excluding the former service area of Clinton Power
I151: Rate Rider for Recovery of Lost Revenue Adjustment Mechanism (LRAM)/Shared Savings Mechanism (SSM) - effective until March 31, 2016
I152: Rate Rider for Recovery of Lost Revenue Adjustment Mechanism (LRAM)/Shared Savings Mechanism (SSM) (2012) - effective until August 31, 2014
I153: Rate Rider for Recovery of Lost Revenue Adjustment Mechanism (LRAM)/Shared Savings Mechanism (SSM) Recovery - effective until April 30, 2015
I154: Rate Rider for Recovery of Lost Revenue Adjustment Mechanism Variance Account (LRAMVA) (2014) - effective until April 30, 2015
I155: Rate Rider for Recovery of Residual Historical Smart Meter Costs - effective July 1, 2012 - April 30, 2016
I156: Rate Rider for Recovery of Smart Meter Incremental Revenue Requirement - effective until the date of the next cost of service-based rate order
I157: Rate Rider for Recovery of Smart Meter Incremental Revenue Requirement - effective until the effective date of the next cost of service-based rate order, or October 31, 2017, whichever occurs earlier
I158: Rate Rider for Recovery of Smart Meter Incremental Revenue Requirement - in effect until the effective date of the next cost of service-based rate order
I159: Rate Rider for Recovery of Smart Meter Incremental Revenue Requirement - Non-Interval Metered - in effect until the effective date of the next cost of service-based rate order
I160: Rate Rider for Recovery of Smart Meter Incremental Revenue Requirements - in effect until the effective date of the next cost of service application
I161: Rate Rider for Recovery of Smart Meter Stranded Assets - effective until April 30, 2016
I162: Rate Rider for Recovery of Storm Damage Costs - effective until August 31, 2017
I163: Rate Rider for Recovery of Stranded Assets - effective until April 30, 2016
I164: Rate Rider for Recovery of Stranded Meter Assets - effective July 1, 2012 - April 30, 2016
I165: Rate Rider for Recovery of Stranded Meter Assets – effective until April 30, 2015
I166: Rate Rider for Recovery of Stranded Meter Assets - effective until April 30, 2016
I167: Rate Rider for Recovery of Stranded Meter Assets - effective until April 30, 2017
I168: Rate Rider for Recovery of Stranded Meter Assets - effective until August 31, 2015
I169: Rate Rider for Recovery of Stranded Meter Assets - effective until August 31, 2017
I170: Rate Rider for Recovery of Stranded Meter Assets - effective until December 31, 2014
I171: Rate Rider for Recovery of Stranded Meter Assets - effective until December 31, 2015
I172: Rate Rider for Recovery of Stranded Meter Assets - effective until June 30, 2016
I173: Rate Rider for Recovery of Stranded Meter Assets - effective until March 31, 2016
I174: Rate Rider for Recovery of Stranded Meter Assets - effective until May 31, 2014
I175: Rate Rider for Reversal of Deferral/Variance Account Disposition (2011) - effective until April 30, 2015
I176: Rate Rider for Smart Meter Disposition - effective until April 30, 2016
I177: Rate Rider for Smart Meter Incremental Revenue Requirement - in effect until the effective date of the next cost of service-based rate order
I178: Rate Rider for Smart Metering Entity Charge - effective until October 31, 2018
I179: Rate Rider for Stranded Meter Cost Recovery - effective until April 30, 2017
I180: Rate Rider for Tax Change
I181: Rate Rider for Tax Change - effective until April 30, 2015
I182: Rate Rider for Tax Change (2014) - effective until April 30, 2015
I183: Retail Transmission Rate - Line and Transformation Connection Service Rate
I184: Retail Transmission Rate - Line and Transformation Connection Service Rate - (less than 1,000 kW)
I185: Retail Transmission Rate - Line and Transformation Connection Service Rate - Interval Metered
I186: Retail Transmission Rate - Line and Transformation Connection Service Rate - Interval Metered (1,000 to 4,999 kW)
I187: Retail Transmission Rate - Line and Transformation Connection Service Rate - Interval Metered (less than 1,000 kW)
I188: Retail Transmission Rate - Line and Transformation Connection Service Rate - Interval Metered < 1,000 kW
I189: Retail Transmission Rate - Line and Transformation Connection Service Rate FOR ALL SERVICE AREAS EXCEPT HENSALL
I190: Retail Transmission Rate - Line and Transformation Connection Service Rate - Interval Metered > 1,000 kW
I191: Retail Transmission Rate - Line Connection Service Rate
I192: Retail Transmission Rate - Network Service Rate
I193: Retail Transmission Rate - Network Service Rate - (less than 1,000 kW)
I194: Retail Transmission Rate - Network Service Rate - Interval Metered
I195: Retail Transmission Rate - Network Service Rate - Interval Metered (1,000 to 4,999 kW)
I196: Retail Transmission Rate - Network Service Rate - Interval Metered (less than 1,000 kW)
I197: Retail Transmission Rate - Network Service Rate - Interval Metered > 1,000 kW
I198: Retail Transmission Rate - Transformation Connection Service Rate
I199: Rider for Global Adjustment Sub-Account Disposition (2012) - effective until April 30, 2016 Applicable only for Non-RPP Customers
I200: Rural or Remote Electricity Rate Protection Charge (RRRP)
... 14 more rows

Sheet Sheet1 (hidden)
